﻿Body Name,Supplier Code,Supplier Name,Transaction Ref/No,Their Ref,Date Paid,Gross Value (Detail),VAT Amount,7CCC - Level 7 Cost Centre Code,7CCN - Level 7 Cost Centre Name,9AC - Level 9 Account Code,9AN - Level 9 Account Name,4CCN - Level 4 Cost Centre Name
Blackpool Council,1109882,REDACTED PERSONAL DATA,514692,GRUNDY0001,07/08/2020,574.99,0,AHG,Art Gallery Summary,3456,Payment To Artists,Places
Blackpool Council,1116610,Smart Video & Sensing Limited,543399,101000,13/08/2020,4448.4,741.4,CTABWA,Ltp Scheme 17/18,6501,Contract Payments,Capital - Commnctn & Regen
Blackpool Council,1116610,Smart Video & Sensing Limited,543400,100999,13/08/2020,1467.36,244.56,CTABWA,Ltp Scheme 17/18,6501,Contract Payments,Capital - Commnctn & Regen
Blackpool Council,1116610,Smart Video & Sensing Limited,543401,100961,13/08/2020,1287.28,214.55,CTABWA,Ltp Scheme 17/18,6501,Contract Payments,Capital - Commnctn & Regen
Blackpool Council,1116610,Smart Video & Sensing Limited,548113,101037,13/08/2020,1344,224,TRA,Traffic Management,4501,Private Contractors,Community & Env Services
Blackpool Council,1116610,Smart Video & Sensing Limited,548126,101038,13/08/2020,2598.6,433.1,TRA,Traffic Management,4501,Private Contractors,Community & Env Services
Blackpool Council,1055691,Norbain Sd Ltd,548545,I2914466,07/08/2020,1500,250,CCTV,Cctv,3041,Other Materials,Community & Env Services
Blackpool Council,1116447,W J Sanderson & Sons Ltd,549367,INV-00512,07/08/2020,1455,242.5,PRKOP1,Parks Operational Manager  1,1012,Premises Maint-Priv.Contractor,Community & Env Services
Blackpool Council,1121587,Northgate Supplies Ltd,549672,5270,10/08/2020,624.6,0,ZM0018,Highways & Engineering,9773,Orders Received Not Invoiced,Blackpool Services
Blackpool Council,1121587,Northgate Supplies Ltd,549672,5270,10/08/2020,749.52,124.92,ZM0018,Highways & Engineering,9511A,Stocks Efin,Blackpool Services
Blackpool Council,1121728,Arrow County Supplies,549768,4839429,12/08/2020,1085.47,180.91,LEISUR,Leisure Management,1601,Consumable Supplies,Community & Env Services
Blackpool Council,1076264,Alliance Disposables Ltd,549804,C309496,10/08/2020,560,0,ZM0018,Highways & Engineering,9511A,Stocks Efin,Blackpool Services
Blackpool Council,1116610,Smart Video & Sensing Limited,550001,101044,13/08/2020,3512.4,585.4,TRA,Traffic Management,4501,Private Contractors,Community & Env Services
Blackpool Council,1076264,Alliance Disposables Ltd,550013,I8644296,10/08/2020,760,0,ZM0018,Highways & Engineering,9773,Orders Received Not Invoiced,Blackpool Services
Blackpool Council,1076264,Alliance Disposables Ltd,550013,I8644296,10/08/2020,912,152,ZM0018,Highways & Engineering,9511A,Stocks Efin,Blackpool Services
Blackpool Council,1077963,Electricity Northwest Ltd,550025,990082637,24/08/2020,1727.4,287.9,FB0004,Energy & Sustainability,1202,Electricity,Resources
Blackpool Council,1075307,Team Netsol Limited,550447,101848,03/08/2020,11931.6,1988.6,FCACA,Benefits - Admin,3532,Comp-Running & License Costs,Resources
Blackpool Council,1063638,Pristine Hygiene,550500,4710,10/08/2020,383.1,63.85,APCBAA,Coopers Way,3408,Services To Clients,Adult & Families
Blackpool Council,1006449,Tmp (Uk) Ltd,550511,100001245102,06/08/2020,283.97,47.33,TRA,Traffic Management,4501,Private Contractors,Community & Env Services
Blackpool Council,1006449,Tmp (Uk) Ltd,550512,100001245103,06/08/2020,354.96,59.16,TRA,Traffic Management,4501,Private Contractors,Community & Env Services
Blackpool Council,1094424,The Networking People,550533,SI108076,06/08/2020,17408.21,2901.37,FGAA,Ict Corporate Services,3532,Comp-Running & License Costs,Resources
Blackpool Council,1008235,Lucy Faithfull Foundation,550599,25556,05/08/2020,3440.9,0,JEA,Senior Management,5507,Personal,Children'S Services
Blackpool Council,1010300,Blacktax Radio Taxis T/A Blackpool Courier,550609,12,06/08/2020,979.2,0,TRCHIL,Integrated Transport Children,2201,Contract Hire,Community & Env Services
Blackpool Council,1111234,Cbre Ltd,550611,91BRK00001181,06/08/2020,14910,2485,DDC,Partnerships & Business Dev,3413,Consultants,Places
Blackpool Council,1086788,Idox Software Ltd,550612,7029736,07/08/2020,570,95,PLBAAA,Development Control,3401,General Services,Places
Blackpool Council,1021138,British Parking Association,550691,57895,04/08/2020,1087.2,181.2,PARADM,Parking Administration,6305,Fees,Budgets Outside Cash Limits
Blackpool Council,1049304,Insight Direct (Uk) Ltd,550698,4898972,07/08/2020,1364.4,227.4,BC3001,Information Governance,3533,Computer S/W Purchases,Governance & Partnerships
Blackpool Council,1094424,The Networking People,550699,SI108095,07/08/2020,31466.35,5244.39,FGAA,Ict Corporate Services,3531,Computer-H'Ware Purchase,Resources
Blackpool Council,1007228,Rigby Taylor Ltd,550717,RSIN0341325,07/08/2020,1382,0,ZM0018,Highways & Engineering,9773,Orders Received Not Invoiced,Blackpool Services
Blackpool Council,1007228,Rigby Taylor Ltd,550717,RSIN0341325,07/08/2020,1658.4,276.4,ZM0018,Highways & Engineering,9511A,Stocks Efin,Blackpool Services
Blackpool Council,1099546,Park Community Academy,550799,PCA158,27/08/2020,211200,0,CEAMED,New Pupil Plcs - Prmry 2016-17,6501,Contract Payments,Capital - Childrens
Blackpool Council,1008743,James Leckey Design Ltd T/A Vida Global,550845,OP/I162661,07/08/2020,252,42,MTE,Undefined Age Group,5401,Aids To Daily Living,Adult & Families
Blackpool Council,1100070,Carebase (Fac001),550847,80113,07/08/2020,648,108,MTE,Undefined Age Group,5401,Aids To Daily Living,Adult & Families
Blackpool Council,1009714,Dcm Projects Ltd T/A Dcm Surfaces,550892,17183,07/08/2020,4788,798,PRKTEC,Parks Terchnician Manager,1012,Premises Maint-Priv.Contractor,Community & Env Services
Blackpool Council,1122411,Bates Office Services Ltd,550985,SI280312,04/08/2020,3570,0,MTE,Undefined Age Group,3041,Other Materials,Adult & Families
Blackpool Council,1022781,Moore Readymix Ltd,551033,108735,07/08/2020,274.6,45.77,ENGINE,Engineering,3041,Other Materials,Community & Env Services
Blackpool Council,1009065,Hc Slingsby Plc,551036,SI1423220,06/08/2020,561.46,93.58,LBF,Library Management,1601,Consumable Supplies,Places
Blackpool Council,1006419,Tunstall Healthcare (Uk) Ltd,551039,3IN/10357707,05/08/2020,408,68,APFBAB,Vitaline,3004,Operating Lease,Adult & Families
Blackpool Council,1076555,Uk Container Maintenance Limited,551048,39725,07/08/2020,4680,780,CWASTE,Commercial Waste,3041,Other Materials,Community & Env Services
Blackpool Council,1090874,Advanced Health And Care Limited,551052,ARCMIN/00081151,06/08/2020,1348,224.67,HOMECA,Homecare,3533,Computer S/W Purchases,Adult & Families
Blackpool Council,1115696,General Utilities North West Ltd,551060,BC/8864,11/08/2020,4381.8,730.3,CTABYA,Ltp Scheme 19/20,6501,Contract Payments,Capital - Commnctn & Regen
Blackpool Council,1123036,Stantec Uk Limited,551061,173721 SNI,07/08/2020,1680,280,PLBAAA,Development Control,3401,General Services,Places
Blackpool Council,1074832,Rnib Enterprises Limited,551062,SEN245060,19/08/2020,744,124,CWAN,Children With Additional Needs,3008,Educational Equipment,Children'S Services
Blackpool Council,1103692,Calico Enterprise Limited,551065,SINV20/00002397,07/08/2020,4776,796,FC1802,Social Fund - Client,5210,Community Care Support,Resources
Blackpool Council,1103692,Calico Enterprise Limited,551066,SINV20/00002396,07/08/2020,4776,796,FC1802,Social Fund - Client,5210,Community Care Support,Resources
Blackpool Council,1086000,Sr Supply Chain Consultants Ltd,551111,INV-2836,03/08/2020,3408,490,FB0001,Business Services Team,0911,Training Expenses,Resources
Blackpool Council,1057663,Wilde Recruitment Ltd,551119,36571,07/08/2020,517.86,86.31,CTAHHA,Tramway Emergency Works,6501,Contract Payments,Capital - Commnctn & Regen
Blackpool Council,1110791,Locality (Uk),551124,13983,12/08/2020,53702.65,8950.44,HJA,Growth,4701,Other Contracted Services,Places
Blackpool Council,1071432,Cpi - Crisis Preventions Insititute,551125,CUK0023337,14/08/2020,1101.6,183.6,EDDIV,Education Diversity,3302,Stationery,Children'S Services
Blackpool Council,1058510,Lifeline Language Services Ltd,551139,1020038,07/08/2020,259.56,43.26,JEA,Senior Management,5507,Personal,Children'S Services
Blackpool Council,1043832,Denwire Limited,551157,IN229207,14/08/2020,1392,232,PJAA,"Erection, Operation & Dismantl",3041,Other Materials,Places
Blackpool Council,1120801,Eet Europarts Ltd,551158,3572264,14/08/2020,1593.6,265.6,CCTV,Cctv,3041,Other Materials,Community & Env Services
Blackpool Council,1123071,Whistlejacket London Limited,551161,INV-0435,12/08/2020,2227.2,371.2,HJA,Growth,3315,Marketing,Places
Blackpool Council,1079488,Recycling Lives Ltd,551164,244255,11/08/2020,1728,288,CWASTE,Commercial Waste,4514,Contract 'E',Community & Env Services
Blackpool Council,1103692,Calico Enterprise Limited,551221,SINV20/00002417,13/08/2020,674,44.17,FC1802,Social Fund - Client,5210,Community Care Support,Resources
Blackpool Council,1103692,Calico Enterprise Limited,551222,SINV20/00002415,13/08/2020,2446,92.5,FC1802,Social Fund - Client,5210,Community Care Support,Resources
Blackpool Council,1103692,Calico Enterprise Limited,551223,SINV20/00002416,13/08/2020,1507,62.5,FC1802,Social Fund - Client,5210,Community Care Support,Resources
Blackpool Council,1044756,Northgate Public Services (Uk) Ltd,551248,91436494,13/08/2020,742.8,123.8,FCACA,Benefits - Admin,3532,Comp-Running & License Costs,Resources
Blackpool Council,1044756,Northgate Public Services (Uk) Ltd,551248,91436494,13/08/2020,294.3,49.05,EM1032,Client Finances,3532,Comp-Running & License Costs,Resources
Blackpool Council,1044756,Northgate Public Services (Uk) Ltd,551248,91436494,13/08/2020,448.5,74.75,FBBEA,"Income, Recovery & Debtors",3532,Comp-Running & License Costs,Resources
Blackpool Council,1122901,REDACTED PERSONAL DATA,551255,0000026,14/08/2020,1250,0,AHG,Art Gallery Summary,3456,Payment To Artists,Places
Blackpool Council,1028855,Read The Reading Agency Ltd,551256,INV-2228,14/08/2020,629.04,104.84,LBF,Library Management,3819,Events Support,Places
Blackpool Council,1119493,Centerprise International Ltd,551266,90243147,14/08/2020,522.58,87.1,CS0739,Ict Refresh,6525,I.T. Hardware Purchase,Capital - Resources
Blackpool Council,1042860,Mgc Lamps Ltd,551269,730305,14/08/2020,3780,630,PJNA,New Features / Schemes - C & E,3041,Other Materials,Places
Blackpool Council,1009949,Cleapss,551280,SUBS009981,06/08/2020,2244.17,0,MNGMT,Central Management,3711,Subscriptions,Children'S Services
Blackpool Council,1121122,Angela Latham Psychology Services Ltd,551326,120287,06/08/2020,350,0,BSTPRJ,Better Start Projects,3401,General Services,Better Start Projects
Blackpool Council,1121122,Angela Latham Psychology Services Ltd,551327,120288,17/08/2020,350,0,BSTPRJ,Better Start Projects,3401,General Services,Better Start Projects
Blackpool Council,1122892,REDACTED PERSONAL DATA,551349,CW222,14/08/2020,1250,0,AHG,Art Gallery Summary,3456,Payment To Artists,Places
Blackpool Council,1094424,The Networking People,551355,SI108105,07/08/2020,7328.29,1221.38,CGRESO,Resources Schemes,6525,I.T. Hardware Purchase,Capital - Resources
Blackpool Council,1094424,The Networking People,551356,SI108106,07/08/2020,22206.67,3701.11,CGRESO,Resources Schemes,6525,I.T. Hardware Purchase,Capital - Resources
Blackpool Council,1094424,The Networking People,551357,SI108101,07/08/2020,1140,190,FGAA,Ict Corporate Services,3531,Computer-H'Ware Purchase,Resources
Blackpool Council,1113649,Smartsurvey Ltd,551362,INV-15376,14/08/2020,648,108,PBAD,Corporate Dev & Engagement,0917,Other Exps,Chief Executive
Blackpool Council,1008525,Kingswood Office Supplies Limited,551363,380269,18/08/2020,1140.48,190.08,PRKDEV,Parks Development,3041,Other Materials,Community & Env Services
Blackpool Council,1114857,University Of Brighton,551376,U0144465,14/08/2020,12640,0,HS0002,Headstart Evaluation,3601,Subsistence,Children'S Services
Blackpool Council,1095505,Napthens Solicitors,551392,119400,07/08/2020,1740,290,AEV,Vacant & Under Used,0981,Professional Fees,Resources
Blackpool Council,1121587,Northgate Supplies Ltd,551410,5951,14/08/2020,624.6,0,ZM0018,Highways & Engineering,9773,Orders Received Not Invoiced,Blackpool Services
Blackpool Council,1121587,Northgate Supplies Ltd,551410,5951,14/08/2020,749.52,124.92,ZM0018,Highways & Engineering,9511A,Stocks Efin,Blackpool Services
Blackpool Council,1094424,The Networking People,551426,51108133,19/08/2020,3600,600,FGAA,Ict Corporate Services,0791,Temp/Relief (Bureau Staff),Resources
Blackpool Council,1094424,The Networking People,551427,SI108118,14/08/2020,2797.78,466.3,CGRESO,Resources Schemes,6525,I.T. Hardware Purchase,Capital - Resources
Blackpool Council,1094424,The Networking People,551428,SI108108,07/08/2020,87533.77,14588.96,CGRESO,Resources Schemes,6525,I.T. Hardware Purchase,Capital - Resources
Blackpool Council,1094424,The Networking People,551429,SI108119,14/08/2020,75475.56,12579.26,CGRESO,Resources Schemes,6525,I.T. Hardware Purchase,Capital - Resources
Blackpool Council,1094424,The Networking People,551430,SI108120,14/08/2020,12598.52,2099.75,CGRESO,Resources Schemes,6525,I.T. Hardware Purchase,Capital - Resources
Blackpool Council,1094424,The Networking People,551431,SI108131,19/08/2020,78816.95,13136.16,FGAA,Ict Corporate Services,3531,Computer-H'Ware Purchase,Resources
Blackpool Council,1094424,The Networking People,551433,SI108107,07/08/2020,5600,933.33,CGRESO,Resources Schemes,6525,I.T. Hardware Purchase,Capital - Resources
Blackpool Council,1049304,Insight Direct (Uk) Ltd,551434,4911836,14/08/2020,618.86,103.14,FGAB,Ict E-Government,3532,Comp-Running & License Costs,Resources
Blackpool Council,1049304,Insight Direct (Uk) Ltd,551434,4911836,14/08/2020,386.4,64.4,CS0739,Ict Refresh,6525,I.T. Hardware Purchase,Capital - Resources
Blackpool Council,1101740,Ken Taylor Supplies Limited,551438,0315064,20/08/2020,511.2,85.2,PJOA,Commercial & Marketing,3041,Other Materials,Places
Blackpool Council,1009751,Bt Business Direct Limited,551443,IN05142084,10/08/2020,303.88,50.64,CCTV,Cctv,3041,Other Materials,Community & Env Services
Blackpool Council,1009751,Bt Business Direct Limited,551444,IN05141352,10/08/2020,331.67,55.27,CCTV,Cctv,3041,Other Materials,Community & Env Services
Blackpool Council,1055691,Norbain Sd Ltd,551446,I2927036,04/08/2020,592.31,98.72,CCTV,Cctv,3041,Other Materials,Community & Env Services
Blackpool Council,1088636,Tarmac Building Products Ltd,551451,SI01802604,19/08/2020,1128,0,ZM0018,Highways & Engineering,9773,Orders Received Not Invoiced,Blackpool Services
Blackpool Council,1088636,Tarmac Building Products Ltd,551451,SI01802604,19/08/2020,1353.6,225.6,ZM0018,Highways & Engineering,9511A,Stocks Efin,Blackpool Services
Blackpool Council,1094424,The Networking People,551456,SI108137,19/08/2020,8278.25,1379.71,FGAA,Ict Corporate Services,3531,Computer-H'Ware Purchase,Resources
Blackpool Council,1057663,Wilde Recruitment Ltd,551460,36599,14/08/2020,517.86,86.31,CTAHHA,Tramway Emergency Works,6501,Contract Payments,Capital - Commnctn & Regen
Blackpool Council,1090628,The Furniture Recycling Group,551461,INV22899,11/08/2020,272.45,45.41,CWASTE,Commercial Waste,4514,Contract 'E',Community & Env Services
Blackpool Council,1105064,P Wilson & Company Llp,551462,12978/V,14/08/2020,990,165,CGICAD,Enterprise Zone,6514,B.Holes/Site Investgtn/Surveys,Capital - Commnctn & Regen
Blackpool Council,1041733,Dhl International (Uk) Ltd,551466,AVI7840237,07/08/2020,652.83,0,PJNA,New Features / Schemes - C & E,3511,Postages,Places
Blackpool Council,1079921,Uk Point Of Sale Group Ltd,551467,0000800934,14/08/2020,426,71,LBF,Library Management,1601,Consumable Supplies,Places
Blackpool Council,1026811,Stannah Lift Services Ltd,551506,1085209396,10/08/2020,4531.5,0,CX4002,Disabled Facilities Grants,6501,Contract Payments,Capital - Adult Social Care
Blackpool Council,1008540,Konica Minolta Business (Uk) Ltd,551548,1151678856,07/08/2020,411.41,68.57,FGBA,Specific (Directorate)-Service,3305,Photocopying Charges,Resources
Blackpool Council,1120630,Dar Consulting,551551,SI-143,10/08/2020,35230,0,TRB,Maintenance & Works,4501,Private Contractors,Community & Env Services
Blackpool Council,1094424,The Networking People,551552,SI108147,21/08/2020,1629.62,271.6,CGRESO,Resources Schemes,6525,I.T. Hardware Purchase,Capital - Resources
Blackpool Council,1094424,The Networking People,551553,SI108148,21/08/2020,9246.17,1541.03,CGRESO,Resources Schemes,6525,I.T. Hardware Purchase,Capital - Resources
Blackpool Council,1094424,The Networking People,551554,SI108149,21/08/2020,7612,1268.67,CGRESO,Resources Schemes,6525,I.T. Hardware Purchase,Capital - Resources
Blackpool Council,1094424,The Networking People,551557,SI108146,21/08/2020,1716.67,286.11,CGRESO,Resources Schemes,6525,I.T. Hardware Purchase,Capital - Resources
Blackpool Council,1050319,Perspex Distribution Ltd,551573,960194681,21/08/2020,371.76,61.96,PJNA,New Features / Schemes - C & E,3041,Other Materials,Places
Blackpool Council,1112567,Servelec Youth Services Limited,551574,0000061070,21/08/2020,13822.2,2303.7,VA0010,Vah Management & Admin,3532,Comp-Running & License Costs,Children'S Services
Blackpool Council,1094424,The Networking People,551581,SI108109,07/08/2020,2557.07,426.18,FGAA,Ict Corporate Services,3521,Landline - Line Rental,Resources
Blackpool Council,1009501,Egbert H Taylor & Co Ltd,551583,INV000015550,20/08/2020,10584,1764,CWASTE,Commercial Waste,3041,Other Materials,Community & Env Services
Blackpool Council,1086156,Water Saving Techniques Limited,551586,4785,05/08/2020,9602.4,1600.4,PARADE,Parades & Seawall,1012,Premises Maint-Priv.Contractor,Community & Env Services
Blackpool Council,1086156,Water Saving Techniques Limited,551587,4786,05/08/2020,12194.4,2032.4,PARADE,Parades & Seawall,1012,Premises Maint-Priv.Contractor,Community & Env Services
Blackpool Council,1049304,Insight Direct (Uk) Ltd,551590,4914665,20/08/2020,486.07,81.01,CCTV,Cctv,3533,Computer S/W Purchases,Community & Env Services
Blackpool Council,1049304,Insight Direct (Uk) Ltd,551591,4915759,20/08/2020,9971.4,1661.9,FGAA,Ict Corporate Services,3532,Comp-Running & License Costs,Resources
Blackpool Council,1096566,Zengenti Ltd,551594,8631,19/08/2020,8640,1440,PBF,Communications,3535,Website Costs,Places
Blackpool Council,1122384,Electric Center,551597,754-033229,04/08/2020,612,102,MTE,Undefined Age Group,5401,Aids To Daily Living,Adult & Families
Blackpool Council,1009751,Bt Business Direct Limited,551598,IN05143203,19/08/2020,590.88,98.48,CCTV,Cctv,3041,Other Materials,Community & Env Services
Blackpool Council,1094424,The Networking People,551600,SI108098,07/08/2020,28128.52,4688.09,FGAA,Ict Corporate Services,3527,Communication Lines,Resources
Blackpool Council,1008540,Konica Minolta Business (Uk) Ltd,551604,1151443879,04/08/2020,283.79,47.3,FGBA,Specific (Directorate)-Service,3305,Photocopying Charges,Resources
Blackpool Council,1008540,Konica Minolta Business (Uk) Ltd,551605,1151463676,04/08/2020,12195.56,2032.59,FGBA,Specific (Directorate)-Service,3305,Photocopying Charges,Resources
Blackpool Council,1006644,Telewest/Virgin Media Payments Ltd,551606,078850001547,04/08/2020,314.4,52.4,FGAA,Ict Corporate Services,3521,Landline - Line Rental,Resources
Blackpool Council,1006644,Telewest/Virgin Media Payments Ltd,551607,067437901506,04/08/2020,3306.08,551.01,FGAA,Ict Corporate Services,3521,Landline - Line Rental,Resources
Blackpool Council,1006644,Telewest/Virgin Media Payments Ltd,551609,081127901504,04/08/2020,612,102,FGAA,Ict Corporate Services,3521,Landline - Line Rental,Resources
Blackpool Council,1100542,Caroline Horn T/A Bentley Training,551684,BEN/485,03/08/2020,344,0,LEISUR,Leisure Management,1606,First Aid Equipment & Supplies,Community & Env Services
Blackpool Council,1071925,Groundwork Cheshire Lancs And Merseyside,551687,0000002663,20/08/2020,14126.88,2354.48,AEB,Buildings,4501,Private Contractors,Resources
Blackpool Council,1071925,Groundwork Cheshire Lancs And Merseyside,551688,0000002664,20/08/2020,14126.88,2354.48,AEB,Buildings,4501,Private Contractors,Resources
Blackpool Council,1122491,Planday Limited,551690,INV00090994,03/08/2020,2923.2,487.2,LEISUR,Leisure Management,3801,Other Expenses,Community & Env Services
Blackpool Council,1006449,Tmp (Uk) Ltd,551692,100001246621,21/08/2020,283.97,47.33,TRA,Traffic Management,4501,Private Contractors,Community & Env Services
Blackpool Council,1102823,Wilde Consultants Limited,551693,19545,14/08/2020,4662,777,CTABYA,Ltp Scheme 19/20,6501,Contract Payments,Capital - Commnctn & Regen
Blackpool Council,1102823,Wilde Consultants Limited,551694,19601,21/08/2020,4960.5,826.75,TRA,Traffic Management,4501,Private Contractors,Community & Env Services
Blackpool Council,1055691,Norbain Sd Ltd,551697,I2927901,12/08/2020,3322.9,553.82,CCTV,Cctv,3041,Other Materials,Community & Env Services
Blackpool Council,1071702,Links Signs & Graphics Ltd,551749,LSGI29035,06/08/2020,2559.6,426.6,CATERG,Catering Services,3301,Printing,Community & Env Services
Blackpool Council,1091050,Howard Palmer T/A Trojan Travel,551753,021,03/08/2020,1720,0,TRCHIL,Integrated Transport Children,2201,Contract Hire,Community & Env Services
Blackpool Council,1102823,Wilde Consultants Limited,551770,19544,14/08/2020,7069.06,1178.18,CTABYA,Ltp Scheme 19/20,6501,Contract Payments,Capital - Commnctn & Regen
Blackpool Council,1070480,Tiger Communications Plc,551775,23350,21/08/2020,3086.57,514.43,FGAA,Ict Corporate Services,3532,Comp-Running & License Costs,Resources
Blackpool Council,1103650,Westec,551776,18055,24/08/2020,2251.2,375.2,PJOA,Commercial & Marketing,3041,Other Materials,Places
Blackpool Council,1123126,Matt Haylett T/A Mh Lighting,551777,203,06/08/2020,750,0,PJRA,Electrical Infra - Places,3308,Servicing,Places
Blackpool Council,1119933,Mitchell Bailey T/A Pda Technical,551778,264,05/08/2020,960,0,PJRA,Electrical Infra - Places,3308,Servicing,Places
Blackpool Council,1068803,Motivair Compressors Limited,551781,IN146834,21/08/2020,292.39,48.73,PJLA,Maintenance,3308,Servicing,Places
Blackpool Council,1006636,Tts Group Ltd,551788,DE6035367,21/08/2020,2519.16,419.86,PRKDEV,Parks Development,3041,Other Materials,Community & Env Services
Blackpool Council,1042366,Lancashire Football Association Limited,551789,INV-0214,21/08/2020,480,80,PESPRT,Pe And Sport Team,3801,Other Expenses,Community & Env Services
Blackpool Council,1009906,Combined Precision Components Plc Cpc,551795,905622,07/08/2020,627.01,104.5,CCTV,Cctv,3041,Other Materials,Community & Env Services
Blackpool Council,1120801,Eet Europarts Ltd,551797,3574142,21/08/2020,1223.4,203.9,CCTV,Cctv,3041,Other Materials,Community & Env Services
Blackpool Council,1120801,Eet Europarts Ltd,551798,3574141,21/08/2020,575.4,95.9,CCTV,Cctv,3041,Other Materials,Community & Env Services
Blackpool Council,1055691,Norbain Sd Ltd,551799,I2928740,04/08/2020,653.47,108.91,CCTV,Cctv,3041,Other Materials,Community & Env Services
Blackpool Council,1055691,Norbain Sd Ltd,551800,I2928326,10/08/2020,19244.98,3207.5,CCTV,Cctv,3041,Other Materials,Community & Env Services
Blackpool Council,1055691,Norbain Sd Ltd,551801,I2928327,10/08/2020,2248.94,374.82,CCTV,Cctv,3041,Other Materials,Community & Env Services
Blackpool Council,1055691,Norbain Sd Ltd,551803,I2928329,07/08/2020,1700.4,283.4,CCTV,Cctv,3041,Other Materials,Community & Env Services
Blackpool Council,1055691,Norbain Sd Ltd,551804,I2928325,04/08/2020,4349.88,724.98,CCTV,Cctv,3041,Other Materials,Community & Env Services
Blackpool Council,1008756,Sunrise Medical Ltd,551805,21UI004647,21/08/2020,516,86,CWAN,Children With Additional Needs,3008,Educational Equipment,Children'S Services
Blackpool Council,1087234,Aitch Tools & Fasteners Ltd,551812,047338,05/08/2020,752,0,ZM0018,Highways & Engineering,9773,Orders Received Not Invoiced,Blackpool Services
Blackpool Council,1087234,Aitch Tools & Fasteners Ltd,551812,047338,05/08/2020,802.4,50.4,ZM0018,Highways & Engineering,9511A,Stocks Efin,Blackpool Services
Blackpool Council,1121728,Arrow County Supplies,551813,4844993,05/08/2020,309.8,0,ZM0018,Highways & Engineering,9773,Orders Received Not Invoiced,Blackpool Services
Blackpool Council,1121728,Arrow County Supplies,551813,4844993,05/08/2020,371.76,61.96,ZM0018,Highways & Engineering,9511A,Stocks Efin,Blackpool Services
Blackpool Council,1013705,Stadia Sports/ Broxap Limited,551814,INV264579,14/08/2020,2745,0,ZM0018,Highways & Engineering,9773,Orders Received Not Invoiced,Blackpool Services
Blackpool Council,1013705,Stadia Sports/ Broxap Limited,551814,INV264579,14/08/2020,3553.2,592.2,ZM0018,Highways & Engineering,9511A,Stocks Efin,Blackpool Services
Blackpool Council,1114036,Odlings Ltd T/A The Columbaria Co,551815,INV0072727,14/08/2020,547.2,91.2,CEMCRE,Cems Crems Etc,3454,Remove And Refix Memorials,Governance & Partnerships
Blackpool Council,1071702,Links Signs & Graphics Ltd,551819,LSGI29036,06/08/2020,3329.5,554.92,CATERG,Catering Services,3301,Printing,Community & Env Services
Blackpool Council,1055691,Norbain Sd Ltd,551820,I2928331,12/08/2020,9968.69,1661.45,CCTV,Cctv,3041,Other Materials,Community & Env Services
Blackpool Council,1006419,Tunstall Healthcare (Uk) Ltd,551821,3IN/10358194,19/08/2020,1869.6,311.6,APFBAB,Vitaline,3004,Operating Lease,Adult & Families
Blackpool Council,1055691,Norbain Sd Ltd,551824,I2928330,11/08/2020,3492.1,582.02,CCTV,Cctv,3041,Other Materials,Community & Env Services
Blackpool Council,1090442,D G Servicing Limited,551826,1690,21/08/2020,6236.4,0,CX4002,Disabled Facilities Grants,6501,Contract Payments,Capital - Adult Social Care
Blackpool Council,1090442,D G Servicing Limited,551827,1689,21/08/2020,3379.3,0,CX4002,Disabled Facilities Grants,6501,Contract Payments,Capital - Adult Social Care
Blackpool Council,1008525,Kingswood Office Supplies Limited,551838,380830,18/08/2020,8623.98,1437.33,PRKDEV,Parks Development,3041,Other Materials,Community & Env Services
Blackpool Council,1008525,Kingswood Office Supplies Limited,551841,380829,18/08/2020,6892.36,1148.73,PRKDEV,Parks Development,3041,Other Materials,Community & Env Services
Blackpool Council,1079921,Uk Point Of Sale Group Ltd,551844,0000803008,21/08/2020,403.11,67.19,LBF,Library Management,3020,Furniture - Purchase,Places
Blackpool Council,1076555,Uk Container Maintenance Limited,551845,39770,24/08/2020,2717.04,452.84,CWASTE,Commercial Waste,3041,Other Materials,Community & Env Services
Blackpool Council,1085729,W V Howe Limited,551847,270496,26/08/2020,459.36,76.56,CATERG,Catering Services,3052,Kitchen (Light) Equip-Purchase,Community & Env Services
Blackpool Council,1086788,Idox Software Ltd,551856,7029907,26/08/2020,540,90,EP8006,Directory Of Services Project,3535,Website Costs,Children'S Services
Blackpool Council,1119385,First 2 Help You Ltd,551857,407,05/08/2020,2592,432,HOMECA,Homecare,3006,Hire Of Equipment,Adult & Families
Blackpool Council,1094424,The Networking People,551860,SI108158,26/08/2020,663,110.5,TSICT,Transforming Schools Ict,3532,Comp-Running & License Costs,Resources
Blackpool Council,1121728,Arrow County Supplies,551861,4845191,05/08/2020,568.8,0,ZM0018,Highways & Engineering,9773,Orders Received Not Invoiced,Blackpool Services
Blackpool Council,1121728,Arrow County Supplies,551861,4845191,05/08/2020,682.56,113.76,ZM0018,Highways & Engineering,9511A,Stocks Efin,Blackpool Services
Blackpool Council,1094424,The Networking People,551862,SI108151,21/08/2020,7920,1320,CGRESO,Resources Schemes,6525,I.T. Hardware Purchase,Capital - Resources
Blackpool Council,1094424,The Networking People,551863,SI108152,21/08/2020,385.13,64.19,FGAA,Ict Corporate Services,3532,Comp-Running & License Costs,Resources
Blackpool Council,1094424,The Networking People,551864,SI108153,21/08/2020,3096.38,516.06,AER,Dual Use Properties,3531,Computer-H'Ware Purchase,Resources
Blackpool Council,1094424,The Networking People,551865,SI108154,26/08/2020,10492.78,1748.8,CGRESO,Resources Schemes,6525,I.T. Hardware Purchase,Capital - Resources
Blackpool Council,1094424,The Networking People,551866,SI108157,26/08/2020,1368.98,228.16,TSICT,Transforming Schools Ict,3532,Comp-Running & License Costs,Resources
Blackpool Council,1106132,Bridge Education And Training Ltd,551899,6935,04/08/2020,780,130,AEB,Buildings,0791,Temp/Relief (Bureau Staff),Resources
Blackpool Council,1106132,Bridge Education And Training Ltd,551899,6935,04/08/2020,810,135,AEF,Facilities,0791,Temp/Relief (Bureau Staff),Resources
Blackpool Council,1106132,Bridge Education And Training Ltd,551900,6915,05/08/2020,780,130,AEB,Buildings,0791,Temp/Relief (Bureau Staff),Resources
Blackpool Council,1106132,Bridge Education And Training Ltd,551900,6915,05/08/2020,810,135,AEF,Facilities,0791,Temp/Relief (Bureau Staff),Resources
Blackpool Council,1106132,Bridge Education And Training Ltd,551901,6887,06/08/2020,780,130,AEB,Buildings,0791,Temp/Relief (Bureau Staff),Resources
Blackpool Council,1106132,Bridge Education And Training Ltd,551901,6887,06/08/2020,810,135,AEF,Facilities,0791,Temp/Relief (Bureau Staff),Resources
Blackpool Council,1106132,Bridge Education And Training Ltd,551902,6885,07/08/2020,780,130,AEB,Buildings,0791,Temp/Relief (Bureau Staff),Resources
Blackpool Council,1106132,Bridge Education And Training Ltd,551902,6885,07/08/2020,810,135,AEF,Facilities,0791,Temp/Relief (Bureau Staff),Resources
Blackpool Council,1106132,Bridge Education And Training Ltd,551903,6861,07/08/2020,780,130,AEB,Buildings,0791,Temp/Relief (Bureau Staff),Resources
Blackpool Council,1106132,Bridge Education And Training Ltd,551903,6861,07/08/2020,810,135,AEF,Facilities,0791,Temp/Relief (Bureau Staff),Resources
Blackpool Council,1106132,Bridge Education And Training Ltd,551904,6830,19/08/2020,780,130,AEB,Buildings,0791,Temp/Relief (Bureau Staff),Resources
Blackpool Council,1106132,Bridge Education And Training Ltd,551904,6830,19/08/2020,810,135,AEF,Facilities,0791,Temp/Relief (Bureau Staff),Resources
Blackpool Council,1106132,Bridge Education And Training Ltd,551905,6673,19/08/2020,780,130,AEB,Buildings,0791,Temp/Relief (Bureau Staff),Resources
Blackpool Council,1106132,Bridge Education And Training Ltd,551905,6673,19/08/2020,810,135,AEF,Facilities,0791,Temp/Relief (Bureau Staff),Resources
Blackpool Council,1106132,Bridge Education And Training Ltd,551907,7030,04/08/2020,780,130,AEB,Buildings,0791,Temp/Relief (Bureau Staff),Resources
Blackpool Council,1106132,Bridge Education And Training Ltd,551907,7030,04/08/2020,810,135,AEF,Facilities,0791,Temp/Relief (Bureau Staff),Resources
Blackpool Council,1106132,Bridge Education And Training Ltd,551908,7013,19/08/2020,780,130,AEB,Buildings,0791,Temp/Relief (Bureau Staff),Resources
Blackpool Council,1106132,Bridge Education And Training Ltd,551908,7013,19/08/2020,810,135,AEF,Facilities,0791,Temp/Relief (Bureau Staff),Resources
Blackpool Council,1106132,Bridge Education And Training Ltd,551909,7064,19/08/2020,780,130,AEB,Buildings,0791,Temp/Relief (Bureau Staff),Resources
Blackpool Council,1106132,Bridge Education And Training Ltd,551909,7064,19/08/2020,810,135,AEF,Facilities,0791,Temp/Relief (Bureau Staff),Resources
Blackpool Council,1106523,1st Planner Ltd (Fac008),551910,RT445,24/08/2020,1980,330,CWAN,Children With Additional Needs,4403,Special Needs - Children,Children'S Services
Blackpool Council,1006419,Tunstall Healthcare (Uk) Ltd,551926,3IN/10358268,20/08/2020,264,44,APFBAB,Vitaline,3004,Operating Lease,Adult & Families
Blackpool Council,1094424,The Networking People,551930,SI108155,26/08/2020,3704,617.33,CGRESO,Resources Schemes,6525,I.T. Hardware Purchase,Capital - Resources
Blackpool Council,1105889,3d Environmental Limited,551931,BBC-0197,07/08/2020,270,45,PYEP,Environmental Protection,4501,Private Contractors,Community & Env Services
Blackpool Council,1006944,Siemens Financial Services Ltd,551936,244/20/0211513,07/08/2020,4575.03,762.5,APFBAB,Vitaline,4501,Private Contractors,Adult & Families
Blackpool Council,1090628,The Furniture Recycling Group,551937,INV22994,11/08/2020,323.53,53.92,CWASTE,Commercial Waste,4514,Contract 'E',Community & Env Services
Blackpool Council,1119387,REDACTED PERSONAL DATA,551938,007,03/08/2020,266,0,ALEARN,Adult Learning,0917,Other Exps,Places
Blackpool Council,1057663,Wilde Recruitment Ltd,551939,36625,21/08/2020,517.86,86.31,CTAHHA,Tramway Emergency Works,6501,Contract Payments,Capital - Commnctn & Regen
Blackpool Council,1010667,Argos Business Solutions Ltd,551940,01876205,07/08/2020,1176,196,FC1802,Social Fund - Client,5210,Community Care Support,Resources
Blackpool Council,1058425,Sp Services (Uk) Ltd,551942,984638,25/08/2020,283.2,47.2,LM3070,Quality Assurance Team,1601,Consumable Supplies,Adult & Families
Blackpool Council,1025240,Key Engineering Supplies Ltd,551943,29944,10/08/2020,4800,800,MTE,Undefined Age Group,5401,Aids To Daily Living,Adult & Families
Blackpool Council,1025240,Key Engineering Supplies Ltd,551945,29951,03/08/2020,325.44,54.24,LEISUR,Leisure Management,3031,Cleaning Equipment - Purchase,Community & Env Services
Blackpool Council,1025240,Key Engineering Supplies Ltd,551949,29942,05/08/2020,6975,0,ZM0018,Highways & Engineering,9773,Orders Received Not Invoiced,Blackpool Services
Blackpool Council,1025240,Key Engineering Supplies Ltd,551949,29942,05/08/2020,8370,1395,ZM0018,Highways & Engineering,9511A,Stocks Efin,Blackpool Services
Blackpool Council,1025240,Key Engineering Supplies Ltd,551952,29949,04/08/2020,986.4,164.4,AER,Dual Use Properties,3012,Other Equipment,Resources
Blackpool Council,1107600,Click 4 Assistance Ltd,551953,INV057810,27/08/2020,349.8,58.3,PBF,Communications,3535,Website Costs,Places
Blackpool Council,1018184,Blackpool Skip Hire Ltd,551954,023533,05/08/2020,707.52,117.92,PJHA,"Depot, Management & Admin",3006,Hire Of Equipment,Places
Blackpool Council,1036448,Lambert Smith Hampton,551955,ARINV/00386484,06/08/2020,3956.4,659.4,PLAAAA,Dev Plang (Incl Plang Policy),0981,Professional Fees,Places
Blackpool Council,1036448,Lambert Smith Hampton,551956,ARINV/00397310,06/08/2020,5100,850,PLBAAA,Development Control,3401,General Services,Places
Blackpool Council,1049304,Insight Direct (Uk) Ltd,551961,4911895,14/08/2020,409.2,68.2,FGAA,Ict Corporate Services,3532,Comp-Running & License Costs,Resources
Blackpool Council,1049304,Insight Direct (Uk) Ltd,551973,4905165,13/08/2020,3150.5,525.09,FGAA,Ict Corporate Services,3532,Comp-Running & License Costs,Resources
Blackpool Council,1117351,Open Text,551974,9001947340,27/08/2020,1968,328,CTAHHA,Tramway Emergency Works,6506,Consultants Fees,Capital - Commnctn & Regen
Blackpool Council,1102434,Inform Cpi Limited,551982,AL61651,05/08/2020,1920,320,FC2011,Nndr Collection Costs,3401,General Services,Budgets Outside Cash Limits
Blackpool Council,1119493,Centerprise International Ltd,551983,90243659,28/08/2020,468,78,CS0739,Ict Refresh,6525,I.T. Hardware Purchase,Capital - Resources
Blackpool Council,1006773,Stri  Ltd,551987,IW05047,25/08/2020,261857.59,43642.93,CGICAD,Enterprise Zone,6506,Consultants Fees,Capital - Commnctn & Regen
Blackpool Council,1009305,Fylde Hydraulics Ltd,551988,116684,07/08/2020,1101.6,183.6,PJLA,Maintenance,3041,Other Materials,Places
Blackpool Council,1026676,Redman Smith Ltd ( Plastics Blackpool),551998,1433,05/08/2020,360,0,ZM0018,Highways & Engineering,9773,Orders Received Not Invoiced,Blackpool Services
Blackpool Council,1026676,Redman Smith Ltd ( Plastics Blackpool),551998,1433,05/08/2020,360,0,ZM0018,Highways & Engineering,9511A,Stocks Efin,Blackpool Services
Blackpool Council,1017722,Terrys Cut Price Carpets Ltd,552056,935,07/08/2020,318,53,FC1802,Social Fund - Client,5210,Community Care Support,Resources
Blackpool Council,1006405,Trevors Warehouses Limited,552057,97576,05/08/2020,967.99,0,CATERG,Catering Services,4501,Private Contractors,Community & Env Services
Blackpool Council,1010069,Caterware Ltd,552058,INV98159,06/08/2020,6103.8,1017.3,CATERG,Catering Services,3050,Kitchen (Heavy) Equip-Purchase,Community & Env Services
Blackpool Council,1007952,Morris Quality Bakers,552063,20979466,05/08/2020,310.5,0,CATERG,Catering Services,4501,Private Contractors,Community & Env Services
Blackpool Council,1076481,Ribble Farm Fare Ltd,552066,WI940470,05/08/2020,957.75,0,CATERG,Catering Services,4501,Private Contractors,Community & Env Services
Blackpool Council,1115493,Kennet Equipment Leasing Ltd,552069,MI/0121244,12/08/2020,282.37,47.06,CATERG,Catering Services,3401,General Services,Community & Env Services
Blackpool Council,1103450,Blackpool Entertainment Company Limited,552070,INV005265,06/08/2020,2080.01,346.67,AEB,Buildings,1301,Rent & Hire Of Premises,Resources
Blackpool Council,1103450,Blackpool Entertainment Company Limited,552071,INV005266,06/08/2020,690.6,115.1,FMAK,Acquisitions 9/10,1301,Rent & Hire Of Premises,Places
Blackpool Council,1121796,Smart Tech Security,552072,10006,06/08/2020,22429.5,3738.25,CGTAAA,Leisure Assets,6501,Contract Payments,Capital - Commnctn & Regen
Blackpool Council,1024186,Solon Security,552074,SI200007389,28/08/2020,1192.32,198.72,PYSA,Community Safety,3313,General Expenses,Community & Env Services
Blackpool Council,1066729,Equis Associates Limited,552075,12-66-PG-BC,14/08/2020,17400,2900,CTAHHI,Tramway Extention,6506,Consultants Fees,Capital - Commnctn & Regen
Blackpool Council,1090774,Richardson Traction Limited,552077,21568,07/08/2020,540,90,PJAA,"Erection, Operation & Dismantl",3511,Postages,Places
Blackpool Council,1090774,Richardson Traction Limited,552078,21567,07/08/2020,960,160,PJAA,"Erection, Operation & Dismantl",3006,Hire Of Equipment,Places
Blackpool Council,1099572,Yasuda 3d-Art,552079,0047,05/08/2020,2285,0,PJNA,New Features / Schemes - C & E,3308,Servicing,Places
Blackpool Council,1108432,Motionlab Marketing Limited,552080,ML1:4393,13/08/2020,816,136,PBF,Communications,0921,Advertising (Staff Vac.),Places
Blackpool Council,1006099,Blackpool Teaching Hospitals Nhs Ft,552082,1110055119,07/08/2020,6108.9,1018.15,PUBH18,Stop Smoking Services & Interv,4501,Private Contractors,Public Health
Blackpool Council,1004960,Renaissance Uk Limited,552083,1268,03/08/2020,3660,0,PU2051,Ph Pcc Funding,4501,Private Contractors,Public Health
Blackpool Council,1116288,Amas Ltd - Common Receipts Account,552086,0751-1499239,03/08/2020,4528.35,0,HJI,Growth Investments,1301,Rent & Hire Of Premises,Places
Blackpool Council,1116288,Amas Ltd - Common Receipts Account,552088,0751-1516442,06/08/2020,21875.4,0,HJI,Growth Investments,1801,Premises Insurance,Places
Blackpool Council,1044964,Marketing Lancashire,552090,1455,28/08/2020,7800,1300,PPA,Head Of Tourism Services,3401,General Services,Places
Blackpool Council,1011714,Michael Hope Haulage Limited,552095,001482,03/08/2020,2112,352,SCHEME,Highways Schemes,1012,Premises Maint-Priv.Contractor,Community & Env Services
Blackpool Council,1013064,Tarmac Lafarge Trading Limited,552098,9042042188,07/08/2020,288.51,48.08,ENGINE,Engineering,3041,Other Materials,Community & Env Services
Blackpool Council,1011970,A1 Streamline Road Markings Ltd,552110,5628,03/08/2020,1687.21,281.19,ENGINE,Engineering,1012,Premises Maint-Priv.Contractor,Community & Env Services
Blackpool Council,1082240,E-On Uk Sustainable Energy Services Ltd,552111,034016,06/08/2020,1065.5,177.58,SCHEME,Highways Schemes,1012,Premises Maint-Priv.Contractor,Community & Env Services
Blackpool Council,1086156,Water Saving Techniques Limited,552112,4796,11/08/2020,6480,1080,PARADE,Parades & Seawall,1012,Premises Maint-Priv.Contractor,Community & Env Services
Blackpool Council,1114704,Morson Human Resources Ltd,552114,HS299061,05/08/2020,2310,385,CTAHHI,Tramway Extention,6506,Consultants Fees,Capital - Commnctn & Regen
Blackpool Council,1011369,Lancashire County Council,552115,5200207337,03/08/2020,298899,0,FR5001,Concessionary Fares,3401,General Services,Budgets Outside Cash Limits
Blackpool Council,1011369,Lancashire County Council,552116,5200207325,03/08/2020,4056,0,FR5001,Concessionary Fares,3401,General Services,Budgets Outside Cash Limits
Blackpool Council,1011369,Lancashire County Council,552117,5200205966,03/08/2020,2584,0,FR5001,Concessionary Fares,3401,General Services,Budgets Outside Cash Limits
Blackpool Council,1011369,Lancashire County Council,552118,5200205961,03/08/2020,271208,0,FR5001,Concessionary Fares,3401,General Services,Budgets Outside Cash Limits
Blackpool Council,1011369,Lancashire County Council,552119,5200204513,03/08/2020,309708,0,FR5001,Concessionary Fares,3401,General Services,Budgets Outside Cash Limits
Blackpool Council,1011369,Lancashire County Council,552120,5200201594,03/08/2020,344675,0,FR5001,Concessionary Fares,3401,General Services,Budgets Outside Cash Limits
Blackpool Council,1011369,Lancashire County Council,552121,5200203086,03/08/2020,333607,0,FR5001,Concessionary Fares,3401,General Services,Budgets Outside Cash Limits
Blackpool Council,1011369,Lancashire County Council,552122,5200209349,03/08/2020,269625,0,FR5001,Concessionary Fares,3401,General Services,Budgets Outside Cash Limits
Blackpool Council,1011369,Lancashire County Council,552123,5200211992,03/08/2020,292162,0,FR5001,Concessionary Fares,3401,General Services,Budgets Outside Cash Limits
Blackpool Council,1011369,Lancashire County Council,552124,5200210661,03/08/2020,286387,0,FR5001,Concessionary Fares,3401,General Services,Budgets Outside Cash Limits
Blackpool Council,1121838,Cordant Recruitment Ltd T/A Cordant People,552125,727585,03/08/2020,453.85,75.64,PJHA,"Depot, Management & Admin",0191,Wages-Other,Places
Blackpool Council,1082067,Squire Patton Boggs (Uk) Llp,552126,2673494,24/08/2020,57731.42,9621.9,CTAHHA,Tramway Emergency Works,6506,Consultants Fees,Capital - Commnctn & Regen
Blackpool Council,1044930,Duncan Ross Land Drainage Ltd,552127,INV-4289,28/08/2020,31630.75,5271.79,PRKDEV,Parks Development,4501,Private Contractors,Community & Env Services
Blackpool Council,1011970,A1 Streamline Road Markings Ltd,552128,5653,03/08/2020,3791.25,631.89,ENGINE,Engineering,1012,Premises Maint-Priv.Contractor,Community & Env Services
Blackpool Council,1063597,Nga (National Governance Association),552196,80935,28/08/2020,305,0,ER3499,Governors' Services,3711,Subscriptions,Governance & Partnerships
Blackpool Council,1120977,Castle Mile Group Ltd,552197,INV-0423,04/08/2020,600,100,AEB,Buildings,4004,Management Fees,Resources
Blackpool Council,1120977,Castle Mile Group Ltd,552197,INV-0423,04/08/2020,2640,440,AER,Dual Use Properties,4004,Management Fees,Resources
Blackpool Council,1008141,Martin Brown Paints Ltd,552198,HA118356,06/08/2020,340.32,0,ZM0018,Highways & Engineering,9773,Orders Received Not Invoiced,Blackpool Services
Blackpool Council,1008141,Martin Brown Paints Ltd,552198,HA118356,06/08/2020,408.38,68.06,ZM0018,Highways & Engineering,9511A,Stocks Efin,Blackpool Services
Blackpool Council,1082067,Squire Patton Boggs (Uk) Llp,552202,2674162,27/08/2020,10157.4,1692.9,CGTBBB,Conference Centre,6506,Consultants Fees,Capital - Commnctn & Regen
Blackpool Council,1007345,Mobile Mini Uk Limited,552209,7001696583,14/08/2020,900.96,150.16,SCLEAN,Street Cleaning,4501,Private Contractors,Community & Env Services
Blackpool Council,1106104,Bergmann Direct Ltd,552210,23215,04/08/2020,1560,260,SCLEAN,Street Cleaning,2201,Contract Hire,Community & Env Services
Blackpool Council,1012071,Bethell Construction Limited,552211,16703,04/08/2020,1973.82,328.97,ENGINE,Engineering,1012,Premises Maint-Priv.Contractor,Community & Env Services
Blackpool Council,1011970,A1 Streamline Road Markings Ltd,552213,5726,11/08/2020,268.8,44.8,ENGINE,Engineering,1012,Premises Maint-Priv.Contractor,Community & Env Services
Blackpool Council,1008026,Metal Express (Fac083),552219,8249,10/08/2020,465,77.5,PJNA,New Features / Schemes - C & E,3041,Other Materials,Places
Blackpool Council,1008026,Metal Express (Fac083),552220,8248,10/08/2020,255,42.5,PJNA,New Features / Schemes - C & E,3041,Other Materials,Places
Blackpool Council,1011896,Capita Business Services Ltd,552226,6003999552,05/08/2020,2040,340,FCACA,Benefits - Admin,3401,General Services,Resources
Blackpool Council,1011896,Capita Business Services Ltd,552226,6003999552,05/08/2020,4080,680,FBBEA,"Income, Recovery & Debtors",3401,General Services,Resources
Blackpool Council,1025240,Key Engineering Supplies Ltd,552228,30024,19/08/2020,2000,0,ZM0018,Highways & Engineering,9773,Orders Received Not Invoiced,Blackpool Services
Blackpool Council,1025240,Key Engineering Supplies Ltd,552228,30024,19/08/2020,2400,400,ZM0018,Highways & Engineering,9511A,Stocks Efin,Blackpool Services
Blackpool Council,1079488,Recycling Lives Ltd,552233,238104,04/08/2020,704.88,117.48,CWASTE,Commercial Waste,4514,Contract 'E',Community & Env Services
Blackpool Council,1079864,Glory Global Solutions (International) Ltd,552243,CB20000123,28/08/2020,6420,1070,PARADM,Parking Administration,3003,Equipt-Mtce Repairs,Budgets Outside Cash Limits
Blackpool Council,1023759,The Ashley Foundation,552245,012,05/08/2020,3978.17,0,HOPB,Housing Options,4004,Management Fees,Chief Executive
Blackpool Council,1061376,Knight Kavanagh & Page Limited,552248,5490,19/08/2020,3726,621,LEISUR,Leisure Management,3801,Other Expenses,Community & Env Services
Blackpool Council,1061376,Knight Kavanagh & Page Limited,552249,5489,14/08/2020,6212.22,1035.37,LEISUR,Leisure Management,3801,Other Expenses,Community & Env Services
Blackpool Council,1061376,Knight Kavanagh & Page Limited,552250,5444,05/08/2020,4437.3,739.55,LEISUR,Leisure Management,3801,Other Expenses,Community & Env Services
Blackpool Council,1006944,Siemens Financial Services Ltd,552251,212/20/0223393,27/08/2020,1375.68,229.28,FCADA,Customer Services,3801,Other Expenses,Resources
Blackpool Council,1025240,Key Engineering Supplies Ltd,552254,30090,05/08/2020,695.04,0,ZM0018,Highways & Engineering,9773,Orders Received Not Invoiced,Blackpool Services
Blackpool Council,1025240,Key Engineering Supplies Ltd,552254,30090,05/08/2020,834.05,139.01,ZM0018,Highways & Engineering,9511A,Stocks Efin,Blackpool Services
Blackpool Council,1026738,Cassidy + Ashton,552264,18098,28/08/2020,2940,490,CGICAD,Enterprise Zone,6506,Consultants Fees,Capital - Commnctn & Regen
Blackpool Council,1117348,Huws Gray Ltd,552302,IA534100,28/08/2020,2073.22,345.54,SCHEME,Highways Schemes,3041,Other Materials,Community & Env Services
Blackpool Council,1087234,Aitch Tools & Fasteners Ltd,552303,047835,05/08/2020,420,0,ZM0018,Highways & Engineering,9773,Orders Received Not Invoiced,Blackpool Services
Blackpool Council,1087234,Aitch Tools & Fasteners Ltd,552303,047835,05/08/2020,504,84,ZM0018,Highways & Engineering,9511A,Stocks Efin,Blackpool Services
Blackpool Council,1087683,A & C Weber Uk Ltd,552307,108558,28/08/2020,4384.8,730.8,CWASTE,Commercial Waste,3041,Other Materials,Community & Env Services
Blackpool Council,1119761,Janet Carroll,552308,04/J20/TAS011,05/08/2020,3400,0,OPAREA,Opportunity Areas,4515,Contract Services,Places
Blackpool Council,1007400,Promotional Candy Company Limited,552309,17941,05/08/2020,420,70,JEA,Senior Management,3401,General Services,Children'S Services
Blackpool Council,1009260,G S Brown,552311,10177,05/08/2020,1296,0,TRADUL,Intergrated Transport Adults,2201,Contract Hire,Community & Env Services
Blackpool Council,1009260,G S Brown,552312,10178,05/08/2020,1296,0,TRADUL,Intergrated Transport Adults,2201,Contract Hire,Community & Env Services
Blackpool Council,1019622,Stephen  Floweth,552313,HT0064,05/08/2020,756.8,0,TRCHIL,Integrated Transport Children,2201,Contract Hire,Community & Env Services
Blackpool Council,1019622,Stephen  Floweth,552314,HT0065,05/08/2020,545.6,0,TRCHIL,Integrated Transport Children,2201,Contract Hire,Community & Env Services
Blackpool Council,1008039,Woodswaste Ltd,552316,31966,18/08/2020,490.94,81.82,CEMCRE,Cems Crems Etc,3801,Other Expenses,Governance & Partnerships
Blackpool Council,1006944,Siemens Financial Services Ltd,552317,212/20/0224215,28/08/2020,303.12,50.52,FCADA,Customer Services,3801,Other Expenses,Resources
Blackpool Council,1117945,Valtech Limited,552319,UKSI10307,26/08/2020,388.02,64.67,FC1404,Blue Badge Reform,3401,General Services,Resources
Blackpool Council,1117713,Allied Publicity Services (Manchester) Ltd,552320,C41687,26/08/2020,647.64,107.94,FC1404,Blue Badge Reform,3401,General Services,Resources
Blackpool Council,1094424,The Networking People,552321,SI108162,28/08/2020,25930.8,4321.8,CGRESO,Resources Schemes,6525,I.T. Hardware Purchase,Capital - Resources
Blackpool Council,1099572,Yasuda 3d-Art,552322,0048,10/08/2020,2250,0,PJNA,New Features / Schemes - C & E,3308,Servicing,Places
Blackpool Council,1123126,Matt Haylett T/A Mh Lighting,552323,204,13/08/2020,1050,0,PJRA,Electrical Infra - Places,3308,Servicing,Places
Blackpool Council,1113624,Fox Brothers (Lancashire) Ltd,552324,51058,21/08/2020,420,70,PJAA,"Erection, Operation & Dismantl",3041,Other Materials,Places
Blackpool Council,1119933,Mitchell Bailey T/A Pda Technical,552325,265,12/08/2020,1120,0,PJRA,Electrical Infra - Places,3308,Servicing,Places
Blackpool Council,1050319,Perspex Distribution Ltd,552329,960197432,28/08/2020,356.14,59.36,PJNA,New Features / Schemes - C & E,3041,Other Materials,Places
Blackpool Council,1006449,Tmp (Uk) Ltd,552338,100001247611,28/08/2020,283.97,47.33,TRA,Traffic Management,4501,Private Contractors,Community & Env Services
Blackpool Council,1053261,Ad Systems (Uk) Limited,552339,INV-6964,06/08/2020,4368,728,CCTV,Cctv,1012,Premises Maint-Priv.Contractor,Community & Env Services
Blackpool Council,1011896,Capita Business Services Ltd,552348,6004000472,10/08/2020,16238.4,2706.4,FCACA,Benefits - Admin,3533,Computer S/W Purchases,Resources
Blackpool Council,1094424,The Networking People,552349,SI108164,28/08/2020,2561.81,426.97,FGAA,Ict Corporate Services,3532,Comp-Running & License Costs,Resources
Blackpool Council,1055691,Norbain Sd Ltd,552354,I2930661,19/08/2020,12074.69,2012.45,CCTV,Cctv,3041,Other Materials,Community & Env Services
Blackpool Council,1110996,Philip Holmes T/A Dragon Creative,552358,101482,10/08/2020,540,0,PJW,Management - Places - Illumina,3401,General Services,Places
Blackpool Council,1113243,Mclaughlin & Harvey Ltd,552408,23180,10/08/2020,186063.1,31010.52,CGTBBB,Conference Centre,6501,Contract Payments,Capital - Commnctn & Regen
Blackpool Council,1113243,Mclaughlin & Harvey Ltd,552408,23180,10/08/2020,4795.41,0,ZF0001,"Insurance,Dso,Banking",97B6,Retention Monies - Cap Trsfr,Total Reconciliations
Blackpool Council,1087316,Lovell Partnership Ltd,552409,INTERIM 46,11/08/2020,61989.84,0,ZH0001,Housing Revenue Account,97A6,Retention Monies - Capital,Housing Revenue Account
Blackpool Council,1087316,Lovell Partnership Ltd,552409,INTERIM 46,11/08/2020,76989.84,0,CXC11,Site Development,6501,Contract Payments,Capital - Chief Executive
Blackpool Council,1011923,Rp Tyson Construction Ltd,552410,IN2970,11/08/2020,11401.63,0,ZH0001,Housing Revenue Account,97B6,Retention Monies - Cap Trsfr,Housing Revenue Account
Blackpool Council,1011923,Rp Tyson Construction Ltd,552410,IN2970,11/08/2020,368652.92,0,CXC11,Site Development,6501,Contract Payments,Capital - Chief Executive
Blackpool Council,1121723,Askam Civil Engineering Ltd,552411,19/140,11/08/2020,169380.88,28230.15,CN2016,Carleton Crem Works 2018-20,6501,Contract Payments,Capital - Governance & Partner
Blackpool Council,1121723,Askam Civil Engineering Ltd,552411,19/140,11/08/2020,7428.99,0,ZF0001,"Insurance,Dso,Banking",97B6,Retention Monies - Cap Trsfr,Total Reconciliations
Blackpool Council,1026738,Cassidy + Ashton,552416,18096,28/08/2020,12000,2000,FMAK,Acquisitions 9/10,3801,Other Expenses,Places
Blackpool Council,1010667,Argos Business Solutions Ltd,552423,01857101,21/08/2020,3279.98,546.66,AEM,Property Services Managements,1012,Premises Maint-Priv.Contractor,Resources
Blackpool Council,1111234,Cbre Ltd,552427,50CP100005127,21/08/2020,18000,3000,DDC,Partnerships & Business Dev,3413,Consultants,Places
Blackpool Council,1076549,REDACTED PERSONAL DATA,552431,0001,14/08/2020,1250,0,AHG,Art Gallery Summary,3456,Payment To Artists,Places
Blackpool Council,1013064,Tarmac Lafarge Trading Limited,552433,9042078149,14/08/2020,799.99,133.33,ENGINE,Engineering,3041,Other Materials,Community & Env Services
Blackpool Council,1013064,Tarmac Lafarge Trading Limited,552434,9042078147,14/08/2020,1065.36,177.56,ENGINE,Engineering,3041,Other Materials,Community & Env Services
Blackpool Council,1064236,Lifestyle Media Group Ltd,552436,104512,14/08/2020,319.68,53.28,PRM,Publications,3301,Printing,Places
Blackpool Council,1025240,Key Engineering Supplies Ltd,552437,30188,17/08/2020,435.54,0,ZM0018,Highways & Engineering,9773,Orders Received Not Invoiced,Blackpool Services
Blackpool Council,1025240,Key Engineering Supplies Ltd,552437,30188,17/08/2020,435.54,0,ZM0018,Highways & Engineering,9511A,Stocks Efin,Blackpool Services
Blackpool Council,1106892,REDACTED PERSONAL DATA,552438,00004,06/08/2020,500,0,BEACHP,Beach Patrol,3605,Confs & Short Courses,Places
Blackpool Council,1117763,Street Angels - Angels Rest,552440,05,06/08/2020,400,0,HOPB,Housing Options,1202,Electricity,Chief Executive
Blackpool Council,1121796,Smart Tech Security,552442,10008,20/08/2020,22429.5,3738.25,CGTAAA,Leisure Assets,6501,Contract Payments,Capital - Commnctn & Regen
Blackpool Council,1012789,Advanced Business Solutions (Fka Coa),552443,ARBK/99054905,28/08/2020,1365.58,227.6,FBBCA,Accountancy,3532,Comp-Running & License Costs,Resources
Blackpool Council,1071702,Links Signs & Graphics Ltd,552445,LSGI29808,14/08/2020,374.4,62.4,AHG,Art Gallery Summary,3301,Printing,Places
Blackpool Council,1071702,Links Signs & Graphics Ltd,552446,LSGI29654,14/08/2020,480,80,AHG,Art Gallery Summary,3301,Printing,Places
Blackpool Council,1011714,Michael Hope Haulage Limited,552452,001484,07/08/2020,1689.6,281.6,SCHEME,Highways Schemes,1012,Premises Maint-Priv.Contractor,Community & Env Services
Blackpool Council,1011714,Michael Hope Haulage Limited,552453,001483,07/08/2020,1689.6,281.6,SCHEME,Highways Schemes,1012,Premises Maint-Priv.Contractor,Community & Env Services
Blackpool Council,1104562,Accudata Limited,552455,20496,26/08/2020,294,49,ENGINE,Engineering,3041,Other Materials,Community & Env Services
Blackpool Council,1121728,Arrow County Supplies,552461,4846346,10/08/2020,309.8,0,ZM0018,Highways & Engineering,9773,Orders Received Not Invoiced,Blackpool Services
Blackpool Council,1121728,Arrow County Supplies,552461,4846346,10/08/2020,637.2,106.2,ZM0018,Highways & Engineering,9511A,Stocks Efin,Blackpool Services
Blackpool Council,1010138,C Cabs,552465,06228,10/08/2020,291.2,0,TRCHIL,Integrated Transport Children,2201,Contract Hire,Community & Env Services
Blackpool Council,1010138,C Cabs,552466,06222,10/08/2020,540,0,TRCHIL,Integrated Transport Children,2201,Contract Hire,Community & Env Services
Blackpool Council,1010138,C Cabs,552467,06221,10/08/2020,312,0,TRCHIL,Integrated Transport Children,2201,Contract Hire,Community & Env Services
Blackpool Council,1010138,C Cabs,552468,06224,10/08/2020,416,0,TRCHIL,Integrated Transport Children,2201,Contract Hire,Community & Env Services
Blackpool Council,1010138,C Cabs,552469,06234,10/08/2020,750,0,TRCHIL,Integrated Transport Children,2201,Contract Hire,Community & Env Services
Blackpool Council,1010138,C Cabs,552470,06230,10/08/2020,480,0,TRCHIL,Integrated Transport Children,2201,Contract Hire,Community & Env Services
Blackpool Council,1010138,C Cabs,552471,06225,10/08/2020,537.6,0,TRCHIL,Integrated Transport Children,2201,Contract Hire,Community & Env Services
Blackpool Council,1010138,C Cabs,552472,06229,10/08/2020,547.4,0,TRCHIL,Integrated Transport Children,2201,Contract Hire,Community & Env Services
Blackpool Council,1010138,C Cabs,552473,06233,10/08/2020,468,0,TRADUL,Intergrated Transport Adults,2201,Contract Hire,Community & Env Services
Blackpool Council,1010138,C Cabs,552474,06231,10/08/2020,720,0,TRCHIL,Integrated Transport Children,2201,Contract Hire,Community & Env Services
Blackpool Council,1010138,C Cabs,552475,06232,10/08/2020,520,0,TRCHIL,Integrated Transport Children,2201,Contract Hire,Community & Env Services
Blackpool Council,1010138,C Cabs,552476,06223,10/08/2020,400,0,TRCHIL,Integrated Transport Children,2201,Contract Hire,Community & Env Services
Blackpool Council,1082206,Fylde Promotional Merchandise,552482,100001098,18/08/2020,702,117,PRKOP1,Parks Operational Manager  1,3041,Other Materials,Community & Env Services
Blackpool Council,1057261,Experian Ltd,552483,HEX67000700821,28/08/2020,4443.24,740.54,APFBAB,Vitaline,4501,Private Contractors,Adult & Families
Blackpool Council,1107790,Taylek Ltd,552489,INV-16137,20/08/2020,436.13,72.69,PJOA,Commercial & Marketing,3041,Other Materials,Places
Blackpool Council,1107790,Taylek Ltd,552490,INV-16129,19/08/2020,1121.47,186.91,PJOA,Commercial & Marketing,3041,Other Materials,Places
Blackpool Council,1107790,Taylek Ltd,552492,INV-16053,12/08/2020,734.4,122.4,PJLA,Maintenance,6443,Equipment-Other,Places
Blackpool Council,1107790,Taylek Ltd,552494,INV-15974,07/08/2020,354.48,59.08,PJOA,Commercial & Marketing,3041,Other Materials,Places
Blackpool Council,1107790,Taylek Ltd,552496,INV-16148,21/08/2020,351.62,58.6,PJOA,Commercial & Marketing,3041,Other Materials,Places
Blackpool Council,1010667,Argos Business Solutions Ltd,552506,01877623,14/08/2020,961.26,160.21,FC1802,Social Fund - Client,5210,Community Care Support,Resources
Blackpool Council,1010138,C Cabs,552507,06227,10/08/2020,496.8,0,TRCHIL,Integrated Transport Children,2201,Contract Hire,Community & Env Services
Blackpool Council,1010138,C Cabs,552508,06226,10/08/2020,620,0,TRCHIL,Integrated Transport Children,2201,Contract Hire,Community & Env Services
Blackpool Council,1102016,Critiqom Limited,552509,058586,07/08/2020,1012.01,168.67,FBBEA,"Income, Recovery & Debtors",3301,Printing,Resources
Blackpool Council,1102016,Critiqom Limited,552510,058587,07/08/2020,6547.84,1091.31,FBBEA,"Income, Recovery & Debtors",3511,Postages,Resources
Blackpool Council,1057663,Wilde Recruitment Ltd,552511,36650,28/08/2020,517.86,86.31,CTAHHA,Tramway Emergency Works,6501,Contract Payments,Capital - Commnctn & Regen
Blackpool Council,1011730,Metric Group Limited,552515,C55614,07/08/2020,14517.84,2419.64,PARADM,Parking Administration,2002,Repairs And Maintenance,Budgets Outside Cash Limits
Blackpool Council,1026738,Cassidy + Ashton,552556,18099,28/08/2020,540,90,CGICAD,Enterprise Zone,6527,Marketing,Capital - Commnctn & Regen
Blackpool Council,1076481,Ribble Farm Fare Ltd,552562,WI940580,11/08/2020,1085.08,0,CATERG,Catering Services,4501,Private Contractors,Community & Env Services
Blackpool Council,1007952,Morris Quality Bakers,552563,20981185,11/08/2020,254.31,0,CATERG,Catering Services,4501,Private Contractors,Community & Env Services
Blackpool Council,1105580,Buttress Architects Limited,552567,15050,24/08/2020,6780,1130,CGTACA,Museum,6506,Consultants Fees,Capital - Commnctn & Regen
Blackpool Council,1113491,Brazen,552568,13913,28/08/2020,732,122,AHHBA,Blackpool Museum,3315,Marketing,Places
Blackpool Council,1114727,Elliott Wood Partnership Ltd,552569,INV011781,11/08/2020,6882.76,1147.13,CGTBBB,Conference Centre,6501,Contract Payments,Capital - Commnctn & Regen
Blackpool Council,1057581,Nisbets,552575,21456152,27/08/2020,251.25,41.87,PJNA,New Features / Schemes - C & E,3041,Other Materials,Places
Blackpool Council,1011719,Allcool (Nw) Ltd,552577,3797,11/08/2020,10806.24,1801.04,PJLA,Maintenance,3308,Servicing,Places
Blackpool Council,1078235,Springboard Research Limited,552586,2015-25841,07/08/2020,2173.5,362.25,PPA,Head Of Tourism Services,3401,General Services,Places
Blackpool Council,1111939,Aaeto,552587,INV-0991,28/08/2020,564,94,ALEARN,Adult Learning,3711,Subscriptions,Places
Blackpool Council,1058510,Lifeline Language Services Ltd,552588,1020103,28/08/2020,272.16,45.36,JEA,Senior Management,5554,Personal Needs (Lca Only),Children'S Services
Blackpool Council,1116244,Linda Clegg Consulting Ltd,552589,018,28/08/2020,1800,300,JEA,Senior Management,3401,General Services,Children'S Services
Blackpool Council,1009813,Cpk Welding & Eng Supplies Ltd,552598,1083,13/08/2020,285,47.5,PJLA,Maintenance,3041,Other Materials,Places
Blackpool Council,1113355,Jonathan Nielsen T/A Custom Auto Fabrications,552599,1001,13/08/2020,4860,810,PJNA,New Features / Schemes - C & E,3308,Servicing,Places
Blackpool Council,1106132,Bridge Education And Training Ltd,552602,7118,19/08/2020,780,130,AEB,Buildings,0791,Temp/Relief (Bureau Staff),Resources
Blackpool Council,1106132,Bridge Education And Training Ltd,552602,7118,19/08/2020,810,135,AEF,Facilities,0791,Temp/Relief (Bureau Staff),Resources
Blackpool Council,1106132,Bridge Education And Training Ltd,552603,7121,19/08/2020,780,130,AEB,Buildings,0791,Temp/Relief (Bureau Staff),Resources
Blackpool Council,1106132,Bridge Education And Training Ltd,552603,7121,19/08/2020,810,135,AEF,Facilities,0791,Temp/Relief (Bureau Staff),Resources
Blackpool Council,1055691,Norbain Sd Ltd,552604,I2931957,19/08/2020,3773.34,628.89,CCTV,Cctv,3041,Other Materials,Community & Env Services
Blackpool Council,1122384,Electric Center,552606,754-033330,17/08/2020,660,110,MTE,Undefined Age Group,5401,Aids To Daily Living,Adult & Families
Blackpool Council,1114704,Morson Human Resources Ltd,552609,HS300237,12/08/2020,2310,385,CTAHHI,Tramway Extention,6506,Consultants Fees,Capital - Commnctn & Regen
Blackpool Council,1110996,Philip Holmes T/A Dragon Creative,552610,101475,17/08/2020,1177.6,0,PJNA,New Features / Schemes - C & E,3308,Servicing,Places
Blackpool Council,1099512,Dga (Uk) Ltd,552612,SIN210102,14/08/2020,43512,7252,CGTBBB,Conference Centre,6506,Consultants Fees,Capital - Commnctn & Regen
Blackpool Council,1103692,Calico Enterprise Limited,552619,SINV20/00002441,28/08/2020,8079.65,1346.61,DOMPFI,Domestic Waste & Waste Pfi,4501,Private Contractors,Community & Env Services
Blackpool Council,1103692,Calico Enterprise Limited,552620,SINV20/00002442,28/08/2020,33995.71,4790.95,DOMPFI,Domestic Waste & Waste Pfi,4501,Private Contractors,Community & Env Services
Blackpool Council,1007487,Post Office Ltd,552686,094BPOOL040820,10/08/2020,150000,0,FC1802,Social Fund - Client,5209,Crisis/Emergency Support,Resources
Blackpool Council,1049942,Quest 88 Limited,552687,95417,10/08/2020,681.6,113.6,MTE,Undefined Age Group,5401,Aids To Daily Living,Adult & Families
Blackpool Council,1049942,Quest 88 Limited,552688,95442,13/08/2020,410.4,68.4,MTE,Undefined Age Group,5401,Aids To Daily Living,Adult & Families
Blackpool Council,1117132,Consolor Ltd,552690,28036,10/08/2020,3349,558.17,MTE,Undefined Age Group,5401,Aids To Daily Living,Adult & Families
Blackpool Council,1026811,Stannah Lift Services Ltd,552695,1085209397,10/08/2020,300,50,MVA,18-64,5401,Aids To Daily Living,Adult & Families
Blackpool Council,1026811,Stannah Lift Services Ltd,552696,1085208540,10/08/2020,900,150,MVB,65-74,5401,Aids To Daily Living,Adult & Families
Blackpool Council,1008743,James Leckey Design Ltd T/A Vida Global,552699,OP/I163014,21/08/2020,252,42,MTE,Undefined Age Group,5401,Aids To Daily Living,Adult & Families
Blackpool Council,1008743,James Leckey Design Ltd T/A Vida Global,552700,OP/I163018,21/08/2020,252,42,MTE,Undefined Age Group,5401,Aids To Daily Living,Adult & Families
Blackpool Council,1123084,Yss Investment Ltd,552701,6,11/08/2020,25200,4200,MPB,Edc - Economic Dev Company,1301,Rent & Hire Of Premises,Places
Blackpool Council,1117132,Consolor Ltd,552705,28035,11/08/2020,3331.92,555.32,CWAN,Children With Additional Needs,3008,Educational Equipment,Children'S Services
Blackpool Council,1011970,A1 Streamline Road Markings Ltd,552709,5735,18/08/2020,3822.34,637.06,PARADM,Parking Administration,3801,Other Expenses,Budgets Outside Cash Limits
Blackpool Council,1011970,A1 Streamline Road Markings Ltd,552710,5736,18/08/2020,1264.9,210.82,PARADM,Parking Administration,3801,Other Expenses,Budgets Outside Cash Limits
Blackpool Council,1100542,Caroline Horn T/A Bentley Training,552712,BEN/489,19/08/2020,905,0,LEISUR,Leisure Management,0911,Training Expenses,Community & Env Services
Blackpool Council,1123075,Survey & Engineering Projects Ltd,552714,5166,28/08/2020,1374,229,CGICAD,Enterprise Zone,6514,B.Holes/Site Investgtn/Surveys,Capital - Commnctn & Regen
Blackpool Council,1011952,Empowerment,552718,1009,11/08/2020,1314.73,0,HS0003,Headstart Commissioning,3401,General Services,Children'S Services
Blackpool Council,1011952,Empowerment,552719,965,11/08/2020,1374.73,0,HS0003,Headstart Commissioning,3401,General Services,Children'S Services
Blackpool Council,1113651,Vmr Training Ltd,552720,3651,13/08/2020,576,96,ENGINE,Engineering,1012,Premises Maint-Priv.Contractor,Community & Env Services
Blackpool Council,1115537,Strange Corporation Ltd,552722,H728,28/08/2020,6270,1045,PRL,Marketing,3315,Marketing,Places
Blackpool Council,1007206,Road Safety Services Ltd,552731,87311,12/08/2020,336,56,TRA,Traffic Management,4501,Private Contractors,Community & Env Services
Blackpool Council,1082924,Dotdigital Emea Ltd,552735,DM1321744,14/08/2020,384,64,PBF,Communications,3315,Marketing,Places
Blackpool Council,1103692,Calico Enterprise Limited,552777,SINV20/00002199,11/08/2020,4776,796,FC1802,Social Fund - Client,5210,Community Care Support,Resources
Blackpool Council,1120775,Standard Fuel Oils,552778,125968,11/08/2020,19468.26,3244.71,ZF0001,"Insurance,Dso,Banking",9511A,Stocks Efin,Total Reconciliations
Blackpool Council,1023759,The Ashley Foundation,552782,013,12/08/2020,4050.1,0,HOPB,Housing Options,4004,Management Fees,Chief Executive
Blackpool Council,1118879,Gregg Wolstenholme Photography,552785,24072020-01,13/08/2020,650,0,PRL,Marketing,3822,Photography,Places
Blackpool Council,1086375,Westminster Health Forum,552786,H176233-1852,27/08/2020,456,76,BCA,Corp And Member Services,0911,Training Expenses,Governance & Partnerships
Blackpool Council,1012902,Bramblethorpe Ltd,552787,704,28/08/2020,2340,390,OPAREA,Opportunity Areas,4515,Contract Services,Places
Blackpool Council,1103692,Calico Enterprise Limited,552791,SINV20/00002418,13/08/2020,944,0,FC1802,Social Fund - Client,5210,Community Care Support,Resources
Blackpool Council,1011675,Bambers Remedial Contractors Limited,552792,16466,11/08/2020,4125,0,CX4002,Disabled Facilities Grants,6501,Contract Payments,Capital - Adult Social Care
Blackpool Council,1011675,Bambers Remedial Contractors Limited,552793,16464,11/08/2020,5376.97,0,CX4002,Disabled Facilities Grants,6501,Contract Payments,Capital - Adult Social Care
Blackpool Council,1026811,Stannah Lift Services Ltd,552794,1085211792,17/08/2020,3536.75,0,CX4002,Disabled Facilities Grants,6501,Contract Payments,Capital - Adult Social Care
Blackpool Council,1017722,Terrys Cut Price Carpets Ltd,552796,930,11/08/2020,420,0,CX4002,Disabled Facilities Grants,6501,Contract Payments,Capital - Adult Social Care
Blackpool Council,1026811,Stannah Lift Services Ltd,552797,1085211124,14/08/2020,2425,0,CXAAA,Local Authority Dwellings,6501,Contract Payments,Capital - Chief Executive
Blackpool Council,1011675,Bambers Remedial Contractors Limited,552798,16463,11/08/2020,4815.97,0,CX4002,Disabled Facilities Grants,6501,Contract Payments,Capital - Adult Social Care
Blackpool Council,1081205,The Excellent Ramp System Ltd,552799,2763,11/08/2020,2200,0,CXAAA,Local Authority Dwellings,6501,Contract Payments,Capital - Chief Executive
Blackpool Council,1011675,Bambers Remedial Contractors Limited,552800,16465,11/08/2020,4774.29,0,CX4002,Disabled Facilities Grants,6501,Contract Payments,Capital - Adult Social Care
Blackpool Council,1011675,Bambers Remedial Contractors Limited,552801,16462,11/08/2020,7250.57,0,CX4002,Disabled Facilities Grants,6501,Contract Payments,Capital - Adult Social Care
Blackpool Council,1011675,Bambers Remedial Contractors Limited,552802,16403,11/08/2020,5691.51,0,CX4002,Disabled Facilities Grants,6501,Contract Payments,Capital - Adult Social Care
Blackpool Council,1008756,Sunrise Medical Ltd,552804,21UI006324,28/08/2020,426.9,71.15,MTE,Undefined Age Group,5401,Aids To Daily Living,Adult & Families
Blackpool Council,1026811,Stannah Lift Services Ltd,552806,1085210943,13/08/2020,1270.06,211.68,MVB,65-74,5401,Aids To Daily Living,Adult & Families
Blackpool Council,1006576,The Helping Hand Company Ltd,552810,378008,28/08/2020,301.2,50.2,MTE,Undefined Age Group,5401,Aids To Daily Living,Adult & Families
Blackpool Council,1026811,Stannah Lift Services Ltd,552811,1085210924,13/08/2020,2370.5,395.08,MVA,18-64,5401,Aids To Daily Living,Adult & Families
Blackpool Council,1008743,James Leckey Design Ltd T/A Vida Global,552812,OP/I163309,28/08/2020,619.2,103.2,MTE,Undefined Age Group,5401,Aids To Daily Living,Adult & Families
Blackpool Council,1008743,James Leckey Design Ltd T/A Vida Global,552813,OP/I163303,28/08/2020,619.2,103.2,MTE,Undefined Age Group,5401,Aids To Daily Living,Adult & Families
Blackpool Council,1026811,Stannah Lift Services Ltd,552816,1085210982,13/08/2020,491.15,81.86,MVA,18-64,5401,Aids To Daily Living,Adult & Families
Blackpool Council,1006099,Blackpool Teaching Hospitals Nhs Ft,552852,1110055219,21/08/2020,3750,0,PU2061,Domestic Violence,4501,Private Contractors,Public Health
Blackpool Council,1028228,Danfo (Uk) Ltd,552858,0000005154,13/08/2020,49000,8166.67,PUBCON,Public Conveniences,4501,Private Contractors,Community & Env Services
Blackpool Council,1018184,Blackpool Skip Hire Ltd,552859,8253,24/08/2020,11929.54,1988.26,CWASTE,Commercial Waste,4514,Contract 'E',Community & Env Services
Blackpool Council,1018184,Blackpool Skip Hire Ltd,552860,8254,26/08/2020,3010.5,501.75,DOMPFI,Domestic Waste & Waste Pfi,4514,Contract 'E',Community & Env Services
Blackpool Council,1069873,U-Save Ltd,552861,17256,13/08/2020,2160,360,HS0001,Headstart Central Expenditure,3806,Advertising-General,Children'S Services
Blackpool Council,1109682,Entertainment Concepts Ltd,552862,244,25/08/2020,799.99,133.33,FMAK,Acquisitions 9/10,1131,Electrical Equipment - Repairs,Places
Blackpool Council,1011121,Fylde Coast Gate Ltd,552863,29000,21/08/2020,2187.27,364.54,GATE,Alleygates,3041,Other Materials,Community & Env Services
Blackpool Council,1011121,Fylde Coast Gate Ltd,552864,28999,21/08/2020,876.37,146.06,GATE,Alleygates,3041,Other Materials,Community & Env Services
Blackpool Council,1011121,Fylde Coast Gate Ltd,552865,28998,21/08/2020,1638.6,273.1,GATE,Alleygates,3041,Other Materials,Community & Env Services
Blackpool Council,1015211,Nta Monitor Limited,552866,1006115379,13/08/2020,3840,640,FGAA,Ict Corporate Services,3532,Comp-Running & License Costs,Resources
Blackpool Council,1010667,Argos Business Solutions Ltd,552868,01878998,21/08/2020,950.46,158.41,FC1802,Social Fund - Client,5210,Community Care Support,Resources
Blackpool Council,1102016,Critiqom Limited,552870,058591,14/08/2020,1581.54,263.59,FBBEA,"Income, Recovery & Debtors",3511,Postages,Resources
Blackpool Council,1075547,Bauer Radio Ltd,552875,7000066,28/08/2020,3000,500,PPA,Head Of Tourism Services,3401,General Services,Places
Blackpool Council,1013011,Tennant Uk Cleaning Solutions Ltd,552876,963866702,28/08/2020,357.42,59.57,SCLEAN,Street Cleaning,3401,General Services,Community & Env Services
Blackpool Council,1122355,The Sutton Pendle Charitable Trust,552877,118,13/08/2020,3300,550,HOMECA,Homecare,3066,Personal Needs Of Clients,Adult & Families
Blackpool Council,1011952,Empowerment,552879,966,13/08/2020,1314.73,0,HS0003,Headstart Commissioning,3401,General Services,Children'S Services
Blackpool Council,1106177,Herts For Learning (Modern Governor),552880,2750069530,13/08/2020,3250.8,541.8,ER3499,Governors' Services,3711,Subscriptions,Governance & Partnerships
Blackpool Council,1122575,Cnc Robotics Ltd,552882,INV-2019185,13/08/2020,15171.4,2528.57,PJHA,"Depot, Management & Admin",3041,Other Materials,Places
Blackpool Council,1122575,Cnc Robotics Ltd,552882,INV-2019185,13/08/2020,341.02,56.84,PJHA,"Depot, Management & Admin",3511,Postages,Places
Blackpool Council,1010830,Ace Radio Cabs Limited,552883,0043,13/08/2020,833.28,138.88,TRADUL,Intergrated Transport Adults,2201,Contract Hire,Community & Env Services
Blackpool Council,1010830,Ace Radio Cabs Limited,552884,0042,13/08/2020,974.4,162.4,TRCHIL,Integrated Transport Children,2201,Contract Hire,Community & Env Services
Blackpool Council,1010830,Ace Radio Cabs Limited,552885,0041,13/08/2020,1666.56,277.76,TRADUL,Intergrated Transport Adults,2201,Contract Hire,Community & Env Services
Blackpool Council,1010830,Ace Radio Cabs Limited,552886,0040,13/08/2020,1579.2,263.2,TRCHIL,Integrated Transport Children,2201,Contract Hire,Community & Env Services
Blackpool Council,1010830,Ace Radio Cabs Limited,552887,0039,13/08/2020,1071.36,178.56,TRADUL,Intergrated Transport Adults,2201,Contract Hire,Community & Env Services
Blackpool Council,1095404,Ams International,552889,44-27282,20/08/2020,1137.6,189.6,PU0001,Public Health Team,4501,Private Contractors,Public Health
Blackpool Council,1121655,Hills Fine Foods Ltd,552892,174134,26/08/2020,356.4,59.4,CATERG,Catering Services,3101,Provisions,Community & Env Services
Blackpool Council,1076481,Ribble Farm Fare Ltd,552894,WI940715,13/08/2020,444.4,0,CATERG,Catering Services,4501,Private Contractors,Community & Env Services
Blackpool Council,1093145,On A Roll Sandwich Company,552895,187313,13/08/2020,289.1,0,CATERG,Catering Services,3101,Provisions,Community & Env Services
Blackpool Council,1093145,On A Roll Sandwich Company,552897,187212,13/08/2020,454.6,0,CATERG,Catering Services,3101,Provisions,Community & Env Services
Blackpool Council,1093145,On A Roll Sandwich Company,552899,187280,13/08/2020,339,0,CATERG,Catering Services,3101,Provisions,Community & Env Services
Blackpool Council,1093145,On A Roll Sandwich Company,552900,187250,13/08/2020,357.9,0,CATERG,Catering Services,3101,Provisions,Community & Env Services
Blackpool Council,1006099,Blackpool Teaching Hospitals Nhs Ft,552901,1110054737,17/08/2020,27616.87,0,LIFEVE,Life Events Reg & Care,3401,General Services,Governance & Partnerships
Blackpool Council,1011952,Empowerment,552906,1008,13/08/2020,1314.73,0,HS0003,Headstart Commissioning,3401,General Services,Children'S Services
Blackpool Council,1090874,Advanced Health And Care Limited,552909,ARMIN/00018920,28/08/2020,315,52.5,HOMECA,Homecare,0917,Other Exps,Adult & Families
Blackpool Council,1010138,C Cabs,552913,06263,19/08/2020,680,0,TRCHIL,Integrated Transport Children,2201,Contract Hire,Community & Env Services
Blackpool Council,1090628,The Furniture Recycling Group,552914,INV23117,19/08/2020,295.15,49.19,CWASTE,Commercial Waste,4514,Contract 'E',Community & Env Services
Blackpool Council,1121655,Hills Fine Foods Ltd,552919,174019,21/08/2020,325.06,54.18,CATERG,Catering Services,3101,Provisions,Community & Env Services
Blackpool Council,1104787,Gb Group Plc,552920,360818,28/08/2020,384,64,LEISUR,Leisure Management,3533,Computer S/W Purchases,Community & Env Services
Blackpool Council,1107790,Taylek Ltd,552942,INV-16229,28/08/2020,474.72,79.12,PJRA,Electrical Infra - Places,3801,Other Expenses,Places
Blackpool Council,1107790,Taylek Ltd,552943,INV-16218,28/08/2020,277.2,46.2,PJRA,Electrical Infra - Places,3801,Other Expenses,Places
Blackpool Council,1121838,Cordant Recruitment Ltd T/A Cordant People,552946,728860,14/08/2020,626.75,104.46,PJHA,"Depot, Management & Admin",0191,Wages-Other,Places
Blackpool Council,1017722,Terrys Cut Price Carpets Ltd,552947,967,21/08/2020,428.4,71.4,FC1802,Social Fund - Client,5210,Community Care Support,Resources
Blackpool Council,1107721,Continental Lasers (Uk) Ltd,552952,2634,18/08/2020,630,105,PJNA,New Features / Schemes - C & E,3308,Servicing,Places
Blackpool Council,1107721,Continental Lasers (Uk) Ltd,552953,2635,18/08/2020,1200,200,PJNA,New Features / Schemes - C & E,3308,Servicing,Places
Blackpool Council,1123126,Matt Haylett T/A Mh Lighting,552958,205,20/08/2020,750,0,PJRA,Electrical Infra - Places,3308,Servicing,Places
Blackpool Council,1121654,J Atkinson & Co (Lancaster) Ltd,552963,50747,18/08/2020,284,0,CATERG,Catering Services,3101,Provisions,Community & Env Services
Blackpool Council,1030119,Generation (Uk) Ltd,552971,S0222608,14/08/2020,2730,455,PJAA,"Erection, Operation & Dismantl",1012,Premises Maint-Priv.Contractor,Places
Blackpool Council,1030119,Generation (Uk) Ltd,552972,H2363384,28/08/2020,3644.7,607.45,PJAA,"Erection, Operation & Dismantl",1012,Premises Maint-Priv.Contractor,Places
Blackpool Council,1119868,Keys Pce Limited,552973,0000003897,13/08/2020,22585.72,3764.29,JEA,Senior Management,4501,Private Contractors,Children'S Services
Blackpool Council,1119868,Keys Pce Limited,552974,0000003898,13/08/2020,20991.43,3498.57,JEA,Senior Management,4501,Private Contractors,Children'S Services
Blackpool Council,1119868,Keys Pce Limited,552975,0000003899,13/08/2020,31300.8,5216.8,JEA,Senior Management,4501,Private Contractors,Children'S Services
Blackpool Council,1119933,Mitchell Bailey T/A Pda Technical,552976,266,17/08/2020,800,0,PJRA,Electrical Infra - Places,3308,Servicing,Places
Blackpool Council,1113560,Iese Transformation Limited,552977,1144,13/08/2020,4320,720,DOMPFI,Domestic Waste & Waste Pfi,3711,Subscriptions,Community & Env Services
Blackpool Council,1103432,Twinkl Ltd,552986,58837,24/08/2020,360,60,NAB,Sure Start,3101,Provisions,Children'S Services
Blackpool Council,1008161,Mallard Consultancy Ltd,552987,5168,26/08/2020,1188,198,WINTMA,Winter Maintenance,3711,Subscriptions,Community & Env Services
Blackpool Council,1099572,Yasuda 3d-Art,552988,0049,20/08/2020,525,0,PJNA,New Features / Schemes - C & E,3308,Servicing,Places
Blackpool Council,1007487,Post Office Ltd,553042,200BPOOL130820,14/08/2020,2000,0,FC1802,Social Fund - Client,5209,Crisis/Emergency Support,Resources
Blackpool Council,1117821,U-Explore Limited,553043,102365,14/08/2020,5400,900,OPAREA,Opportunity Areas,4515,Contract Services,Places
Blackpool Council,1012902,Bramblethorpe Ltd,553046,703,28/08/2020,3120,520,PRIM,Primary,3401,General Services,Children'S Services
Blackpool Council,1044156,Pell Frischmann,553048,64013126,20/08/2020,1719.36,286.56,CTAHHI,Tramway Extention,6506,Consultants Fees,Capital - Commnctn & Regen
Blackpool Council,1121728,Arrow County Supplies,553050,4847624,18/08/2020,264,44,FK0013,Corporate Health,3065,Drugs & Medical Requisites,Chief Executive
Blackpool Council,1082924,Dotdigital Emea Ltd,553054,0000070196,27/08/2020,336,56,PBF,Communications,3315,Marketing,Places
Blackpool Council,1025240,Key Engineering Supplies Ltd,553056,30446,18/08/2020,518.4,86.4,AER,Dual Use Properties,3012,Other Equipment,Resources
Blackpool Council,1099262,Nhs Blackpool Ccg,553057,7011216780,17/08/2020,651094,0,LM9027,Bcf Control,5101,Transfer Payments - General,Bcf General And Control
Blackpool Council,1013064,Tarmac Lafarge Trading Limited,553058,9042091058,19/08/2020,656.41,109.4,ENGINE,Engineering,3041,Other Materials,Community & Env Services
Blackpool Council,1013064,Tarmac Lafarge Trading Limited,553060,9042100177,21/08/2020,656.41,109.4,ENGINE,Engineering,3041,Other Materials,Community & Env Services
Blackpool Council,1013064,Tarmac Lafarge Trading Limited,553065,9042144800,28/08/2020,404.68,67.44,ENGINE,Engineering,3041,Other Materials,Community & Env Services
Blackpool Council,1016258,M J Teale Plant Hire Ltd,553068,INV-2059,17/08/2020,1098.43,183.07,SCHEME,Highways Schemes,1012,Premises Maint-Priv.Contractor,Community & Env Services
Blackpool Council,1018184,Blackpool Skip Hire Ltd,553069,023623,17/08/2020,336,56,SCHEME,Highways Schemes,1012,Premises Maint-Priv.Contractor,Community & Env Services
Blackpool Council,1114704,Morson Human Resources Ltd,553074,HS301115,19/08/2020,2310,385,CTAHHI,Tramway Extention,6506,Consultants Fees,Capital - Commnctn & Regen
Blackpool Council,1031656,Wigan Council,553075,71265676303,17/08/2020,2610,435,FK1003,Hr Systems & Info,3806,Advertising-General,Chief Executive
Blackpool Council,1013064,Tarmac Lafarge Trading Limited,553076,9042131868,28/08/2020,1889.88,314.98,ENGINE,Engineering,3041,Other Materials,Community & Env Services
Blackpool Council,1112477,Big Wave Media (Fac060),553082,64088,28/08/2020,2768,461.33,LEISUR,Leisure Management,3801,Other Expenses,Community & Env Services
Blackpool Council,1122355,The Sutton Pendle Charitable Trust,553153,124,17/08/2020,5500,0,HOMECA,Homecare,3010,Safety Equipment,Adult & Families
Blackpool Council,1121150,Multipave (Nw) Ltd,553154,05090,20/08/2020,31089.28,5181.55,SCHEME,Highways Schemes,1012,Premises Maint-Priv.Contractor,Community & Env Services
Blackpool Council,1085424,The Environment Partnership (Tep) Limited,553181,192012-00037,25/08/2020,2544,424,AEB,Buildings,3413,Consultants,Resources
Blackpool Council,1005144,Blackpool Airport Operations Limited,553190,0000024062,20/08/2020,300,50,CGTBBB,Conference Centre,6501,Contract Payments,Capital - Commnctn & Regen
Blackpool Council,1010300,Blacktax Radio Taxis T/A Blackpool Courier,553194,14,18/08/2020,788.8,0,TRCHIL,Integrated Transport Children,2201,Contract Hire,Community & Env Services
Blackpool Council,1010300,Blacktax Radio Taxis T/A Blackpool Courier,553195,15,18/08/2020,892.8,0,TRCHIL,Integrated Transport Children,2201,Contract Hire,Community & Env Services
Blackpool Council,1111234,Cbre Ltd,553197,50BCD00068358,28/08/2020,13800,2300,HJA,Growth,3413,Consultants,Places
Blackpool Council,1111234,Cbre Ltd,553198,50BCD00068360,28/08/2020,9600,1600,HJA,Growth,3413,Consultants,Places
Blackpool Council,1111234,Cbre Ltd,553199,50BCD00068361,28/08/2020,16800,2800,HJA,Growth,3413,Consultants,Places
Blackpool Council,1121838,Cordant Recruitment Ltd T/A Cordant People,553200,730123,20/08/2020,626.75,104.46,PJHA,"Depot, Management & Admin",0191,Wages-Other,Places
Blackpool Council,1091325,Ormrods Solicitors & Advocates Ltd,553202,7250,20/08/2020,420,0,PTC,"A.C.E. Regen, Tourism & Cultur",0981,Professional Fees,Places
Blackpool Council,1010138,C Cabs,553203,06248,18/08/2020,731.4,0,TRCHIL,Integrated Transport Children,2201,Contract Hire,Community & Env Services
Blackpool Council,1010138,C Cabs,553204,06252,18/08/2020,680,0,TRCHIL,Integrated Transport Children,2201,Contract Hire,Community & Env Services
Blackpool Council,1044156,Pell Frischmann,553205,64013127,20/08/2020,621.56,103.59,TRB,Maintenance & Works,4501,Private Contractors,Community & Env Services
Blackpool Council,1010138,C Cabs,553206,06249,18/08/2020,652.8,0,TRCHIL,Integrated Transport Children,2201,Contract Hire,Community & Env Services
Blackpool Council,1010138,C Cabs,553207,06250,18/08/2020,680,0,TRCHIL,Integrated Transport Children,2201,Contract Hire,Community & Env Services
Blackpool Council,1010138,C Cabs,553208,06251,18/08/2020,680,0,TRCHIL,Integrated Transport Children,2201,Contract Hire,Community & Env Services
Blackpool Council,1026738,Cassidy + Ashton,553210,18095,28/08/2020,47556.68,7926.11,CGICAD,Enterprise Zone,6506,Consultants Fees,Capital - Commnctn & Regen
Blackpool Council,1123126,Matt Haylett T/A Mh Lighting,553212,206,27/08/2020,950,0,PJRA,Electrical Infra - Places,3308,Servicing,Places
Blackpool Council,1119933,Mitchell Bailey T/A Pda Technical,553213,267,25/08/2020,960,0,PJRA,Electrical Infra - Places,3308,Servicing,Places
Blackpool Council,1118699,Enveco Blackpool Waste Services Ltd,553214,30151414,18/08/2020,323458.8,53909.8,DOMPFI,Domestic Waste & Waste Pfi,4501,Private Contractors,Community & Env Services
Blackpool Council,1105990,Fylde Environmental Services Ltd,553215,BC/287/2020,26/08/2020,3450,0,SCLEAN,Street Cleaning,4501,Private Contractors,Community & Env Services
Blackpool Council,1123341,Turbo Statics Ltd,553216,TS677,18/08/2020,3596.4,599.4,LEISUR,Leisure Management,3801,Other Expenses,Community & Env Services
Blackpool Council,1010423,Child Action Northwest,553217,YJ/3816,18/08/2020,1111.61,0,VA0010,Vah Management & Admin,3408,Services To Clients,Children'S Services
Blackpool Council,1026738,Cassidy + Ashton,553219,18100,28/08/2020,26280,4380,CGICAD,Enterprise Zone,6506,Consultants Fees,Capital - Commnctn & Regen
Blackpool Council,1049868,D Hollowell & Sons,553223,20/18786/ANHO/H,19/08/2020,1245,0,CEMCRE,Cems Crems Etc,4501,Private Contractors,Governance & Partnerships
Blackpool Council,1023161,Suez Recycling And Recovery Uk Ltd,553245,80191577,19/08/2020,65912.09,10985.35,DOMPFI,Domestic Waste & Waste Pfi,4501,Private Contractors,Community & Env Services
Blackpool Council,1102434,Inform Cpi Limited,553259,AL61725,26/08/2020,870,145,FC2011,Nndr Collection Costs,3401,General Services,Budgets Outside Cash Limits
Blackpool Council,1025240,Key Engineering Supplies Ltd,553260,30571,19/08/2020,650.88,108.48,LEISUR,Leisure Management,3031,Cleaning Equipment - Purchase,Community & Env Services
Blackpool Council,1005071,Blackpool Transport Services Limited,553264,I0002425,20/08/2020,1698.63,0,FRAEA,Public Transport Contracts,2201,Contract Hire,Community & Env Services
Blackpool Council,1010300,Blacktax Radio Taxis T/A Blackpool Courier,553265,13755,19/08/2020,1550.6,0,TRCHIL,Integrated Transport Children,2201,Contract Hire,Community & Env Services
Blackpool Council,1114810,Marten Walsh Cherer Ltd,553268,110815,19/08/2020,367.2,61.2,LIFEVE,Life Events Reg & Care,3801,Other Expenses,Governance & Partnerships
Blackpool Council,1093145,On A Roll Sandwich Company,553278,187779,21/08/2020,433,0,CATERG,Catering Services,3101,Provisions,Community & Env Services
Blackpool Council,1121654,J Atkinson & Co (Lancaster) Ltd,553280,51017,26/08/2020,284,0,CATERG,Catering Services,3101,Provisions,Community & Env Services
Blackpool Council,1119175,Future Technical Solutions Ltd,553283,4279,20/08/2020,480,80,PJNA,New Features / Schemes - C & E,3308,Servicing,Places
Blackpool Council,1119175,Future Technical Solutions Ltd,553284,4281,25/08/2020,2638.44,439.74,PJNA,New Features / Schemes - C & E,3308,Servicing,Places
Blackpool Council,1119175,Future Technical Solutions Ltd,553285,4283,24/08/2020,574.8,95.8,PJNA,New Features / Schemes - C & E,3308,Servicing,Places
Blackpool Council,1119175,Future Technical Solutions Ltd,553286,4280,21/08/2020,1387.2,231.2,PJNA,New Features / Schemes - C & E,3308,Servicing,Places
Blackpool Council,1119175,Future Technical Solutions Ltd,553287,4282,20/08/2020,2832,472,PJNA,New Features / Schemes - C & E,3308,Servicing,Places
Blackpool Council,1117002,Redraw Travel Ltd T/A Blackpool Minibuses,553292,INV3194B,19/08/2020,1548,0,TRCHIL,Integrated Transport Children,2201,Contract Hire,Community & Env Services
Blackpool Council,1117002,Redraw Travel Ltd T/A Blackpool Minibuses,553293,INV2998B,19/08/2020,1014,169,TRCHIL,Integrated Transport Children,2201,Contract Hire,Community & Env Services
Blackpool Council,1117002,Redraw Travel Ltd T/A Blackpool Minibuses,553294,INV2600B,19/08/2020,1170,0,TRCHIL,Integrated Transport Children,2201,Contract Hire,Community & Env Services
Blackpool Council,1117002,Redraw Travel Ltd T/A Blackpool Minibuses,553295,INV2394B,19/08/2020,1170,0,TRCHIL,Integrated Transport Children,2201,Contract Hire,Community & Env Services
Blackpool Council,1117002,Redraw Travel Ltd T/A Blackpool Minibuses,553296,INV2180B,19/08/2020,1040,0,TRCHIL,Integrated Transport Children,2201,Contract Hire,Community & Env Services
Blackpool Council,1117002,Redraw Travel Ltd T/A Blackpool Minibuses,553297,INV2797B,19/08/2020,845,0,TRCHIL,Integrated Transport Children,2201,Contract Hire,Community & Env Services
Blackpool Council,1010138,C Cabs,553300,06214,19/08/2020,2951.5,0,TRCHIL,Integrated Transport Children,2201,Contract Hire,Community & Env Services
Blackpool Council,1010138,C Cabs,553301,06215,19/08/2020,2247.5,0,TRCHIL,Integrated Transport Children,2201,Contract Hire,Community & Env Services
Blackpool Council,1010138,C Cabs,553302,06216,19/08/2020,1584.1,0,TRCHIL,Integrated Transport Children,2201,Contract Hire,Community & Env Services
Blackpool Council,1005144,Blackpool Airport Operations Limited,553307,0000024061,20/08/2020,900,150,AEV,Vacant & Under Used,1301,Rent & Hire Of Premises,Resources
Blackpool Council,1053021,Wesley Media/The Yaboo Company Ltd,553313,INV400,21/08/2020,637.78,106.3,CEMCRE,Cems Crems Etc,3021,Furniture - Repair,Governance & Partnerships
Blackpool Council,1091470,Meetings Industry Association,553315,300000637,19/08/2020,378,63,PRA,Conferences,3801,Other Expenses,Places
Blackpool Council,1108651,Coolsilk Property& Investment Ltd,553318,1218,19/08/2020,1978.75,329.79,CGTACA,Museum,6517,Equipment,Capital - Commnctn & Regen
Blackpool Council,1118794,Awol Adventure Limited,553360,5235,21/08/2020,2400,400,BSTPRJ,Better Start Projects,3401,General Services,Better Start Projects
Blackpool Council,1012839,George Cox & Sons Ltd,553362,11141,20/08/2020,11903.72,1983.95,DIRCTR,Directorate,4501,Private Contractors,Community & Env Services
Blackpool Council,1070036,Gaist Solutions Ltd,553363,10892,20/08/2020,6000,1000,CTABXA,Ltp Scheme 18/19,6501,Contract Payments,Capital - Commnctn & Regen
Blackpool Council,1011714,Michael Hope Haulage Limited,553369,001485,20/08/2020,2428.8,404.8,SCHEME,Highways Schemes,1012,Premises Maint-Priv.Contractor,Community & Env Services
Blackpool Council,1006940,Smiths Equipment Hire Ltd - Smiths Training,553370,V12-824316,20/08/2020,283.44,47.24,SCHEME,Highways Schemes,3041,Other Materials,Community & Env Services
Blackpool Council,1074052,Brent Stevenson Memorials Ltd,553372,21620,27/08/2020,535.56,89.26,CEMCRE,Cems Crems Etc,3454,Remove And Refix Memorials,Governance & Partnerships
Blackpool Council,1006099,Blackpool Teaching Hospitals Nhs Ft,553373,BQGWY/00000018,20/08/2020,3288.23,156.58,PUBH18,Stop Smoking Services & Interv,4501,Private Contractors,Public Health
Blackpool Council,1084725,Stonyhill Medical Practice,553374,LZLQ/00000083,20/08/2020,3185.36,0,PUBH02,Sexual Health Services-Contrac,4501,Private Contractors,Public Health
Blackpool Council,1086456,Adelaide Street Family Practice,553376,LYRL/00000110,20/08/2020,1588.68,0,PUBH02,Sexual Health Services-Contrac,4501,Private Contractors,Public Health
Blackpool Council,1010667,Argos Business Solutions Ltd,553388,01880435,28/08/2020,915.36,152.56,FC1802,Social Fund - Client,5210,Community Care Support,Resources
Blackpool Council,1026738,Cassidy + Ashton,553400,18093,21/08/2020,14400,2400,CGICAD,Enterprise Zone,6506,Consultants Fees,Capital - Commnctn & Regen
Blackpool Council,1010353,Blackpool Football Club Ltd,553445,INV-0363,21/08/2020,48000,8000,PTC,"A.C.E. Regen, Tourism & Cultur",3901,Contributions To Funds,Places
Blackpool Council,1010353,Blackpool Football Club Ltd,553445,INV-0363,21/08/2020,72000,12000,PU0001,Public Health Team,3901,Contributions To Funds,Public Health
Blackpool Council,1081205,The Excellent Ramp System Ltd,553447,2785,25/08/2020,1825,0,CXAAA,Local Authority Dwellings,6501,Contract Payments,Capital - Chief Executive
Blackpool Council,1026811,Stannah Lift Services Ltd,553448,1085213495,25/08/2020,3705,0,CXAAA,Local Authority Dwellings,6501,Contract Payments,Capital - Chief Executive
Blackpool Council,1013064,Tarmac Lafarge Trading Limited,553449,9042106004,21/08/2020,830.67,138.44,ENGINE,Engineering,3041,Other Materials,Community & Env Services
Blackpool Council,1023846,Dennis Eagle Ltd,553454,383030,21/08/2020,213985.2,35664.2,CVMU,Cvmu,2001,Purchases,Community & Env Services
Blackpool Council,1055691,Norbain Sd Ltd,553456,I2936169,28/08/2020,4502.2,750.37,CCTV,Cctv,3041,Other Materials,Community & Env Services
Blackpool Council,1106132,Bridge Education And Training Ltd,553460,7124,27/08/2020,780,130,AEB,Buildings,0791,Temp/Relief (Bureau Staff),Resources
Blackpool Council,1106132,Bridge Education And Training Ltd,553460,7124,27/08/2020,810,135,AEF,Facilities,0791,Temp/Relief (Bureau Staff),Resources
Blackpool Council,1101766,Cjgriffiths Photography,553462,GRUNLAN07,25/08/2020,600,0,AHG,Art Gallery Summary,3456,Payment To Artists,Places
Blackpool Council,1110951,Leisure Property Services Limited,553464,INV-1640,21/08/2020,7020,1170,FH1000,Business Loan Overheads,3413,Consultants,Budgets Outside Cash Limits
Blackpool Council,1011121,Fylde Coast Gate Ltd,553472,29018,28/08/2020,724.8,120.8,CWASTE,Commercial Waste,4501,Private Contractors,Community & Env Services
Blackpool Council,1114704,Morson Human Resources Ltd,553481,HS301918,26/08/2020,2310,385,CTAHHI,Tramway Extention,6506,Consultants Fees,Capital - Commnctn & Regen
Blackpool Council,1120775,Standard Fuel Oils,553483,127119,24/08/2020,14516.03,2419.34,ZF0001,"Insurance,Dso,Banking",9511A,Stocks Efin,Total Reconciliations
Blackpool Council,1008525,Kingswood Office Supplies Limited,553488,382608,28/08/2020,594.24,99.04,AER,Dual Use Properties,3302,Stationery,Resources
Blackpool Council,1007008,Screwfix Direct Ltd,553494,1085129802,24/08/2020,375,0,ZM0018,Highways & Engineering,9773,Orders Received Not Invoiced,Blackpool Services
Blackpool Council,1007008,Screwfix Direct Ltd,553494,1085129802,24/08/2020,450,75,ZM0018,Highways & Engineering,9511A,Stocks Efin,Blackpool Services
Blackpool Council,1073088,Muse Developments Limited,553554,51007595,24/08/2020,427282.94,71213.82,CGWBAA,Cbd Phase 2,6501,Contract Payments,Capital - Commnctn & Regen
Blackpool Council,1073088,Muse Developments Limited,553554,51007595,24/08/2020,17036.8,0,ZF0001,"Insurance,Dso,Banking",97B6,Retention Monies - Cap Trsfr,Total Reconciliations
Blackpool Council,1083256,Community Lighting Partnership (Bpool) Ltd,553558,128,24/08/2020,513882.48,85647.08,FL1259,Pfi Management Costs,4501,Private Contractors,Community & Env Services
Blackpool Council,1077963,Electricity Northwest Ltd,553569,5500168302/A,24/08/2020,77091.44,12848.57,FB0004,Energy & Sustainability,1202,Electricity,Resources
Blackpool Council,1091777,Nhs Property Services Ltd,553570,NAVS06286,24/08/2020,92708.71,15451.45,FB0004,Energy & Sustainability,1202,Electricity,Resources
Blackpool Council,1090774,Richardson Traction Limited,553585,21590,28/08/2020,1560,260,PJNA,New Features / Schemes - C & E,3006,Hire Of Equipment,Places
Blackpool Council,1121838,Cordant Recruitment Ltd T/A Cordant People,553586,731446,28/08/2020,626.75,104.46,PJHA,"Depot, Management & Admin",3308,Servicing,Places
Blackpool Council,1005102,Sandcastle Waterpark - Boc Ltd,553588,7569,24/08/2020,2900.14,483.36,FB0004,Energy & Sustainability,1202,Electricity,Resources
Blackpool Council,1006944,Siemens Financial Services Ltd,553617,244/20/0230313,28/08/2020,2785.64,464.27,APFBAB,Vitaline,4501,Private Contractors,Adult & Families
Blackpool Council,1061348,Fresh Partners Limited,553619,LLB1317,26/08/2020,7200,1200,PJHA,"Depot, Management & Admin",3308,Servicing,Places
Blackpool Council,1045794,Amion Consulting Limited,553627,APL6079,25/08/2020,8280,1380,DDC,Partnerships & Business Dev,3413,Consultants,Places
Blackpool Council,1045794,Amion Consulting Limited,553628,APL6080,25/08/2020,8700,1450,DDC,Partnerships & Business Dev,3413,Consultants,Places
Blackpool Council,1045794,Amion Consulting Limited,553629,APL6069,25/08/2020,5400,900,DDC,Partnerships & Business Dev,3413,Consultants,Places
Blackpool Council,1036448,Lambert Smith Hampton,553630,ARINV/00406580,28/08/2020,27600,4600,AEE,Estates,0981,Professional Fees,Resources
Blackpool Council,1055691,Norbain Sd Ltd,553632,I2937021,28/08/2020,5045.76,840.96,CCTV,Cctv,3041,Other Materials,Community & Env Services
Blackpool Council,1121478,REDACTED PERSONAL DATA,553637,HSB 07/20,28/08/2020,1950,0,HS0001,Headstart Central Expenditure,3806,Advertising-General,Children'S Services
Blackpool Council,1100231,Ukactive,553646,117132,25/08/2020,414.9,69.15,LEISUR,Leisure Management,3801,Other Expenses,Community & Env Services
Blackpool Council,1100231,Ukactive,553647,116977,25/08/2020,1026,171,LEISUR,Leisure Management,3801,Other Expenses,Community & Env Services
Blackpool Council,1041733,Dhl International (Uk) Ltd,553648,AVI7902778,26/08/2020,257.13,0,PJNA,New Features / Schemes - C & E,3511,Postages,Places
Blackpool Council,1010423,Child Action Northwest,553656,YJ/3888,28/08/2020,520.17,0,VA0010,Vah Management & Admin,3408,Services To Clients,Children'S Services
Blackpool Council,1007385,R S Components Ltd,553661,298191516,26/08/2020,862.44,143.74,PJLA,Maintenance,3041,Other Materials,Places
Blackpool Council,1041733,Dhl International (Uk) Ltd,553668,AVM0198342,26/08/2020,560.79,0,PJNA,New Features / Schemes - C & E,3511,Postages,Places
Blackpool Council,1006773,Stri  Ltd,553676,IW05047 CIS ADJ,25/08/2020,523715.18,87285.86,CGICAD,Enterprise Zone,6506,Consultants Fees,Capital - Commnctn & Regen
Blackpool Council,1006773,Stri  Ltd,553676,IW05047 CIS ADJ,25/08/2020,11484.98,0,ZF0001,"Insurance,Dso,Banking",97B6,Retention Monies - Cap Trsfr,Total Reconciliations
Blackpool Council,1045794,Amion Consulting Limited,553684,APL6075,26/08/2020,4260,710,DDC,Partnerships & Business Dev,3413,Consultants,Places
Blackpool Council,1087805,Blackpool Fc Community Trust,553686,BFCCT1146,27/08/2020,50000,0,PYAA,Head Of Environmental Health,3313,General Expenses,Community & Env Services
Blackpool Council,1116610,Smart Video & Sensing Limited,553687,100998,28/08/2020,600,100,TRA,Traffic Management,4501,Private Contractors,Community & Env Services
Blackpool Council,1012071,Bethell Construction Limited,553718,16779,28/08/2020,1663.5,277.25,ENGINE,Engineering,1012,Premises Maint-Priv.Contractor,Community & Env Services
Blackpool Council,1012071,Bethell Construction Limited,553719,16780,28/08/2020,1558.1,259.68,ENGINE,Engineering,1012,Premises Maint-Priv.Contractor,Community & Env Services
Blackpool Council,1012071,Bethell Construction Limited,553720,16781,28/08/2020,1550.56,258.43,ENGINE,Engineering,1012,Premises Maint-Priv.Contractor,Community & Env Services
Blackpool Council,1012071,Bethell Construction Limited,553721,16782,28/08/2020,1729.66,288.28,ENGINE,Engineering,1012,Premises Maint-Priv.Contractor,Community & Env Services
Blackpool Council,1012071,Bethell Construction Limited,553722,16783,28/08/2020,2085.35,347.56,ENGINE,Engineering,1012,Premises Maint-Priv.Contractor,Community & Env Services
Blackpool Council,1012071,Bethell Construction Limited,553723,16784,28/08/2020,3774.71,629.12,ENGINE,Engineering,1012,Premises Maint-Priv.Contractor,Community & Env Services
Blackpool Council,1012071,Bethell Construction Limited,553724,16787,28/08/2020,2044.54,340.76,ENGINE,Engineering,1012,Premises Maint-Priv.Contractor,Community & Env Services
Blackpool Council,1123114,Fenceline (Uk) Ltd,553726,2255,28/08/2020,600,100,PJNA,New Features / Schemes - C & E,1012,Premises Maint-Priv.Contractor,Places
Blackpool Council,1006099,Blackpool Teaching Hospitals Nhs Ft,553771,1110055220,27/08/2020,9209.2,1534.87,PUBH18,Stop Smoking Services & Interv,4501,Private Contractors,Public Health
Blackpool Council,1071551,Business In The Community,553794,SIN056834,27/08/2020,30000,0,PTC,"A.C.E. Regen, Tourism & Cultur",3313,General Expenses,Places
Blackpool Council,1025240,Key Engineering Supplies Ltd,553796,30801,28/08/2020,267.36,44.56,FK0013,Corporate Health,3065,Drugs & Medical Requisites,Chief Executive
Blackpool Council,1028852,Thornber And Walker,553841,3910,28/08/2020,4140,690,AED,Capital Projects,3413,Consultants,Resources
Blackpool Council,1011369,Lancashire County Council,553847,5200201596,28/08/2020,4108,0,FR5001,Concessionary Fares,3401,General Services,Budgets Outside Cash Limits
Blackpool Council,1011369,Lancashire County Council,553848,5200203088,28/08/2020,3626,0,FR5001,Concessionary Fares,3401,General Services,Budgets Outside Cash Limits
Blackpool Council,1011369,Lancashire County Council,553849,5200204508,28/08/2020,3869,0,FR5001,Concessionary Fares,3401,General Services,Budgets Outside Cash Limits
Blackpool Council,1011369,Lancashire County Council,553850,5200209345,28/08/2020,3645,0,FR5001,Concessionary Fares,3401,General Services,Budgets Outside Cash Limits
Blackpool Council,1011369,Lancashire County Council,553851,5200210667,28/08/2020,1902,0,FR5001,Concessionary Fares,3401,General Services,Budgets Outside Cash Limits
Blackpool Council,1011369,Lancashire County Council,553854,5200212854,28/08/2020,292162,0,FR5001,Concessionary Fares,3401,General Services,Budgets Outside Cash Limits
Blackpool Council,1087953,Blackpool Local Education Partnership Ltd,553856,SI10071,28/08/2020,704557.2,117426.2,CE9401,Former Langdale - Lotus Sch,6501,Contract Payments,Capital - Childrens
Blackpool Council,1087953,Blackpool Local Education Partnership Ltd,553857,SI10072,28/08/2020,10927.62,1821.27,EM1028,St Marys,4515,Contract Services,Children'S Services
Blackpool Council,1119761,Janet Carroll,553862,05/A20/TAS012,28/08/2020,5075,0,OPAREA,Opportunity Areas,4515,Contract Services,Places
Blackpool Council,1108112,Future Directions Cic,4258887,311454,26/08/2020,1107.66,0,MHA,Older People ( U65) With Ld,4505,Residential Homes,Adult & Families
Blackpool Council,1108112,Future Directions Cic,4258888,312043,26/08/2020,1469,0,MVD,85+,7582,Indep Sect Residential Homes,Adult & Families
Blackpool Council,1108112,Future Directions Cic,4265477,314628,26/08/2020,1107.66,0,MHA,Older People ( U65) With Ld,4505,Residential Homes,Adult & Families
Blackpool Council,1116843,Select Healthcare - Springfield Park Home,4265621,315463,19/08/2020,1318.39,0,MVC,75-84,7583,Indep Sect Nursing Homes,Adult & Families
Blackpool Council,1006767,Ryecourt Nursing Home,4271795,318026,17/08/2020,1644.79,0,MVB,65-74,7582,Indep Sect Residential Homes,Adult & Families
Blackpool Council,1108112,Future Directions Cic,4272466,317648,26/08/2020,1107.66,0,MHA,Older People ( U65) With Ld,4505,Residential Homes,Adult & Families
Blackpool Council,1108112,Future Directions Cic,4280135,320031,26/08/2020,1107.66,0,MHA,Older People ( U65) With Ld,4505,Residential Homes,Adult & Families
Blackpool Council,1051005,Gerry Pounder Associates Ltd,4282488,25245482 GRANT,07/08/2020,10000,0,AD0333,Business Grants,3701,Grants,Contingencies
Blackpool Council,1006096,Autism Initiatives Uk,4283748,0000188709,17/08/2020,381.08,0,CWAN,Children With Additional Needs,4403,Special Needs - Children,Children'S Services
Blackpool Council,1104767,North Star Environmental Ltd,4283848,INV-19533,07/08/2020,630,105,CXB91,Hra Capital Programme 2020/21,6501,Contract Payments,Capital - Chief Executive
Blackpool Council,1044395,Sellick Partnership Limited,4283898,INV318836,05/08/2020,2264.4,377.4,BAAA,Legal Services,0793,Supply Cost Of Other Agency,Governance & Partnerships
Blackpool Council,1044395,Sellick Partnership Limited,4283904,INV318795,05/08/2020,1039.42,173.24,BAAA,Legal Services,0793,Supply Cost Of Other Agency,Governance & Partnerships
Blackpool Council,1011952,Empowerment,4284106,960,21/08/2020,14500,0,MTE,Undefined Age Group,3701,Grants,Adult & Families
Blackpool Council,1011952,Empowerment,4284107,962,21/08/2020,7965.75,0,JEA,Senior Management,4512,Other Care Block Payments,Children'S Services
Blackpool Council,1011952,Empowerment,4284109,961,26/08/2020,2655.25,0,JEA,Senior Management,4512,Other Care Block Payments,Children'S Services
Blackpool Council,1011952,Empowerment,4284110,963,24/08/2020,6444.03,0,MHE,Undefined Age Group,4512,Other Care Block Payments,Adult & Families
Blackpool Council,1011952,Empowerment,4284113,959,27/08/2020,61000,0,MHE,Undefined Age Group,4512,Other Care Block Payments,Adult & Families
Blackpool Council,1111328,Hadley Fraser Ltd,4284117,BLA107,06/08/2020,7140,1190,JDEAAA,Safeguarding Adults,4501,Private Contractors,Adult & Families
Blackpool Council,1109451,Debigno Ltd T/A Pathway Analytics,4284122,INV-1648,07/08/2020,660,110,PUBH02,Sexual Health Services-Contrac,4501,Private Contractors,Public Health
Blackpool Council,1107100,Nonstop Consulting Ltd,4284127,173590,06/08/2020,2032.63,338.77,JAB,Locality,0791,Temp/Relief (Bureau Staff),Children'S Services
Blackpool Council,1034533,Richmond Fellowship,4284304,CUSTINV00095225,21/08/2020,13049.5,0,MFA,Adults Under 65 With Mh,4512,Other Care Block Payments,Adult & Families
Blackpool Council,1110132,Health Assured Ltd,4284306,SF-059055,07/08/2020,3185.15,530.86,FK0013,Corporate Health,0992,Medical Fees (Employee),Chief Executive
Blackpool Council,1007516,Phoenix Commercial Collections Ltd,4284308,135921,07/08/2020,1445.68,240.95,FBBEA,"Income, Recovery & Debtors",3807,Legal & Court Costs,Resources
Blackpool Council,1057348,Venn Group Limited,4284321,3672248,07/08/2020,1820.09,303.35,BAAA,Legal Services,0793,Supply Cost Of Other Agency,Governance & Partnerships
Blackpool Council,1057348,Venn Group Limited,4284322,3672247,07/08/2020,2808,468,JBT,Looked After Children,0793,Supply Cost Of Other Agency,Children'S Services
Blackpool Council,1105240,Hanzak Ltd T/A Dr Rashad Nazir,4284330,20925RN,04/08/2020,875,0,JDEAAA,Safeguarding Adults,4501,Private Contractors,Adult & Families
Blackpool Council,1011952,Empowerment,4284332,964,24/08/2020,5103.16,0,MHE,Undefined Age Group,4512,Other Care Block Payments,Adult & Families
Blackpool Council,1011973,Automatic Alarms Ltd,4284368,333177,05/08/2020,547.28,91.21,AEB,Buildings,1171,Alarms,Resources
Blackpool Council,1011973,Automatic Alarms Ltd,4284369,333179,05/08/2020,351.17,58.53,AEB,Buildings,1012,Premises Maint-Priv.Contractor,Resources
Blackpool Council,1090764,REDACTED PERSONAL DATA,4284465,25113431 GRANT,07/08/2020,10000,0,AD0333,Business Grants,3701,Grants,Contingencies
Blackpool Council,1007789,Northern Jack Specialists,4284535,110681 ,06/08/2020,3402,567,CVMU,Cvmu,3041,Other Materials,Community & Env Services
Blackpool Council,1029067,Johnston Sweepers Limited,4284567,61879399,05/08/2020,385.32,64.22,CVMU,Cvmu,3041,Other Materials,Community & Env Services
Blackpool Council,1110428,Hitachi Construction Machinery Ltd,4284596,14107072,05/08/2020,1122.78,187.13,CVMU,Cvmu,3041,Other Materials,Community & Env Services
Blackpool Council,1007345,Mobile Mini Uk Limited,4284613,7001688865,05/08/2020,336.48,56.08,CEMCRE,Cems Crems Etc,1012,Premises Maint-Priv.Contractor,Governance & Partnerships
Blackpool Council,1109886,Livewire Systems Ltd,4284617,2216,07/08/2020,300,50,AEB,Buildings,1012,Premises Maint-Priv.Contractor,Resources
Blackpool Council,1120588,G2 Recruitment Solutions,4284623,71739,07/08/2020,2527.2,421.2,AEF,Facilities,0791,Temp/Relief (Bureau Staff),Resources
Blackpool Council,1069397,REDACTED PERSONAL DATA,4285325,440117,05/08/2020,750,125,BAAA,Legal Services,4707,Counsels Fees,Governance & Partnerships
Blackpool Council,1093061,REDACTED PERSONAL DATA,4285326,MDJ/369535/8,05/08/2020,2460,410,BAAA,Legal Services,4707,Counsels Fees,Governance & Partnerships
Blackpool Council,1106677,REDACTED PERSONAL DATA,4285330,439964,05/08/2020,1170,195,BAAA,Legal Services,4707,Counsels Fees,Governance & Partnerships
Blackpool Council,1085291,REDACTED PERSONAL DATA,4285332,262652,05/08/2020,450,75,BAAA,Legal Services,4707,Counsels Fees,Governance & Partnerships
Blackpool Council,1043719,REDACTED PERSONAL DATA,4285336,261529,05/08/2020,870,145,BAAA,Legal Services,4707,Counsels Fees,Governance & Partnerships
Blackpool Council,1024640,REDACTED PERSONAL DATA,4285343,439798,05/08/2020,1140,190,BAAA,Legal Services,4707,Counsels Fees,Governance & Partnerships
Blackpool Council,1024640,REDACTED PERSONAL DATA,4285347,439043,06/08/2020,840,140,BAAA,Legal Services,4707,Counsels Fees,Governance & Partnerships
Blackpool Council,1116675,Pickering Psychology Services Ltd,4285351,PPS2418,04/08/2020,982.8,163.8,BAAA,Legal Services,4712,Experts Fees,Governance & Partnerships
Blackpool Council,1008066,Nazareth Care Charitable Trust,4285744,323379,19/08/2020,425.14,0,MVD,85+,7582,Indep Sect Residential Homes,Adult & Families
Blackpool Council,1108112,Future Directions Cic,4286240,322621,26/08/2020,1107.66,0,MHA,Older People ( U65) With Ld,4505,Residential Homes,Adult & Families
Blackpool Council,1059463,Trend International Group Ltd,4286755,0001/01421465,07/08/2020,309.75,51.62,PRINTS,Print Blackpool,3408,Services To Clients,Places
Blackpool Council,1065006,Playsafety Ltd,4286788,49960,12/08/2020,1841.4,306.9,PRKOP1,Parks Operational Manager  1,1012,Premises Maint-Priv.Contractor,Community & Env Services
Blackpool Council,1121744,Progress Care & Education Ltd - Endora Priory,4286823,A840000180,13/08/2020,97593.33,0,CWAN,Children With Additional Needs,4501,Private Contractors,Children'S Services
Blackpool Council,1110132,Health Assured Ltd,4286826,SF-059583,07/08/2020,546,91,FK0013,Corporate Health,0992,Medical Fees (Employee),Chief Executive
Blackpool Council,1121463,Calder Lodge Limited,4286843,1040,05/08/2020,1896,0,CWAN,Children With Additional Needs,4501,Private Contractors,Children'S Services
Blackpool Council,1107100,Nonstop Consulting Ltd,4287381,173839,13/08/2020,2032.63,338.77,JAB,Locality,0791,Temp/Relief (Bureau Staff),Children'S Services
Blackpool Council,1105003,Socal Healthcare Ltd,4287384,0620-118-119,04/08/2020,350,0,JDEAAA,Safeguarding Adults,4501,Private Contractors,Adult & Families
Blackpool Council,1105003,Socal Healthcare Ltd,4287705,0720-132-133,04/08/2020,350,0,JDEAAA,Safeguarding Adults,4501,Private Contractors,Adult & Families
Blackpool Council,1044395,Sellick Partnership Limited,4287707,INV319588,12/08/2020,2264.4,377.4,BAAA,Legal Services,0793,Supply Cost Of Other Agency,Governance & Partnerships
Blackpool Council,1044395,Sellick Partnership Limited,4287708,INV319522,12/08/2020,1025.62,170.94,BAAA,Legal Services,0793,Supply Cost Of Other Agency,Governance & Partnerships
Blackpool Council,1077392,Reed Specialist Recruitment Ltd,4287731,E020882894M,10/08/2020,1665.36,277.56,JBR,Lac - Placements,0791,Temp/Relief (Bureau Staff),Children'S Services
Blackpool Council,1077392,Reed Specialist Recruitment Ltd,4287731,E020882894M,10/08/2020,17142.14,2857.03,JAB,Locality,0791,Temp/Relief (Bureau Staff),Children'S Services
Blackpool Council,1077392,Reed Specialist Recruitment Ltd,4287731,E020882894M,10/08/2020,3840.44,640.07,JBT,Looked After Children,0791,Temp/Relief (Bureau Staff),Children'S Services
Blackpool Council,1077392,Reed Specialist Recruitment Ltd,4287731,E020882894M,10/08/2020,1093.72,182.29,JA0502,Principal Social Worker,0791,Temp/Relief (Bureau Staff),Children'S Services
Blackpool Council,1077392,Reed Specialist Recruitment Ltd,4287731,E020882894M,10/08/2020,21049.04,3508.18,JEA,Senior Management,0791,Temp/Relief (Bureau Staff),Children'S Services
Blackpool Council,1077392,Reed Specialist Recruitment Ltd,4287731,E020882894M,10/08/2020,1920.85,320.14,SBOARD,Springboard,0791,Temp/Relief (Bureau Staff),Children'S Services
Blackpool Council,1077392,Reed Specialist Recruitment Ltd,4287731,E020882894M,10/08/2020,1262.72,210.45,APFBAB,Vitaline,0791,Temp/Relief (Bureau Staff),Adult & Families
Blackpool Council,1088102,Whistl Uk Limited,4287740,IN18US20003759,07/08/2020,2374.24,395.71,FCADA,Customer Services,3511,Postages,Resources
Blackpool Council,1121463,Calder Lodge Limited,4287970,1034,04/08/2020,12000,0,CWAN,Children With Additional Needs,4501,Private Contractors,Children'S Services
Blackpool Council,1121463,Calder Lodge Limited,4287971,1037,04/08/2020,12000,0,CWAN,Children With Additional Needs,4501,Private Contractors,Children'S Services
Blackpool Council,1121463,Calder Lodge Limited,4287972,1036,04/08/2020,12000,0,CWAN,Children With Additional Needs,4501,Private Contractors,Children'S Services
Blackpool Council,1121463,Calder Lodge Limited,4287973,1041,05/08/2020,12000,0,CWAN,Children With Additional Needs,4501,Private Contractors,Children'S Services
Blackpool Council,1121463,Calder Lodge Limited,4287976,1035,04/08/2020,12000,0,CWAN,Children With Additional Needs,4501,Private Contractors,Children'S Services
Blackpool Council,1007516,Phoenix Commercial Collections Ltd,4287990,136335,14/08/2020,605.4,100.9,FBBEA,"Income, Recovery & Debtors",3807,Legal & Court Costs,Resources
Blackpool Council,1006099,Blackpool Teaching Hospitals Nhs Ft,4288120,1110054569,24/08/2020,12876.5,0,JBR,Lac - Placements,3801,Other Expenses,Children'S Services
Blackpool Council,1057348,Venn Group Limited,4288131,3674011,14/08/2020,3006,501,JBT,Looked After Children,0793,Supply Cost Of Other Agency,Children'S Services
Blackpool Council,1057348,Venn Group Limited,4288132,3674012,14/08/2020,2241.07,373.51,BAAA,Legal Services,0793,Supply Cost Of Other Agency,Governance & Partnerships
Blackpool Council,1011973,Automatic Alarms Ltd,4288209,333940,11/08/2020,471.05,78.51,PJHA,"Depot, Management & Admin",1171,Alarms,Places
Blackpool Council,1069882,Highwire Ltd,4288215,I16429,13/08/2020,744,124,PTA,Economic Development,1012,Premises Maint-Priv.Contractor,Places
Blackpool Council,1069882,Highwire Ltd,4288216,I16428,13/08/2020,516,86,AER,Dual Use Properties,1012,Premises Maint-Priv.Contractor,Resources
Blackpool Council,1109886,Livewire Systems Ltd,4288225,2224,13/08/2020,300,50,AEB,Buildings,1012,Premises Maint-Priv.Contractor,Resources
Blackpool Council,1117832,Essential Healthcare Solutions Uk Ltd,4288226,0000137802,07/08/2020,362.18,60.36,AEB,Buildings,1012,Premises Maint-Priv.Contractor,Resources
Blackpool Council,1117832,Essential Healthcare Solutions Uk Ltd,4288227,0000137803,07/08/2020,437.4,72.9,APAAAC,Service Managers,1012,Premises Maint-Priv.Contractor,Adult & Families
Blackpool Council,1121068,Rj Lift Services Ltd,4288251,166493,05/08/2020,450,75,AEB,Buildings,1101,Lifts,Resources
Blackpool Council,1087305,Ellis & York Ltd,4288445,7132,04/08/2020,2340.18,390.03,CXB91,Hra Capital Programme 2020/21,6501,Contract Payments,Capital - Chief Executive
Blackpool Council,1011121,Fylde Coast Gate Ltd,4288446,28932,04/08/2020,1512,252,CXB91,Hra Capital Programme 2020/21,6501,Contract Payments,Capital - Chief Executive
Blackpool Council,1011868,W H Tarmacadam Limited,4288447,5631,04/08/2020,3775.2,629.2,CXB91,Hra Capital Programme 2020/21,6501,Contract Payments,Capital - Chief Executive
Blackpool Council,1112992,Key To Independence Ltd,4288453,MBT140720/DH,05/08/2020,375,0,CX4002,Disabled Facilities Grants,6501,Contract Payments,Capital - Adult Social Care
Blackpool Council,1009228,Gibsons Garden Machinery Limited,4288500,211231,14/08/2020,554.98,92.5,CVMU,Cvmu,3041,Other Materials,Community & Env Services
Blackpool Council,1023846,Dennis Eagle Ltd,4288533,DE11327848 ,14/08/2020,480.53,80.09,CVMU,Cvmu,3041,Other Materials,Community & Env Services
Blackpool Council,1120922,Parts Plus Preston,4288557,13532163 ,19/08/2020,1578.72,263.12,CVMU,Cvmu,3041,Other Materials,Community & Env Services
Blackpool Council,1120588,G2 Recruitment Solutions,4288587,71979,14/08/2020,1403.1,233.85,AEF,Facilities,0791,Temp/Relief (Bureau Staff),Resources
Blackpool Council,1049869,Voyage 1 Limited T/A Voyage Care,4288955,BSBS00067,18/08/2020,1689.36,58.12,MSA,18-64,4507,Domiciliary Care,Adult & Families
Blackpool Council,1049869,Voyage 1 Limited T/A Voyage Care,4288956,BSBS00066,18/08/2020,6688.48,396.56,MSA,18-64,4507,Domiciliary Care,Adult & Families
Blackpool Council,1049869,Voyage 1 Limited T/A Voyage Care,4288957,BSBS00065,18/08/2020,5235.14,351.18,MHA,Older People ( U65) With Ld,4507,Domiciliary Care,Adult & Families
Blackpool Council,1099262,Nhs Blackpool Ccg,4289238,7011216617,04/08/2020,40954.68,0,MHA,Older People ( U65) With Ld,4201,Joint Authorities,Adult & Families
Blackpool Council,1099262,Nhs Blackpool Ccg,4289239,7011216561,04/08/2020,6921.19,0,MFC,75-84,4201,Joint Authorities,Adult & Families
Blackpool Council,1099262,Nhs Blackpool Ccg,4289240,7011216569,04/08/2020,2517.96,0,MGA,Adults Under 65 With Mh Needs,4201,Joint Authorities,Adult & Families
Blackpool Council,1099262,Nhs Blackpool Ccg,4289241,7011216571,04/08/2020,6356.54,0,MFA,Adults Under 65 With Mh,4201,Joint Authorities,Adult & Families
Blackpool Council,1099262,Nhs Blackpool Ccg,4289242,7011216572,04/08/2020,6369.59,0,MFA,Adults Under 65 With Mh,4201,Joint Authorities,Adult & Families
Blackpool Council,1099262,Nhs Blackpool Ccg,4289243,7011216580,04/08/2020,3935.01,0,MGC,75-84,4201,Joint Authorities,Adult & Families
Blackpool Council,1099262,Nhs Blackpool Ccg,4289245,7011216590,04/08/2020,5752.5,0,MGA,Adults Under 65 With Mh Needs,4201,Joint Authorities,Adult & Families
Blackpool Council,1099262,Nhs Blackpool Ccg,4289246,7011216594,04/08/2020,3332.2,0,MFA,Adults Under 65 With Mh,4201,Joint Authorities,Adult & Families
Blackpool Council,1099262,Nhs Blackpool Ccg,4289247,7011216595,04/08/2020,4035.01,0,MFA,Adults Under 65 With Mh,4201,Joint Authorities,Adult & Families
Blackpool Council,1099262,Nhs Blackpool Ccg,4289248,7011216593,04/08/2020,4360.12,0,MFA,Adults Under 65 With Mh,4201,Joint Authorities,Adult & Families
Blackpool Council,1099262,Nhs Blackpool Ccg,4289249,7011216598,04/08/2020,9900,0,MFA,Adults Under 65 With Mh,4201,Joint Authorities,Adult & Families
Blackpool Council,1099262,Nhs Blackpool Ccg,4289250,7011216599,04/08/2020,3935,0,MVC,75-84,4201,Joint Authorities,Adult & Families
Blackpool Council,1099262,Nhs Blackpool Ccg,4289251,7011216610,04/08/2020,2082.5,0,MFA,Adults Under 65 With Mh,4201,Joint Authorities,Adult & Families
Blackpool Council,1099262,Nhs Blackpool Ccg,4289252,7011216612,04/08/2020,10172.75,0,MVB,65-74,4201,Joint Authorities,Adult & Families
Blackpool Council,1099262,Nhs Blackpool Ccg,4289253,7011216360,04/08/2020,267.84,0,MFA,Adults Under 65 With Mh,4201,Joint Authorities,Adult & Families
Blackpool Council,1099262,Nhs Blackpool Ccg,4289254,7011216391,04/08/2020,2261.6,0,MFB,65-74,4201,Joint Authorities,Adult & Families
Blackpool Council,1108251,REDACTED PERSONAL DATA,4289495,02-2020,03/08/2020,285,0,JBR,Lac - Placements,3801,Other Expenses,Children'S Services
Blackpool Council,1093457,Ccs Adoption,4289560,13267,04/08/2020,32063,0,JBR,Lac - Placements,3420,Adoption Agency Fees,Children'S Services
Blackpool Council,1002210,Read & Errington,4289733,MRC0149/V2,03/08/2020,98258.6,16376.43,CXB91,Hra Capital Programme 2020/21,6501,Contract Payments,Capital - Chief Executive
Blackpool Council,1009824,Acorn Care & Education Ltd,4290031,34567,14/08/2020,1560,0,CWAN,Children With Additional Needs,2211,Casual Hire,Children'S Services
Blackpool Council,1009824,Acorn Care & Education Ltd,4290032,34568,14/08/2020,610,0,CWAN,Children With Additional Needs,2211,Casual Hire,Children'S Services
Blackpool Council,1009824,Acorn Care & Education Ltd,4290033,34566,14/08/2020,1638,0,CWAN,Children With Additional Needs,2211,Casual Hire,Children'S Services
Blackpool Council,1009824,Acorn Care & Education Ltd,4290035,34570,14/08/2020,620,0,CWAN,Children With Additional Needs,2211,Casual Hire,Children'S Services
Blackpool Council,1104767,North Star Environmental Ltd,4290290,INV-19652,14/08/2020,756,126,CXB91,Hra Capital Programme 2020/21,6501,Contract Payments,Capital - Chief Executive
Blackpool Council,1011973,Automatic Alarms Ltd,4290329,333180,05/08/2020,515.09,85.85,AHG,Art Gallery Summary,1171,Alarms,Places
Blackpool Council,1113964,Weldlag Limited,4290372,INV-1106,07/08/2020,2374.81,395.8,AEB,Buildings,1012,Premises Maint-Priv.Contractor,Resources
Blackpool Council,1093061,REDACTED PERSONAL DATA,4290572,MDJ//369535/9,12/08/2020,570,95,BAAA,Legal Services,4707,Counsels Fees,Governance & Partnerships
Blackpool Council,1041543,REDACTED PERSONAL DATA,4290574,260111,12/08/2020,450,75,BAAA,Legal Services,4707,Counsels Fees,Governance & Partnerships
Blackpool Council,1120491,REDACTED PERSONAL DATA,4290575,1123502,12/08/2020,1764,294,BAAA,Legal Services,4707,Counsels Fees,Governance & Partnerships
Blackpool Council,1120491,REDACTED PERSONAL DATA,4290576,1123502,12/08/2020,350,58.33,BAAA,Legal Services,4707,Counsels Fees,Governance & Partnerships
Blackpool Council,1054707,REDACTED PERSONAL DATA,4290577,434398,05/08/2020,1140,190,BAAA,Legal Services,4707,Counsels Fees,Governance & Partnerships
Blackpool Council,1104781,REDACTED PERSONAL DATA,4290578,554482,07/08/2020,360,60,RK7001,In House - El,4707,Counsels Fees,Internal Insurance
Blackpool Council,1116015,REDACTED PERSONAL DATA,4290579,262755,10/08/2020,480,80,BAAA,Legal Services,4707,Counsels Fees,Governance & Partnerships
Blackpool Council,1100221,Forensic Testing Service Ltd,4290581,57338,07/08/2020,378.36,63.06,BAAA,Legal Services,4712,Experts Fees,Governance & Partnerships
Blackpool Council,1014404,REDACTED PERSONAL DATA,4290583,262596,07/08/2020,1380,230,BAAA,Legal Services,4707,Counsels Fees,Governance & Partnerships
Blackpool Council,1085291,REDACTED PERSONAL DATA,4290585,262671,07/08/2020,1530,255,BAAA,Legal Services,4707,Counsels Fees,Governance & Partnerships
Blackpool Council,1016930,REDACTED PERSONAL DATA,4290586,259735,05/08/2020,960,160,BAAA,Legal Services,4707,Counsels Fees,Governance & Partnerships
Blackpool Council,1009338,Forbes Solicitors,4290588,JM/LAP/L.18.707,07/08/2020,2982,497,RK6008,Gallagher Bassett Sensitive,4705,Solicitors Fees,Internal Insurance
Blackpool Council,1113288,REDACTED PERSONAL DATA,4290589,848R,07/08/2020,865.64,144.27,BAAA,Legal Services,4712,Experts Fees,Governance & Partnerships
Blackpool Council,1088102,Whistl Uk Limited,4290608,IN18US20003898,14/08/2020,2703.16,450.53,FCADA,Customer Services,3511,Postages,Resources
Blackpool Council,1059565,Cy4or Legal Ltd,4290609,IN06186,12/08/2020,268,44.67,BAAA,Legal Services,4712,Experts Fees,Governance & Partnerships
Blackpool Council,1122590,Templeton James Media Capital Ltd,4290690,0146,04/08/2020,529,0,HOPB,Housing Options,1704,Bed & Breakfast Accomm.,Chief Executive
Blackpool Council,1122590,Templeton James Media Capital Ltd,4290704,0144,04/08/2020,736,0,HOPB,Housing Options,1704,Bed & Breakfast Accomm.,Chief Executive
Blackpool Council,1107279,Ali & Co Limited,4290745,BLOCK-26,19/08/2020,2275,0,JDEAAA,Safeguarding Adults,4501,Private Contractors,Adult & Families
Blackpool Council,1107100,Nonstop Consulting Ltd,4290862,174076,20/08/2020,2032.63,338.77,JAB,Locality,0791,Temp/Relief (Bureau Staff),Children'S Services
Blackpool Council,1117457,Wrps Ltd,4290875,5244,04/08/2020,3204,534,CXXXX,Hra Non Specific Contingency,6501,Contract Payments,Capital - Chief Executive
Blackpool Council,1011675,Bambers Remedial Contractors Limited,4290877,16404,04/08/2020,2148,358,CXB91,Hra Capital Programme 2020/21,6501,Contract Payments,Capital - Chief Executive
Blackpool Council,1011675,Bambers Remedial Contractors Limited,4290879,16405,11/08/2020,14541.6,2423.6,CXB91,Hra Capital Programme 2020/21,6501,Contract Payments,Capital - Chief Executive
Blackpool Council,1104767,North Star Environmental Ltd,4290880,INV-19670,21/08/2020,1386,231,CXB91,Hra Capital Programme 2020/21,6501,Contract Payments,Capital - Chief Executive
Blackpool Council,1104767,North Star Environmental Ltd,4290881,INV-19496,11/08/2020,756,126,CXB91,Hra Capital Programme 2020/21,6501,Contract Payments,Capital - Chief Executive
Blackpool Council,1066073,Blackpool Coastal Housing,4290882,30001815,11/08/2020,20630.42,3438.4,JEA,Senior Management,4004,Management Fees,Children'S Services
Blackpool Council,1114000,Dac Beachcroft Claims Limited,4290883,430035579,06/08/2020,1881.6,313.6,RK6007,Davies Group Sensitive,4705,Solicitors Fees,Internal Insurance
Blackpool Council,1006351,Versalift Distributors (Uk) Ltd,4290888,20230 ,14/08/2020,437.16,72.86,CVMU,Cvmu,3041,Other Materials,Community & Env Services
Blackpool Council,1008450,Lawrence Vehicles Ltd T/A Lancashire Daf,4290890,1639321,21/08/2020,287.93,47.99,CVMU,Cvmu,3041,Other Materials,Community & Env Services
Blackpool Council,1010510,Balmers Gm Ltd,4290899,102637 ,14/08/2020,645.52,107.59,CVMU,Cvmu,3041,Other Materials,Community & Env Services
Blackpool Council,1023846,Dennis Eagle Ltd,4290902,DE11328617,20/08/2020,1062.14,177.02,CVMU,Cvmu,3041,Other Materials,Community & Env Services
Blackpool Council,1029067,Johnston Sweepers Limited,4290903,61885068 ,20/08/2020,462.26,77.04,CVMU,Cvmu,3041,Other Materials,Community & Env Services
Blackpool Council,1029067,Johnston Sweepers Limited,4290904,61885067 ,20/08/2020,385.32,64.22,CVMU,Cvmu,3041,Other Materials,Community & Env Services
Blackpool Council,1101279,Greenpass Training,4290913,150701 ,14/08/2020,924,0,CVMU,Cvmu,3426,Course Fees,Community & Env Services
Blackpool Council,1077392,Reed Specialist Recruitment Ltd,4290919,E020883809M,10/08/2020,1620.35,270.06,JBR,Lac - Placements,0791,Temp/Relief (Bureau Staff),Children'S Services
Blackpool Council,1077392,Reed Specialist Recruitment Ltd,4290919,E020883809M,10/08/2020,14821.42,2470.24,JAB,Locality,0791,Temp/Relief (Bureau Staff),Children'S Services
Blackpool Council,1077392,Reed Specialist Recruitment Ltd,4290919,E020883809M,10/08/2020,3776.65,629.44,JBT,Looked After Children,0791,Temp/Relief (Bureau Staff),Children'S Services
Blackpool Council,1077392,Reed Specialist Recruitment Ltd,4290919,E020883809M,10/08/2020,1093.72,182.29,JA0502,Principal Social Worker,0791,Temp/Relief (Bureau Staff),Children'S Services
Blackpool Council,1077392,Reed Specialist Recruitment Ltd,4290919,E020883809M,10/08/2020,17662.07,2943.69,JEA,Senior Management,0791,Temp/Relief (Bureau Staff),Children'S Services
Blackpool Council,1077392,Reed Specialist Recruitment Ltd,4290919,E020883809M,10/08/2020,1920.85,320.14,SBOARD,Springboard,0791,Temp/Relief (Bureau Staff),Children'S Services
Blackpool Council,1077392,Reed Specialist Recruitment Ltd,4290919,E020883809M,10/08/2020,2186.94,364.5,APFBAB,Vitaline,0791,Temp/Relief (Bureau Staff),Adult & Families
Blackpool Council,1007516,Phoenix Commercial Collections Ltd,4290925,136756,21/08/2020,872.89,145.48,FBBEA,"Income, Recovery & Debtors",3807,Legal & Court Costs,Resources
Blackpool Council,1118512,Sanctuary Personnel Ltd,4290940,INN00001347,04/08/2020,14405.56,2400.93,JBT,Looked After Children,0791,Temp/Relief (Bureau Staff),Children'S Services
Blackpool Council,1024235,Adoption Matters,4291017,201334,19/08/2020,282.9,0,JBR,Lac - Placements,3420,Adoption Agency Fees,Children'S Services
Blackpool Council,1017728,Quartzelec Ltd,4291369,7165959,14/08/2020,1688.11,281.35,AEB,Buildings,1012,Premises Maint-Priv.Contractor,Resources
Blackpool Council,1099262,Nhs Blackpool Ccg,4291784,7011216605,11/08/2020,2584.76,0,MVC,75-84,4201,Joint Authorities,Adult & Families
Blackpool Council,1099262,Nhs Blackpool Ccg,4291785,7011216613,11/08/2020,1977.5,0,MFA,Adults Under 65 With Mh,4201,Joint Authorities,Adult & Families
Blackpool Council,1099262,Nhs Blackpool Ccg,4291786,7011216604,11/08/2020,6358.02,0,MFB,65-74,4201,Joint Authorities,Adult & Families
Blackpool Council,1099262,Nhs Blackpool Ccg,4291787,7011216575,11/08/2020,6358.02,0,MGD,85+,4201,Joint Authorities,Adult & Families
Blackpool Council,1099262,Nhs Blackpool Ccg,4291788,7011216587,11/08/2020,3688,0,MFB,65-74,4201,Joint Authorities,Adult & Families
Blackpool Council,1099262,Nhs Blackpool Ccg,4291789,7011216576,11/08/2020,6386.36,0,MFB,65-74,4201,Joint Authorities,Adult & Families
Blackpool Council,1099262,Nhs Blackpool Ccg,4291790,7011216614,11/08/2020,2572.5,0,MFA,Adults Under 65 With Mh,4201,Joint Authorities,Adult & Families
Blackpool Council,1099262,Nhs Blackpool Ccg,4291791,7011216562,11/08/2020,5951.76,0,MFA,Adults Under 65 With Mh,4201,Joint Authorities,Adult & Families
Blackpool Council,1099262,Nhs Blackpool Ccg,4291792,7011216574,11/08/2020,11008.19,0,MFA,Adults Under 65 With Mh,4201,Joint Authorities,Adult & Families
Blackpool Council,1118652,Paradigm Professional Consultancy (Fac089),4292049,V66V109342,07/08/2020,2152.82,358.8,JAH,Duty And Assessment,0791,Temp/Relief (Bureau Staff),Children'S Services
Blackpool Council,1118652,Paradigm Professional Consultancy (Fac089),4292050,V66V109368,07/08/2020,2152.82,358.8,JAH,Duty And Assessment,0791,Temp/Relief (Bureau Staff),Children'S Services
Blackpool Council,1087305,Ellis & York Ltd,4292057,7130,11/08/2020,507.96,84.66,CXB91,Hra Capital Programme 2020/21,6501,Contract Payments,Capital - Chief Executive
Blackpool Council,1087305,Ellis & York Ltd,4292058,7129,11/08/2020,1344,224,CXB91,Hra Capital Programme 2020/21,6501,Contract Payments,Capital - Chief Executive
Blackpool Council,1087305,Ellis & York Ltd,4292059,7170,11/08/2020,3081.36,513.56,CXB91,Hra Capital Programme 2020/21,6501,Contract Payments,Capital - Chief Executive
Blackpool Council,1087253,Routes Healthcare North Limited,4292232,111761,04/08/2020,3175.99,0,CWAN,Children With Additional Needs,4403,Special Needs - Children,Children'S Services
Blackpool Council,1044395,Sellick Partnership Limited,4292235,INV320300,19/08/2020,984.22,164.04,BAAA,Legal Services,0793,Supply Cost Of Other Agency,Governance & Partnerships
Blackpool Council,1044395,Sellick Partnership Limited,4292236,INV320296,19/08/2020,2264.4,377.4,BAAA,Legal Services,0793,Supply Cost Of Other Agency,Governance & Partnerships
Blackpool Council,1044395,Sellick Partnership Limited,4292237,INV321039,26/08/2020,2264.4,377.4,BAAA,Legal Services,0793,Supply Cost Of Other Agency,Governance & Partnerships
Blackpool Council,1044395,Sellick Partnership Limited,4292239,INV321044,26/08/2020,1129.94,188.32,BAAA,Legal Services,0793,Supply Cost Of Other Agency,Governance & Partnerships
Blackpool Council,1114367,Northwest Leaving Care Services Ltd,4292249,2767JDS,05/08/2020,4700,0,JEA,Senior Management,5551,Rent & Rent Bonds,Children'S Services
Blackpool Council,1114367,Northwest Leaving Care Services Ltd,4292250,2766BHS,05/08/2020,4800,0,JEA,Senior Management,5551,Rent & Rent Bonds,Children'S Services
Blackpool Council,1103360,Complete Background Screening Ltd,4292252,INV-17736,13/08/2020,318.6,53.1,FK1005,Dbs Recharging,6207,Personnel Services,Chief Executive
Blackpool Council,1118765,Dwf Law Llp,4292270,157-0090333,07/08/2020,714,119,DDC,Partnerships & Business Dev,3807,Legal & Court Costs,Places
Blackpool Council,1105240,Hanzak Ltd T/A Dr Rashad Nazir,4292271,20977RN,21/08/2020,350,0,JDEAAA,Safeguarding Adults,4501,Private Contractors,Adult & Families
Blackpool Council,1042797,Lux Occ Medical Ltd,4292283,BBC/176,04/08/2020,1800,0,FK0013,Corporate Health,0992,Medical Fees (Employee),Chief Executive
Blackpool Council,1011518,Tw Joinery & Fencing Contractors,4292291,3296,12/08/2020,2730,455,CXB91,Hra Capital Programme 2020/21,6501,Contract Payments,Capital - Chief Executive
Blackpool Council,1011868,W H Tarmacadam Limited,4292298,5695,11/08/2020,1188,198,CXB91,Hra Capital Programme 2020/21,6501,Contract Payments,Capital - Chief Executive
Blackpool Council,1007924,Napier Homecare Services Limited,4292314,BP1323A,19/08/2020,4379.15,0,MTE,Undefined Age Group,4507,Domiciliary Care,Adult & Families
Blackpool Council,1066073,Blackpool Coastal Housing,4292315,30001819,19/08/2020,286.28,47.71,DOMABU,Domestic Abuse,3401,General Services,Children'S Services
Blackpool Council,1066073,Blackpool Coastal Housing,4292316,30001818,19/08/2020,923,153.83,DOMABU,Domestic Abuse,3401,General Services,Children'S Services
Blackpool Council,1024640,REDACTED PERSONAL DATA,4292324,440264,07/08/2020,810,135,BAAA,Legal Services,4707,Counsels Fees,Governance & Partnerships
Blackpool Council,1093061,REDACTED PERSONAL DATA,4292325,MDJ/369535/10,14/08/2020,1020,170,BAAA,Legal Services,4707,Counsels Fees,Governance & Partnerships
Blackpool Council,1069397,REDACTED PERSONAL DATA,4292329,438654,14/08/2020,1650,275,BAAA,Legal Services,4707,Counsels Fees,Governance & Partnerships
Blackpool Council,1102179,Bedspace Resource Ltd,4292334,171873,07/08/2020,870,145,JEA,Senior Management,5551,Rent & Rent Bonds,Children'S Services
Blackpool Council,1112371,Ravenscroft Psychology Services,4292335,LEITCH COG BBC,14/08/2020,1083.33,0,BAAA,Legal Services,4712,Experts Fees,Governance & Partnerships
Blackpool Council,1102179,Bedspace Resource Ltd,4292338,171874,07/08/2020,870,145,JEA,Senior Management,5551,Rent & Rent Bonds,Children'S Services
Blackpool Council,1057348,Venn Group Limited,4292340,3675755,21/08/2020,1891.01,315.17,BAAA,Legal Services,0793,Supply Cost Of Other Agency,Governance & Partnerships
Blackpool Council,1057348,Venn Group Limited,4292341,3675754,21/08/2020,2952,492,JBT,Looked After Children,0793,Supply Cost Of Other Agency,Children'S Services
Blackpool Council,1066717,The Yachtsman Ltd,4293034,325779,26/08/2020,293.15,0,MVC,75-84,7582,Indep Sect Residential Homes,Adult & Families
Blackpool Council,1066717,The Yachtsman Ltd,4293035,325834,26/08/2020,1107.66,0,MGC,75-84,4505,Residential Homes,Adult & Families
Blackpool Council,1108112,Future Directions Cic,4293118,325373,26/08/2020,1107.66,0,MHA,Older People ( U65) With Ld,4505,Residential Homes,Adult & Families
Blackpool Council,1117832,Essential Healthcare Solutions Uk Ltd,4293396,0000138240,21/08/2020,276.6,46.1,AEB,Buildings,1012,Premises Maint-Priv.Contractor,Resources
Blackpool Council,1121068,Rj Lift Services Ltd,4293411,167101,14/08/2020,497.52,82.92,AER,Dual Use Properties,1101,Lifts,Resources
Blackpool Council,1122518,Dtn Ltd T/A New Oceans Hotel,4293751,3,19/08/2020,775,0,HOPB,Housing Options,1704,Bed & Breakfast Accomm.,Chief Executive
Blackpool Council,1039034,Contract Floors Ltd,4293763,INV-1182,12/08/2020,715.8,119.3,CXXXX,Hra Non Specific Contingency,6501,Contract Payments,Capital - Chief Executive
Blackpool Council,1039034,Contract Floors Ltd,4293764,INV-1222,12/08/2020,1065,177.5,CXXXX,Hra Non Specific Contingency,6501,Contract Payments,Capital - Chief Executive
Blackpool Council,1039034,Contract Floors Ltd,4293765,INV-1226,12/08/2020,262.8,43.8,CXXXX,Hra Non Specific Contingency,6501,Contract Payments,Capital - Chief Executive
Blackpool Council,1118282,1 Homecare Ltd,4294412,11269901,04/08/2020,3518.11,0,MTE,Undefined Age Group,4507,Domiciliary Care,Adult & Families
Blackpool Council,1108346,Lancashire Interpretation & Translation Serv,4294414,LITS140720APAK,11/08/2020,920.13,153.36,BAAA,Legal Services,4712,Experts Fees,Governance & Partnerships
Blackpool Council,1084280,Alpha Biolabs (Fac088),4294416,510381,04/08/2020,1030.8,171.8,BAAA,Legal Services,4712,Experts Fees,Governance & Partnerships
Blackpool Council,1084280,Alpha Biolabs (Fac088),4294419,510182,04/08/2020,744,124,BAAA,Legal Services,4712,Experts Fees,Governance & Partnerships
Blackpool Council,1008630,REDACTED PERSONAL DATA,4294422,433834,04/08/2020,1590,265,BAAA,Legal Services,4707,Counsels Fees,Governance & Partnerships
Blackpool Council,1110326,REDACTED PERSONAL DATA,4294423,422894,04/08/2020,810,135,BAAA,Legal Services,4707,Counsels Fees,Governance & Partnerships
Blackpool Council,1007612,REDACTED PERSONAL DATA,4294426,259735,04/08/2020,570,95,BAAA,Legal Services,4707,Counsels Fees,Governance & Partnerships
Blackpool Council,1007612,REDACTED PERSONAL DATA,4294428,260432,04/08/2020,270,45,BAAA,Legal Services,4707,Counsels Fees,Governance & Partnerships
Blackpool Council,1007612,REDACTED PERSONAL DATA,4294429,261752,04/08/2020,450,75,BAAA,Legal Services,4707,Counsels Fees,Governance & Partnerships
Blackpool Council,1121103,REDACTED PERSONAL DATA,4294431,557913,19/08/2020,990,165,AMH,Mental Health,3807,Legal & Court Costs,Adult & Families
Blackpool Council,1085291,REDACTED PERSONAL DATA,4294433,262811,14/08/2020,390,65,BAAA,Legal Services,4707,Counsels Fees,Governance & Partnerships
Blackpool Council,1122514,REDACTED PERSONAL DATA,4294434,439964,14/08/2020,420,70,BAAA,Legal Services,4707,Counsels Fees,Governance & Partnerships
Blackpool Council,1085291,REDACTED PERSONAL DATA,4294435,262755,13/08/2020,1050,175,BAAA,Legal Services,4707,Counsels Fees,Governance & Partnerships
Blackpool Council,1086484,REDACTED PERSONAL DATA,4294436,262017,19/08/2020,720,120,BAAA,Legal Services,4707,Counsels Fees,Governance & Partnerships
Blackpool Council,1073098,Safenet,4294444,1114,24/08/2020,19418,0,DOMABU,Domestic Abuse,3401,General Services,Children'S Services
Blackpool Council,1005102,Sandcastle Waterpark - Boc Ltd,4294449,7591,03/08/2020,6280.32,1046.72,PAROPE,Parking Operational,1101,Lifts,Budgets Outside Cash Limits
Blackpool Council,1122741,Northern Security International Ltd,4294452,380,05/08/2020,516.6,86.1,SECURE,Security Services,3401,General Services,Community & Env Services
Blackpool Council,1122741,Northern Security International Ltd,4294453,379,05/08/2020,848.7,141.45,SECURE,Security Services,3401,General Services,Community & Env Services
Blackpool Council,1122741,Northern Security International Ltd,4294454,378,05/08/2020,430.5,71.75,SECURE,Security Services,3401,General Services,Community & Env Services
Blackpool Council,1122741,Northern Security International Ltd,4294455,377,05/08/2020,1033.2,172.2,SECURE,Security Services,3401,General Services,Community & Env Services
Blackpool Council,1122741,Northern Security International Ltd,4294456,376,05/08/2020,2287.8,381.3,SECURE,Security Services,3401,General Services,Community & Env Services
Blackpool Council,1122741,Northern Security International Ltd,4294457,375,05/08/2020,645.76,107.63,SECURE,Security Services,3401,General Services,Community & Env Services
Blackpool Council,1122741,Northern Security International Ltd,4294459,374,05/08/2020,2066.4,344.4,SECURE,Security Services,3401,General Services,Community & Env Services
Blackpool Council,1111078,Dr Y P Shukla,4294465,35/2020,24/08/2020,875,0,JDEAAA,Safeguarding Adults,4501,Private Contractors,Adult & Families
Blackpool Council,1115557,Tracey Carysforth,4294466,30,06/08/2020,5436.45,0,CX4002,Disabled Facilities Grants,6501,Contract Payments,Capital - Adult Social Care
Blackpool Council,1111078,Dr Y P Shukla,4294467,38/2020,25/08/2020,1050,0,JDEAAA,Safeguarding Adults,4501,Private Contractors,Adult & Families
Blackpool Council,1111078,Dr Y P Shukla,4294471,37/2020,25/08/2020,875,0,JDEAAA,Safeguarding Adults,4501,Private Contractors,Adult & Families
Blackpool Council,1091610,Communicate Slt Cic,4294473,INV-0453,19/08/2020,17703.56,0,EP8002,Speech And Language,3801,Other Expenses,Children'S Services
Blackpool Council,1088102,Whistl Uk Limited,4294475,IN18US20004071,21/08/2020,2492.78,415.46,FCADA,Customer Services,3511,Postages,Resources
Blackpool Council,1073709,Delphi Medical Limited,4294482,SINV86/00000561,03/08/2020,2130,0,PUBH04,Substance Misuse,4501,Private Contractors,Public Health
Blackpool Council,1073709,Delphi Medical Limited,4294484,SINV86/00000567,03/08/2020,1491,0,PUBH04,Substance Misuse,4501,Private Contractors,Public Health
Blackpool Council,1073709,Delphi Medical Limited,4294486,SINV86/00000566,03/08/2020,2982,0,PUBH04,Substance Misuse,4501,Private Contractors,Public Health
Blackpool Council,1073709,Delphi Medical Limited,4294487,SINV86/00000562,03/08/2020,2130,0,PUBH04,Substance Misuse,4501,Private Contractors,Public Health
Blackpool Council,1073709,Delphi Medical Limited,4294492,SINV86/00000563,03/08/2020,2130,0,PUBH04,Substance Misuse,4501,Private Contractors,Public Health
Blackpool Council,1111078,Dr Y P Shukla,4294495,34/2020,24/08/2020,1050,0,JDEAAA,Safeguarding Adults,4501,Private Contractors,Adult & Families
Blackpool Council,1111078,Dr Y P Shukla,4294499,36/2020,24/08/2020,875,0,JDEAAA,Safeguarding Adults,4501,Private Contractors,Adult & Families
Blackpool Council,1077392,Reed Specialist Recruitment Ltd,4294502,E020884785M,19/08/2020,1620.35,270.06,JBR,Lac - Placements,0791,Temp/Relief (Bureau Staff),Children'S Services
Blackpool Council,1077392,Reed Specialist Recruitment Ltd,4294502,E020884785M,19/08/2020,12145.92,2024.32,JAB,Locality,0791,Temp/Relief (Bureau Staff),Children'S Services
Blackpool Council,1077392,Reed Specialist Recruitment Ltd,4294502,E020884785M,19/08/2020,3776.65,629.44,JBT,Looked After Children,0791,Temp/Relief (Bureau Staff),Children'S Services
Blackpool Council,1077392,Reed Specialist Recruitment Ltd,4294502,E020884785M,19/08/2020,1093.72,182.29,JA0502,Principal Social Worker,0791,Temp/Relief (Bureau Staff),Children'S Services
Blackpool Council,1077392,Reed Specialist Recruitment Ltd,4294502,E020884785M,19/08/2020,19991.3,3331.89,JEA,Senior Management,0791,Temp/Relief (Bureau Staff),Children'S Services
Blackpool Council,1077392,Reed Specialist Recruitment Ltd,4294502,E020884785M,19/08/2020,1920.85,320.14,SBOARD,Springboard,0791,Temp/Relief (Bureau Staff),Children'S Services
Blackpool Council,1077392,Reed Specialist Recruitment Ltd,4294502,E020884785M,19/08/2020,1205.29,200.89,APFBAB,Vitaline,0791,Temp/Relief (Bureau Staff),Adult & Families
Blackpool Council,1087782,Lisa Murdoch Business,4295371,1,20/08/2020,380,0,HOPB,Housing Options,1704,Bed & Breakfast Accomm.,Chief Executive
Blackpool Council,1066073,Blackpool Coastal Housing,4295372,30001820,27/08/2020,17700,2950,CXB91,Hra Capital Programme 2020/21,6501,Contract Payments,Capital - Chief Executive
Blackpool Council,1115716,North Liverpool Construction Ltd (Fac067),4295377,127714,28/08/2020,612,102,CXAAA,Local Authority Dwellings,6501,Contract Payments,Capital - Chief Executive
Blackpool Council,1115716,North Liverpool Construction Ltd (Fac067),4295378,127715,28/08/2020,390,65,MVA,18-64,5401,Aids To Daily Living,Adult & Families
Blackpool Council,1006196,Prism Medical Uk Ltd,4295408,965236A,26/08/2020,575.4,95.9,MTE,Undefined Age Group,5401,Aids To Daily Living,Adult & Families
Blackpool Council,1119514,Emchia Asbestos Solutions Ltd,4295410,INV-1182,28/08/2020,19294.56,3215.76,CXB91,Hra Capital Programme 2020/21,6501,Contract Payments,Capital - Chief Executive
Blackpool Council,1020179,The James Mercer Group Ltd,4295419,130645,21/08/2020,3117.46,519.58,AER,Dual Use Properties,1012,Premises Maint-Priv.Contractor,Resources
Blackpool Council,1120588,G2 Recruitment Solutions,4295446,72160,21/08/2020,1403.1,233.85,AEF,Facilities,0791,Temp/Relief (Bureau Staff),Resources
Blackpool Council,1120588,G2 Recruitment Solutions,4295447,72372,28/08/2020,1404.72,234.12,AEF,Facilities,0791,Temp/Relief (Bureau Staff),Resources
Blackpool Council,1059217,Blackpool Carers Centre Ltd,4295448,1174,24/08/2020,1951.34,0,MRE,Undefined Age Group,3801,Other Expenses,Adult & Families
Blackpool Council,1123214,Fylde Coast Advice & Legal Centre,4295450,INGOING REFUND,05/08/2020,511.09,0,PTA,Economic Development,3313,General Expenses,Places
Blackpool Council,1111328,Hadley Fraser Ltd,4295452,BLA108,28/08/2020,5595,932.5,JDEAAA,Safeguarding Adults,4501,Private Contractors,Adult & Families
Blackpool Council,1113794,Premier Advisory Group Limited,4295454,BCS027,10/08/2020,2160,360,CWAN,Children With Additional Needs,3408,Services To Clients,Children'S Services
Blackpool Council,1007516,Phoenix Commercial Collections Ltd,4295455,113250,03/08/2020,2188.5,364.75,FV6705,Phoenix Commercial Collection,7366,Car Parking Fees,Budgets Outside Cash Limits
Blackpool Council,1007516,Phoenix Commercial Collections Ltd,4295456,113125,03/08/2020,2966.4,494.4,FV6705,Phoenix Commercial Collection,7366,Car Parking Fees,Budgets Outside Cash Limits
Blackpool Council,1007516,Phoenix Commercial Collections Ltd,4295457,111801,03/08/2020,1938,323,FV6705,Phoenix Commercial Collection,7366,Car Parking Fees,Budgets Outside Cash Limits
Blackpool Council,1007516,Phoenix Commercial Collections Ltd,4295458,111644,03/08/2020,1386,231,FV6705,Phoenix Commercial Collection,7366,Car Parking Fees,Budgets Outside Cash Limits
Blackpool Council,1007516,Phoenix Commercial Collections Ltd,4295459,110899,03/08/2020,2202,367,FV6705,Phoenix Commercial Collection,7366,Car Parking Fees,Budgets Outside Cash Limits
Blackpool Council,1118512,Sanctuary Personnel Ltd,4295460,INN00001350,07/08/2020,14405.56,2400.93,JBT,Looked After Children,0791,Temp/Relief (Bureau Staff),Children'S Services
Blackpool Council,1118512,Sanctuary Personnel Ltd,4295461,INN00001351,17/08/2020,12005.75,2000.96,JAB,Locality,0791,Temp/Relief (Bureau Staff),Children'S Services
Blackpool Council,1073709,Delphi Medical Limited,4295463,SINV86/00000445,11/08/2020,3621,0,HOPB,Housing Options,1704,Bed & Breakfast Accomm.,Chief Executive
Blackpool Council,1118512,Sanctuary Personnel Ltd,4295464,INN00001352,07/08/2020,538.92,89.82,JBT,Looked After Children,0791,Temp/Relief (Bureau Staff),Children'S Services
Blackpool Council,1008450,Lawrence Vehicles Ltd T/A Lancashire Daf,4295467,1639344,21/08/2020,584.28,97.38,CVMU,Cvmu,3041,Other Materials,Community & Env Services
Blackpool Council,1013690,Enterprise Rent-A-Car Uk Ltd,4295494,950039890885,27/08/2020,516.1,86.02,CVMU,Cvmu,2211,Casual Hire,Community & Env Services
Blackpool Council,1029067,Johnston Sweepers Limited,4295497,61886548 ,21/08/2020,260.16,43.36,CVMU,Cvmu,3041,Other Materials,Community & Env Services
Blackpool Council,1029067,Johnston Sweepers Limited,4295498,61888422,28/08/2020,497.38,82.9,CVMU,Cvmu,3041,Other Materials,Community & Env Services
Blackpool Council,1029067,Johnston Sweepers Limited,4295499,61888423 ,28/08/2020,385.32,64.22,CVMU,Cvmu,3041,Other Materials,Community & Env Services
Blackpool Council,1114632,Gs Social Care Solutions Ltd,4295529,13353,18/08/2020,6135,0,CWAN,Children With Additional Needs,4403,Special Needs - Children,Children'S Services
Blackpool Council,1118604,Sagecare Limited,4295530,C19246190720,04/08/2020,13462.32,0,MTE,Undefined Age Group,4507,Domiciliary Care,Adult & Families
Blackpool Council,1105003,Socal Healthcare Ltd,4295531,0720-139-140,24/08/2020,350,0,JDEAAA,Safeguarding Adults,4501,Private Contractors,Adult & Families
Blackpool Council,1107100,Nonstop Consulting Ltd,4295532,174351,28/08/2020,2032.63,338.77,JAB,Locality,0791,Temp/Relief (Bureau Staff),Children'S Services
Blackpool Council,1011675,Bambers Remedial Contractors Limited,4295696,16418,06/08/2020,330,0,MVB,65-74,5401,Aids To Daily Living,Adult & Families
Blackpool Council,1011675,Bambers Remedial Contractors Limited,4295698,16413,06/08/2020,460,0,MVB,65-74,5401,Aids To Daily Living,Adult & Families
Blackpool Council,1011675,Bambers Remedial Contractors Limited,4295699,16414,06/08/2020,330,0,MVB,65-74,5401,Aids To Daily Living,Adult & Families
Blackpool Council,1011675,Bambers Remedial Contractors Limited,4295701,16416,06/08/2020,390,0,MVB,65-74,5401,Aids To Daily Living,Adult & Families
Blackpool Council,1011675,Bambers Remedial Contractors Limited,4295702,16417,06/08/2020,260,0,MVA,18-64,5401,Aids To Daily Living,Adult & Families
Blackpool Council,1011675,Bambers Remedial Contractors Limited,4295703,16419,06/08/2020,260,0,MVB,65-74,5401,Aids To Daily Living,Adult & Families
Blackpool Council,1123221,REDACTED PERSONAL DATA,4295724,24882802 GRANT,03/08/2020,10000,0,AD0333,Business Grants,3701,Grants,Contingencies
Blackpool Council,1123222,S Witkiewicz T/A Wildshark Limited,4295725,25243622 GRANT,03/08/2020,10000,0,AD0333,Business Grants,3701,Grants,Contingencies
Blackpool Council,1048095,Multifront Properties Limited,4295726,25314753 GRANT,03/08/2020,10000,0,AD0333,Business Grants,3701,Grants,Contingencies
Blackpool Council,1057044,Fylde Property Company Ltd,4295727,25314890 GRANT,03/08/2020,10000,0,AD0333,Business Grants,3701,Grants,Contingencies
Blackpool Council,1103774,Highcrown Estates Ltd,4295728,25314906 GRANT,03/08/2020,10000,0,AD0333,Business Grants,3701,Grants,Contingencies
Blackpool Council,1104697,Moor Park Property Company Ltd,4295729,25314913 GRANT,03/08/2020,10000,0,AD0333,Business Grants,3701,Grants,Contingencies
Blackpool Council,1123223,A1 Accounting Solution Ltd,4295730,25315749 GRANT,03/08/2020,10000,0,AD0333,Business Grants,3701,Grants,Contingencies
Blackpool Council,1005266,REDACTED PERSONAL DATA,4295731,326722,03/08/2020,659.86,0,JEA,Senior Management,4809,Special Guardianship,Children'S Services
Blackpool Council,1005947,REDACTED PERSONAL DATA,4295732,326621,03/08/2020,659.86,0,JEA,Senior Management,4809,Special Guardianship,Children'S Services
Blackpool Council,1005947,REDACTED PERSONAL DATA,4295733,326620,03/08/2020,752.86,0,JEA,Senior Management,4809,Special Guardianship,Children'S Services
Blackpool Council,1005947,REDACTED PERSONAL DATA,4295734,326778,03/08/2020,876.86,0,JEA,Senior Management,4809,Special Guardianship,Children'S Services
Blackpool Council,1006685,REDACTED PERSONAL DATA,4295735,326782,03/08/2020,766.5,0,JEA,Senior Management,4809,Special Guardianship,Children'S Services
Blackpool Council,1006685,REDACTED PERSONAL DATA,4295736,326783,03/08/2020,766.5,0,JEA,Senior Management,4809,Special Guardianship,Children'S Services
Blackpool Council,1006685,REDACTED PERSONAL DATA,4295737,326622,03/08/2020,766.5,0,JEA,Senior Management,4809,Special Guardianship,Children'S Services
Blackpool Council,1007093,REDACTED PERSONAL DATA,4295738,326776,03/08/2020,1235.57,0,JEA,Senior Management,4809,Special Guardianship,Children'S Services
Blackpool Council,1007093,REDACTED PERSONAL DATA,4295739,326695,03/08/2020,1235.57,0,JEA,Senior Management,4809,Special Guardianship,Children'S Services
Blackpool Council,1007093,REDACTED PERSONAL DATA,4295740,326617,03/08/2020,1328.57,0,JEA,Senior Management,4809,Special Guardianship,Children'S Services
Blackpool Council,1007093,REDACTED PERSONAL DATA,4295741,326656,03/08/2020,1241.57,0,JEA,Senior Management,4809,Special Guardianship,Children'S Services
Blackpool Council,1010522,REDACTED PERSONAL DATA,4295742,326724,03/08/2020,752.86,0,JEA,Senior Management,4809,Special Guardianship,Children'S Services
Blackpool Council,1013085,REDACTED PERSONAL DATA,4295743,326609,03/08/2020,659.86,0,JEA,Senior Management,4809,Special Guardianship,Children'S Services
Blackpool Council,1013085,REDACTED PERSONAL DATA,4295744,326608,03/08/2020,597.86,0,JEA,Senior Management,4809,Special Guardianship,Children'S Services
Blackpool Council,1018980,REDACTED PERSONAL DATA,4295745,326571,03/08/2020,1328.57,0,JBR,Lac - Placements,4814,Adoption Allowances,Children'S Services
Blackpool Council,1023504,REDACTED PERSONAL DATA,4295746,326465,03/08/2020,876.86,0,JEA,Senior Management,4809,Special Guardianship,Children'S Services
Blackpool Council,1023636,REDACTED PERSONAL DATA,4295747,326632,03/08/2020,659.86,0,JEA,Senior Management,4809,Special Guardianship,Children'S Services
Blackpool Council,1025390,REDACTED PERSONAL DATA,4295748,326717,03/08/2020,876.86,0,JEA,Senior Management,4811,Residence Orders,Children'S Services
Blackpool Council,1029394,REDACTED PERSONAL DATA,4295749,326805,03/08/2020,876.86,0,JEA,Senior Management,4809,Special Guardianship,Children'S Services
Blackpool Council,1038672,REDACTED PERSONAL DATA,4295750,326507,03/08/2020,584.57,0,JBR,Lac - Placements,4814,Adoption Allowances,Children'S Services
Blackpool Council,1038672,REDACTED PERSONAL DATA,4295751,326448,03/08/2020,584.57,0,JBR,Lac - Placements,4814,Adoption Allowances,Children'S Services
Blackpool Council,1042600,REDACTED PERSONAL DATA,4295752,326397,03/08/2020,876.86,0,JEA,Senior Management,4811,Residence Orders,Children'S Services
Blackpool Council,1043459,REDACTED PERSONAL DATA,4295753,326451,03/08/2020,659.86,0,JBR,Lac - Placements,4814,Adoption Allowances,Children'S Services
Blackpool Council,1043651,REDACTED PERSONAL DATA,4295754,326712,03/08/2020,659.86,0,JBR,Lac - Placements,4814,Adoption Allowances,Children'S Services
Blackpool Council,1043955,REDACTED PERSONAL DATA,4295755,326423,03/08/2020,752.86,0,JEA,Senior Management,4809,Special Guardianship,Children'S Services
Blackpool Council,1048741,REDACTED PERSONAL DATA,4295756,326674,03/08/2020,752.86,0,JEA,Senior Management,4809,Special Guardianship,Children'S Services
Blackpool Council,1048947,REDACTED PERSONAL DATA,4295757,326454,03/08/2020,876.86,0,JEA,Senior Management,4811,Residence Orders,Children'S Services
Blackpool Council,1052328,REDACTED PERSONAL DATA,4295758,326516,03/08/2020,876.86,0,JEA,Senior Management,4811,Residence Orders,Children'S Services
Blackpool Council,1052960,REDACTED PERSONAL DATA,4295759,326678,03/08/2020,659.86,0,JEA,Senior Management,4809,Special Guardianship,Children'S Services
Blackpool Council,1052960,REDACTED PERSONAL DATA,4295760,326679,03/08/2020,597.86,0,JEA,Senior Management,4809,Special Guardianship,Children'S Services
Blackpool Council,1054536,REDACTED PERSONAL DATA,4295761,326556,03/08/2020,876.86,0,JEA,Senior Management,4811,Residence Orders,Children'S Services
Blackpool Council,1054614,REDACTED PERSONAL DATA,4295762,326591,03/08/2020,752.86,0,JEA,Senior Management,4809,Special Guardianship,Children'S Services
Blackpool Council,1057277,REDACTED PERSONAL DATA,4295763,326709,03/08/2020,659.86,0,JBR,Lac - Placements,4814,Adoption Allowances,Children'S Services
Blackpool Council,1058573,REDACTED PERSONAL DATA,4295764,326579,03/08/2020,752.86,0,JEA,Senior Management,4809,Special Guardianship,Children'S Services
Blackpool Council,1059285,REDACTED PERSONAL DATA,4295765,326452,03/08/2020,1129.29,0,JBR,Lac - Placements,4814,Adoption Allowances,Children'S Services
Blackpool Council,1059285,REDACTED PERSONAL DATA,4295766,326395,03/08/2020,1085,0,JBR,Lac - Placements,4814,Adoption Allowances,Children'S Services
Blackpool Council,1059285,REDACTED PERSONAL DATA,4295767,326593,03/08/2020,961,0,JEA,Senior Management,4809,Special Guardianship,Children'S Services
Blackpool Council,1062123,REDACTED PERSONAL DATA,4295768,326513,03/08/2020,752.86,0,JBR,Lac - Placements,4814,Adoption Allowances,Children'S Services
Blackpool Council,1063757,REDACTED PERSONAL DATA,4295769,326729,03/08/2020,876.86,0,JEA,Senior Management,4809,Special Guardianship,Children'S Services
Blackpool Council,1068480,REDACTED PERSONAL DATA,4295770,326517,03/08/2020,571.29,0,JEA,Senior Management,4809,Special Guardianship,Children'S Services
Blackpool Council,1068906,REDACTED PERSONAL DATA,4295771,326702,03/08/2020,584.57,0,JBR,Lac - Placements,4814,Adoption Allowances,Children'S Services
Blackpool Council,1068906,REDACTED PERSONAL DATA,4295772,326703,03/08/2020,584.57,0,JBR,Lac - Placements,4814,Adoption Allowances,Children'S Services
Blackpool Council,1068906,REDACTED PERSONAL DATA,4295773,326704,03/08/2020,584.57,0,JBR,Lac - Placements,4814,Adoption Allowances,Children'S Services
Blackpool Council,1069176,REDACTED PERSONAL DATA,4295774,326718,03/08/2020,571.29,0,JEA,Senior Management,4809,Special Guardianship,Children'S Services
Blackpool Council,1070512,REDACTED PERSONAL DATA,4295775,326742,03/08/2020,659.86,0,JEA,Senior Management,4809,Special Guardianship,Children'S Services
Blackpool Council,1070602,REDACTED PERSONAL DATA,4295776,326518,03/08/2020,571.29,0,JEA,Senior Management,4809,Special Guardianship,Children'S Services
Blackpool Council,1071018,REDACTED PERSONAL DATA,4295777,326705,03/08/2020,584.57,0,JBR,Lac - Placements,4814,Adoption Allowances,Children'S Services
Blackpool Council,1071018,REDACTED PERSONAL DATA,4295778,326508,03/08/2020,584.57,0,JBR,Lac - Placements,4814,Adoption Allowances,Children'S Services
Blackpool Council,1071018,REDACTED PERSONAL DATA,4295779,326390,03/08/2020,584.57,0,JBR,Lac - Placements,4814,Adoption Allowances,Children'S Services
Blackpool Council,1071683,REDACTED PERSONAL DATA,4295780,326521,03/08/2020,571.29,0,JEA,Senior Management,4809,Special Guardianship,Children'S Services
Blackpool Council,1071683,REDACTED PERSONAL DATA,4295781,326457,03/08/2020,571.29,0,JEA,Senior Management,4809,Special Guardianship,Children'S Services
Blackpool Council,1072770,REDACTED PERSONAL DATA,4295782,326519,03/08/2020,571.29,0,JEA,Senior Management,4809,Special Guardianship,Children'S Services
Blackpool Council,1074231,REDACTED PERSONAL DATA,4295783,326557,03/08/2020,571.29,0,JEA,Senior Management,4811,Residence Orders,Children'S Services
Blackpool Council,1076446,REDACTED PERSONAL DATA,4295784,326455,03/08/2020,571.29,0,JEA,Senior Management,4811,Residence Orders,Children'S Services
Blackpool Council,1076446,REDACTED PERSONAL DATA,4295785,326398,03/08/2020,571.29,0,JEA,Senior Management,4811,Residence Orders,Children'S Services
Blackpool Council,1077446,REDACTED PERSONAL DATA,4295786,326509,03/08/2020,584.57,0,JBR,Lac - Placements,4814,Adoption Allowances,Children'S Services
Blackpool Council,1077610,REDACTED PERSONAL DATA,4295787,326456,03/08/2020,571.29,0,JEA,Senior Management,4809,Special Guardianship,Children'S Services
Blackpool Council,1078284,REDACTED PERSONAL DATA,4295788,326400,03/08/2020,571.29,0,JEA,Senior Management,4809,Special Guardianship,Children'S Services
Blackpool Council,1078667,REDACTED PERSONAL DATA,4295789,326586,03/08/2020,980.57,0,JEA,Senior Management,4809,Special Guardianship,Children'S Services
Blackpool Council,1079501,REDACTED PERSONAL DATA,4295790,326613,03/08/2020,571.29,0,JEA,Senior Management,4809,Special Guardianship,Children'S Services
Blackpool Council,1079745,REDACTED PERSONAL DATA,4295791,326520,03/08/2020,571.29,0,JEA,Senior Management,4809,Special Guardianship,Children'S Services
Blackpool Council,1080101,REDACTED PERSONAL DATA,4295792,326399,03/08/2020,571.29,0,JEA,Senior Management,4809,Special Guardianship,Children'S Services
Blackpool Council,1080290,REDACTED PERSONAL DATA,4295793,326659,06/08/2020,1833.43,0,JEA,Senior Management,4809,Special Guardianship,Children'S Services
Blackpool Council,1080290,REDACTED PERSONAL DATA,4295794,326648,06/08/2020,1173.57,0,JEA,Senior Management,4809,Special Guardianship,Children'S Services
Blackpool Council,1080411,REDACTED PERSONAL DATA,4295795,326391,03/08/2020,584.57,0,JBR,Lac - Placements,4814,Adoption Allowances,Children'S Services
Blackpool Council,1081971,REDACTED PERSONAL DATA,4295796,326464,03/08/2020,1129.29,0,JEA,Senior Management,4809,Special Guardianship,Children'S Services
Blackpool Council,1081971,REDACTED PERSONAL DATA,4295797,326405,03/08/2020,1129.29,0,JEA,Senior Management,4809,Special Guardianship,Children'S Services
Blackpool Council,1082124,REDACTED PERSONAL DATA,4295798,326417,03/08/2020,597.86,0,JEA,Senior Management,4809,Special Guardianship,Children'S Services
Blackpool Council,1082476,REDACTED PERSONAL DATA,4295799,326478,03/08/2020,1129.29,0,JEA,Senior Management,4809,Special Guardianship,Children'S Services
Blackpool Council,1082476,REDACTED PERSONAL DATA,4295800,326537,03/08/2020,1036.29,0,JEA,Senior Management,4809,Special Guardianship,Children'S Services
Blackpool Council,1082476,REDACTED PERSONAL DATA,4295801,326745,03/08/2020,1036.29,0,JEA,Senior Management,4809,Special Guardianship,Children'S Services
Blackpool Council,1082803,REDACTED PERSONAL DATA,4295802,326802,03/08/2020,752.86,0,JEA,Senior Management,4811,Residence Orders,Children'S Services
Blackpool Council,1082803,REDACTED PERSONAL DATA,4295803,326670,03/08/2020,659.86,0,JEA,Senior Management,4811,Residence Orders,Children'S Services
Blackpool Council,1083419,REDACTED PERSONAL DATA,4295804,326615,03/08/2020,659.86,0,JEA,Senior Management,4809,Special Guardianship,Children'S Services
Blackpool Council,1083907,REDACTED PERSONAL DATA,4295805,326569,03/08/2020,571.29,0,JEA,Senior Management,4809,Special Guardianship,Children'S Services
Blackpool Council,1083907,REDACTED PERSONAL DATA,4295806,326666,03/08/2020,571.29,0,JEA,Senior Management,4809,Special Guardianship,Children'S Services
Blackpool Council,1083907,REDACTED PERSONAL DATA,4295807,326570,03/08/2020,571.29,0,JEA,Senior Management,4809,Special Guardianship,Children'S Services
Blackpool Council,1085922,REDACTED PERSONAL DATA,4295808,326719,03/08/2020,571.29,0,JEA,Senior Management,4809,Special Guardianship,Children'S Services
Blackpool Council,1085923,REDACTED PERSONAL DATA,4295809,326779,03/08/2020,1085,0,JEA,Senior Management,4809,Special Guardianship,Children'S Services
Blackpool Council,1085923,REDACTED PERSONAL DATA,4295810,326393,03/08/2020,659.86,0,JBR,Lac - Placements,4814,Adoption Allowances,Children'S Services
Blackpool Council,1085923,REDACTED PERSONAL DATA,4295811,326665,03/08/2020,1129.29,0,JBR,Lac - Placements,4814,Adoption Allowances,Children'S Services
Blackpool Council,1085923,REDACTED PERSONAL DATA,4295812,326431,03/08/2020,1036.29,0,JBR,Lac - Placements,4814,Adoption Allowances,Children'S Services
Blackpool Council,1085928,REDACTED PERSONAL DATA,4295813,326720,03/08/2020,571.29,0,JEA,Senior Management,4809,Special Guardianship,Children'S Services
Blackpool Council,1085928,REDACTED PERSONAL DATA,4295814,326404,03/08/2020,659.86,0,JEA,Senior Management,4809,Special Guardianship,Children'S Services
Blackpool Council,1085931,REDACTED PERSONAL DATA,4295815,326460,03/08/2020,752.86,0,JEA,Senior Management,4809,Special Guardianship,Children'S Services
Blackpool Council,1085931,REDACTED PERSONAL DATA,4295816,326524,03/08/2020,876.86,0,JEA,Senior Management,4809,Special Guardianship,Children'S Services
Blackpool Council,1086638,REDACTED PERSONAL DATA,4295817,326707,03/08/2020,584.57,0,JBR,Lac - Placements,4814,Adoption Allowances,Children'S Services
Blackpool Council,1087223,REDACTED PERSONAL DATA,4295818,326430,03/08/2020,584.57,0,JBR,Lac - Placements,4814,Adoption Allowances,Children'S Services
Blackpool Council,1087223,REDACTED PERSONAL DATA,4295819,326706,03/08/2020,584.57,0,JBR,Lac - Placements,4814,Adoption Allowances,Children'S Services
Blackpool Council,1087911,REDACTED PERSONAL DATA,4295820,326804,03/08/2020,1235.57,0,JEA,Senior Management,4809,Special Guardianship,Children'S Services
Blackpool Council,1088072,REDACTED PERSONAL DATA,4295821,326477,03/08/2020,659.86,0,JEA,Senior Management,4809,Special Guardianship,Children'S Services
Blackpool Council,1088081,REDACTED PERSONAL DATA,4295822,326446,03/08/2020,752.86,0,JEA,Senior Management,4809,Special Guardianship,Children'S Services
Blackpool Council,1088106,REDACTED PERSONAL DATA,4295823,326726,03/08/2020,659.86,0,JEA,Senior Management,4809,Special Guardianship,Children'S Services
Blackpool Council,1088133,REDACTED PERSONAL DATA,4295824,326677,03/08/2020,597.86,0,JEA,Senior Management,4809,Special Guardianship,Children'S Services
Blackpool Council,1088246,REDACTED PERSONAL DATA,4295825,326511,03/08/2020,659.86,0,JBR,Lac - Placements,4814,Adoption Allowances,Children'S Services
Blackpool Council,1088614,REDACTED PERSONAL DATA,4295826,326708,03/08/2020,584.57,0,JBR,Lac - Placements,4814,Adoption Allowances,Children'S Services
Blackpool Council,1088741,REDACTED PERSONAL DATA,4295827,326449,03/08/2020,659.86,0,JBR,Lac - Placements,4814,Adoption Allowances,Children'S Services
Blackpool Council,1088743,REDACTED PERSONAL DATA,4295828,326604,03/08/2020,659.86,0,JEA,Senior Management,4809,Special Guardianship,Children'S Services
Blackpool Council,1088744,REDACTED PERSONAL DATA,4295829,326577,03/08/2020,659.86,0,JEA,Senior Management,4809,Special Guardianship,Children'S Services
Blackpool Council,1089191,REDACTED PERSONAL DATA,4295830,326806,03/08/2020,659.86,0,JEA,Senior Management,4809,Special Guardianship,Children'S Services
Blackpool Council,1089191,REDACTED PERSONAL DATA,4295831,326690,03/08/2020,876.86,0,JEA,Senior Management,4809,Special Guardianship,Children'S Services
Blackpool Council,1089191,REDACTED PERSONAL DATA,4295832,326691,03/08/2020,659.86,0,JEA,Senior Management,4809,Special Guardianship,Children'S Services
Blackpool Council,1089503,REDACTED PERSONAL DATA,4295833,326736,03/08/2020,659.86,0,JEA,Senior Management,4809,Special Guardianship,Children'S Services
Blackpool Council,1089504,REDACTED PERSONAL DATA,4295834,326401,03/08/2020,752.86,0,JEA,Senior Management,4809,Special Guardianship,Children'S Services
Blackpool Council,1089505,REDACTED PERSONAL DATA,4295835,326723,03/08/2020,659.86,0,JEA,Senior Management,4809,Special Guardianship,Children'S Services
Blackpool Council,1089980,REDACTED PERSONAL DATA,4295836,326682,03/08/2020,1036.29,0,JEA,Senior Management,4809,Special Guardianship,Children'S Services
Blackpool Council,1089980,REDACTED PERSONAL DATA,4295837,326588,03/08/2020,1036.29,0,JEA,Senior Management,4809,Special Guardianship,Children'S Services
Blackpool Council,1089980,REDACTED PERSONAL DATA,4295838,326527,03/08/2020,659.86,0,JEA,Senior Management,4809,Special Guardianship,Children'S Services
Blackpool Council,1090054,REDACTED PERSONAL DATA,4295839,326660,03/08/2020,510,0,JEA,Senior Management,4809,Special Guardianship,Children'S Services
Blackpool Council,1090054,REDACTED PERSONAL DATA,4295840,326798,03/08/2020,1483.29,0,JEA,Senior Management,4809,Special Guardianship,Children'S Services
Blackpool Council,1090054,REDACTED PERSONAL DATA,4295841,326637,03/08/2020,1129.29,0,JEA,Senior Management,4809,Special Guardianship,Children'S Services
Blackpool Council,1090278,REDACTED PERSONAL DATA,4295842,326392,03/08/2020,659.86,0,JBR,Lac - Placements,4814,Adoption Allowances,Children'S Services
Blackpool Council,1090507,REDACTED PERSONAL DATA,4295843,326510,03/08/2020,584.57,0,JBR,Lac - Placements,4814,Adoption Allowances,Children'S Services
Blackpool Council,1090553,REDACTED PERSONAL DATA,4295844,326576,03/08/2020,571.29,0,JEA,Senior Management,4811,Residence Orders,Children'S Services
Blackpool Council,1090574,REDACTED PERSONAL DATA,4295845,326498,03/08/2020,1328.57,0,JEA,Senior Management,4809,Special Guardianship,Children'S Services
Blackpool Council,1090574,REDACTED PERSONAL DATA,4295846,326554,03/08/2020,1173.57,0,JEA,Senior Management,4809,Special Guardianship,Children'S Services
Blackpool Council,1090630,REDACTED PERSONAL DATA,4295847,326459,03/08/2020,752.86,0,JEA,Senior Management,4809,Special Guardianship,Children'S Services
Blackpool Council,1090630,REDACTED PERSONAL DATA,4295848,326402,03/08/2020,752.86,0,JEA,Senior Management,4809,Special Guardianship,Children'S Services
Blackpool Council,1091208,REDACTED PERSONAL DATA,4295849,326780,03/08/2020,752.86,0,JEA,Senior Management,4809,Special Guardianship,Children'S Services
Blackpool Council,1092226,REDACTED PERSONAL DATA,4295850,326522,03/08/2020,752.86,0,JEA,Senior Management,4809,Special Guardianship,Children'S Services
Blackpool Council,1092955,REDACTED PERSONAL DATA,4295851,326728,03/08/2020,659.86,0,JEA,Senior Management,4809,Special Guardianship,Children'S Services
Blackpool Council,1093033,REDACTED PERSONAL DATA,4295852,326721,03/08/2020,659.86,0,JEA,Senior Management,4809,Special Guardianship,Children'S Services
Blackpool Council,1093432,REDACTED PERSONAL DATA,4295853,326727,03/08/2020,752.86,0,JEA,Senior Management,4809,Special Guardianship,Children'S Services
Blackpool Council,1093432,REDACTED PERSONAL DATA,4295854,326462,03/08/2020,752.86,0,JEA,Senior Management,4809,Special Guardianship,Children'S Services
Blackpool Council,1093556,REDACTED PERSONAL DATA,4295855,326403,03/08/2020,659.86,0,JEA,Senior Management,4809,Special Guardianship,Children'S Services
Blackpool Council,1093573,REDACTED PERSONAL DATA,4295856,326610,03/08/2020,752.86,0,JEA,Senior Management,4809,Special Guardianship,Children'S Services
Blackpool Council,1094329,REDACTED PERSONAL DATA,4295857,326526,03/08/2020,659.86,0,JEA,Senior Management,4809,Special Guardianship,Children'S Services
Blackpool Council,1095249,REDACTED PERSONAL DATA,4295858,326611,03/08/2020,752.86,0,JEA,Senior Management,4809,Special Guardianship,Children'S Services
Blackpool Council,1095249,REDACTED PERSONAL DATA,4295859,326775,03/08/2020,659.86,0,JEA,Senior Management,4809,Special Guardianship,Children'S Services
Blackpool Council,1095249,REDACTED PERSONAL DATA,4295860,326612,03/08/2020,659.86,0,JEA,Senior Management,4809,Special Guardianship,Children'S Services
Blackpool Council,1095280,REDACTED PERSONAL DATA,4295861,326624,03/08/2020,752.86,0,JEA,Senior Management,4811,Residence Orders,Children'S Services
Blackpool Council,1095280,REDACTED PERSONAL DATA,4295862,326673,03/08/2020,752.86,0,JEA,Senior Management,4811,Residence Orders,Children'S Services
Blackpool Council,1095510,REDACTED PERSONAL DATA,4295863,326539,03/08/2020,876.86,0,JEA,Senior Management,4809,Special Guardianship,Children'S Services
Blackpool Council,1095510,REDACTED PERSONAL DATA,4295864,326479,03/08/2020,752.86,0,JEA,Senior Management,4809,Special Guardianship,Children'S Services
Blackpool Council,1095871,REDACTED PERSONAL DATA,4295865,326796,03/08/2020,1036.29,0,JEA,Senior Management,4809,Special Guardianship,Children'S Services
Blackpool Council,1095871,REDACTED PERSONAL DATA,4295866,326684,03/08/2020,1129.29,0,JEA,Senior Management,4809,Special Guardianship,Children'S Services
Blackpool Council,1095873,REDACTED PERSONAL DATA,4295867,326531,03/08/2020,659.86,0,JEA,Senior Management,4809,Special Guardianship,Children'S Services
Blackpool Council,1095873,REDACTED PERSONAL DATA,4295868,326409,03/08/2020,876.86,0,JEA,Senior Management,4809,Special Guardianship,Children'S Services
Blackpool Council,1095956,REDACTED PERSONAL DATA,4295869,326461,03/08/2020,659.86,0,JEA,Senior Management,4809,Special Guardianship,Children'S Services
Blackpool Council,1096099,REDACTED PERSONAL DATA,4295870,326406,03/08/2020,752.86,0,JEA,Senior Management,4809,Special Guardianship,Children'S Services
Blackpool Council,1096099,REDACTED PERSONAL DATA,4295871,326407,03/08/2020,659.86,0,JEA,Senior Management,4809,Special Guardianship,Children'S Services
Blackpool Council,1096411,REDACTED PERSONAL DATA,4295872,326411,03/08/2020,659.86,0,JEA,Senior Management,4809,Special Guardianship,Children'S Services
Blackpool Council,1096411,REDACTED PERSONAL DATA,4295873,326740,03/08/2020,752.86,0,JEA,Senior Management,4809,Special Guardianship,Children'S Services
Blackpool Council,1096569,REDACTED PERSONAL DATA,4295874,326458,03/08/2020,659.86,0,JEA,Senior Management,4809,Special Guardianship,Children'S Services
Blackpool Council,1096576,REDACTED PERSONAL DATA,4295875,326523,03/08/2020,659.86,0,JEA,Senior Management,4809,Special Guardianship,Children'S Services
Blackpool Council,1096875,REDACTED PERSONAL DATA,4295876,326725,03/08/2020,659.86,0,JEA,Senior Management,4809,Special Guardianship,Children'S Services
Blackpool Council,1096875,REDACTED PERSONAL DATA,4295877,326471,03/08/2020,659.86,0,JEA,Senior Management,4809,Special Guardianship,Children'S Services
Blackpool Council,1097143,REDACTED PERSONAL DATA,4295878,326667,03/08/2020,752.86,0,JBR,Lac - Placements,4814,Adoption Allowances,Children'S Services
Blackpool Council,1097143,REDACTED PERSONAL DATA,4295879,326668,03/08/2020,752.86,0,JBR,Lac - Placements,4814,Adoption Allowances,Children'S Services
Blackpool Council,1097161,REDACTED PERSONAL DATA,4295880,326512,03/08/2020,752.86,0,JBR,Lac - Placements,4814,Adoption Allowances,Children'S Services
Blackpool Council,1097279,REDACTED PERSONAL DATA,4295881,326739,03/08/2020,752.86,0,JEA,Senior Management,4809,Special Guardianship,Children'S Services
Blackpool Council,1097279,REDACTED PERSONAL DATA,4295882,326738,03/08/2020,876.86,0,JEA,Senior Management,4809,Special Guardianship,Children'S Services
Blackpool Council,1097279,REDACTED PERSONAL DATA,4295883,326470,03/08/2020,752.86,0,JEA,Senior Management,4809,Special Guardianship,Children'S Services
Blackpool Council,1097281,REDACTED PERSONAL DATA,4295884,326532,03/08/2020,659.86,0,JEA,Senior Management,4809,Special Guardianship,Children'S Services
Blackpool Council,1097474,REDACTED PERSONAL DATA,4295885,326525,03/08/2020,659.86,0,JEA,Senior Management,4809,Special Guardianship,Children'S Services
Blackpool Council,1097474,REDACTED PERSONAL DATA,4295886,326427,03/08/2020,659.86,0,JEA,Senior Management,4809,Special Guardianship,Children'S Services
Blackpool Council,1097980,REDACTED PERSONAL DATA,4295887,326412,03/08/2020,659.86,0,JEA,Senior Management,4809,Special Guardianship,Children'S Services
Blackpool Council,1098016,REDACTED PERSONAL DATA,4295888,326730,03/08/2020,659.86,0,JEA,Senior Management,4809,Special Guardianship,Children'S Services
Blackpool Council,1098016,REDACTED PERSONAL DATA,4295889,326463,03/08/2020,659.86,0,JEA,Senior Management,4809,Special Guardianship,Children'S Services
Blackpool Council,1098051,REDACTED PERSONAL DATA,4295890,326784,03/08/2020,659.86,0,JBR,Lac - Placements,4814,Adoption Allowances,Children'S Services
Blackpool Council,1098264,REDACTED PERSONAL DATA,4295891,326619,03/08/2020,885.71,0,JBR,Lac - Placements,4814,Adoption Allowances,Children'S Services
Blackpool Council,1098393,REDACTED PERSONAL DATA,4295892,326657,03/08/2020,1638.57,0,JEA,Senior Management,4809,Special Guardianship,Children'S Services
Blackpool Council,1098393,REDACTED PERSONAL DATA,4295893,326389,03/08/2020,510,0,JEA,Senior Management,4809,Special Guardianship,Children'S Services
Blackpool Council,1098406,REDACTED PERSONAL DATA,4295894,326466,03/08/2020,659.86,0,JEA,Senior Management,4809,Special Guardianship,Children'S Services
Blackpool Council,1098406,REDACTED PERSONAL DATA,4295895,326732,03/08/2020,752.86,0,JEA,Senior Management,4809,Special Guardianship,Children'S Services
Blackpool Council,1098564,REDACTED PERSONAL DATA,4295896,326530,03/08/2020,659.86,0,JEA,Senior Management,4809,Special Guardianship,Children'S Services
Blackpool Council,1098564,REDACTED PERSONAL DATA,4295897,326408,03/08/2020,659.86,0,JEA,Senior Management,4809,Special Guardianship,Children'S Services
Blackpool Council,1098878,REDACTED PERSONAL DATA,4295898,326672,03/08/2020,1097.27,0,JEA,Senior Management,4809,Special Guardianship,Children'S Services
Blackpool Council,1099323,REDACTED PERSONAL DATA,4295899,326774,03/08/2020,752.86,0,JEA,Senior Management,4809,Special Guardianship,Children'S Services
Blackpool Council,1099340,REDACTED PERSONAL DATA,4295900,326572,03/08/2020,752.86,0,JBR,Lac - Placements,4814,Adoption Allowances,Children'S Services
Blackpool Council,1099431,REDACTED PERSONAL DATA,4295901,326468,03/08/2020,659.86,0,JEA,Senior Management,4809,Special Guardianship,Children'S Services
Blackpool Council,1099431,REDACTED PERSONAL DATA,4295902,326734,03/08/2020,659.86,0,JEA,Senior Management,4809,Special Guardianship,Children'S Services
Blackpool Council,1099523,REDACTED PERSONAL DATA,4295903,326733,03/08/2020,659.86,0,JEA,Senior Management,4809,Special Guardianship,Children'S Services
Blackpool Council,1099523,REDACTED PERSONAL DATA,4295904,326467,03/08/2020,659.86,0,JEA,Senior Management,4809,Special Guardianship,Children'S Services
Blackpool Council,1099523,REDACTED PERSONAL DATA,4295905,326528,03/08/2020,752.86,0,JEA,Senior Management,4809,Special Guardianship,Children'S Services
Blackpool Council,1099900,REDACTED PERSONAL DATA,4295906,326816,03/08/2020,1379.29,0,JEA,Senior Management,4809,Special Guardianship,Children'S Services
Blackpool Council,1099900,REDACTED PERSONAL DATA,4295907,326751,03/08/2020,1036.29,0,JEA,Senior Management,4809,Special Guardianship,Children'S Services
Blackpool Council,1099900,REDACTED PERSONAL DATA,4295908,326607,03/08/2020,1483.29,0,JEA,Senior Management,4809,Special Guardianship,Children'S Services
Blackpool Council,1099900,REDACTED PERSONAL DATA,4295909,326542,03/08/2020,1129.29,0,JEA,Senior Management,4809,Special Guardianship,Children'S Services
Blackpool Council,1099918,REDACTED PERSONAL DATA,4295910,326735,03/08/2020,659.86,0,JEA,Senior Management,4809,Special Guardianship,Children'S Services
Blackpool Council,1100098,REDACTED PERSONAL DATA,4295911,326563,03/08/2020,659.86,0,JEA,Senior Management,4809,Special Guardianship,Children'S Services
Blackpool Council,1100098,REDACTED PERSONAL DATA,4295912,326564,03/08/2020,659.86,0,JEA,Senior Management,4809,Special Guardianship,Children'S Services
Blackpool Council,1100450,REDACTED PERSONAL DATA,4295913,326676,03/08/2020,659.86,0,JBR,Lac - Placements,4814,Adoption Allowances,Children'S Services
Blackpool Council,1100450,REDACTED PERSONAL DATA,4295914,326788,03/08/2020,752.86,0,JBR,Lac - Placements,4814,Adoption Allowances,Children'S Services
Blackpool Council,1100455,REDACTED PERSONAL DATA,4295915,326658,03/08/2020,2728.72,0,JEA,Senior Management,4809,Special Guardianship,Children'S Services
Blackpool Council,1100455,REDACTED PERSONAL DATA,4295916,326786,03/08/2020,659.86,0,JBR,Lac - Placements,4814,Adoption Allowances,Children'S Services
Blackpool Council,1100455,REDACTED PERSONAL DATA,4295917,326675,03/08/2020,659.86,0,JBR,Lac - Placements,4814,Adoption Allowances,Children'S Services
Blackpool Council,1100455,REDACTED PERSONAL DATA,4295918,326821,03/08/2020,2728.72,0,JEA,Senior Management,4809,Special Guardianship,Children'S Services
Blackpool Council,1100685,REDACTED PERSONAL DATA,4295919,326473,03/08/2020,659.86,0,JEA,Senior Management,4809,Special Guardianship,Children'S Services
Blackpool Council,1100963,REDACTED PERSONAL DATA,4295920,326529,03/08/2020,659.86,0,JEA,Senior Management,4809,Special Guardianship,Children'S Services
Blackpool Council,1101353,REDACTED PERSONAL DATA,4295921,326534,03/08/2020,752.86,0,JEA,Senior Management,4809,Special Guardianship,Children'S Services
Blackpool Council,1101354,REDACTED PERSONAL DATA,4295922,326410,03/08/2020,659.86,0,JEA,Senior Management,4809,Special Guardianship,Children'S Services
Blackpool Council,1101631,REDACTED PERSONAL DATA,4295923,326596,03/08/2020,974.29,0,JEA,Senior Management,4809,Special Guardianship,Children'S Services
Blackpool Council,1101713,REDACTED PERSONAL DATA,4295924,326767,03/08/2020,597.86,0,JEA,Senior Management,4809,Special Guardianship,Children'S Services
Blackpool Council,1101713,REDACTED PERSONAL DATA,4295925,326445,03/08/2020,876.86,0,JEA,Senior Management,4809,Special Guardianship,Children'S Services
Blackpool Council,1101877,REDACTED PERSONAL DATA,4295926,326533,03/08/2020,659.86,0,JEA,Senior Management,4809,Special Guardianship,Children'S Services
Blackpool Council,1101935,REDACTED PERSONAL DATA,4295927,326681,03/08/2020,659.86,0,JEA,Senior Management,4809,Special Guardianship,Children'S Services
Blackpool Council,1102002,REDACTED PERSONAL DATA,4295928,326453,03/08/2020,876.86,0,JEA,Senior Management,4811,Residence Orders,Children'S Services
Blackpool Council,1102142,REDACTED PERSONAL DATA,4295929,326737,03/08/2020,659.86,0,JEA,Senior Management,4809,Special Guardianship,Children'S Services
Blackpool Council,1102145,REDACTED PERSONAL DATA,4295930,326731,03/08/2020,752.86,0,JEA,Senior Management,4809,Special Guardianship,Children'S Services
Blackpool Council,1102685,REDACTED PERSONAL DATA,4295931,326623,03/08/2020,613.18,0,JEA,Senior Management,4809,Special Guardianship,Children'S Services
Blackpool Council,1102721,REDACTED PERSONAL DATA,4295932,326469,03/08/2020,659.86,0,JEA,Senior Management,4809,Special Guardianship,Children'S Services
Blackpool Council,1102721,REDACTED PERSONAL DATA,4295933,326759,03/08/2020,597.86,0,JEA,Senior Management,4809,Special Guardianship,Children'S Services
Blackpool Council,1103139,REDACTED PERSONAL DATA,4295934,326592,03/08/2020,659.86,0,JEA,Senior Management,4809,Special Guardianship,Children'S Services
Blackpool Council,1103207,REDACTED PERSONAL DATA,4295935,326711,03/08/2020,659.86,0,JBR,Lac - Placements,4814,Adoption Allowances,Children'S Services
Blackpool Council,1103207,REDACTED PERSONAL DATA,4295936,326394,03/08/2020,659.86,0,JBR,Lac - Placements,4814,Adoption Allowances,Children'S Services
Blackpool Council,1103230,REDACTED PERSONAL DATA,4295937,326474,03/08/2020,659.86,0,JEA,Senior Management,4809,Special Guardianship,Children'S Services
Blackpool Council,1103557,REDACTED PERSONAL DATA,4295938,326568,03/08/2020,597.86,0,JEA,Senior Management,4809,Special Guardianship,Children'S Services
Blackpool Council,1103561,REDACTED PERSONAL DATA,4295939,326476,03/08/2020,659.86,0,JEA,Senior Management,4809,Special Guardianship,Children'S Services
Blackpool Council,1103561,REDACTED PERSONAL DATA,4295940,326535,03/08/2020,752.86,0,JEA,Senior Management,4809,Special Guardianship,Children'S Services
Blackpool Council,1103621,REDACTED PERSONAL DATA,4295941,326432,03/08/2020,659.86,0,JEA,Senior Management,4811,Residence Orders,Children'S Services
Blackpool Council,1103757,REDACTED PERSONAL DATA,4295942,326680,03/08/2020,1235.57,0,JEA,Senior Management,4809,Special Guardianship,Children'S Services
Blackpool Council,1103757,REDACTED PERSONAL DATA,4295943,326450,03/08/2020,752.86,0,JBR,Lac - Placements,4814,Adoption Allowances,Children'S Services
Blackpool Council,1103853,REDACTED PERSONAL DATA,4295944,326746,03/08/2020,659.86,0,JEA,Senior Management,4809,Special Guardianship,Children'S Services
Blackpool Council,1103855,REDACTED PERSONAL DATA,4295945,326475,03/08/2020,659.86,0,JEA,Senior Management,4809,Special Guardianship,Children'S Services
Blackpool Council,1103921,REDACTED PERSONAL DATA,4295946,326772,03/08/2020,597.86,0,JEA,Senior Management,4809,Special Guardianship,Children'S Services
Blackpool Council,1104007,REDACTED PERSONAL DATA,4295947,326770,03/08/2020,659.86,0,JEA,Senior Management,4809,Special Guardianship,Children'S Services
Blackpool Council,1104023,REDACTED PERSONAL DATA,4295948,326414,03/08/2020,659.86,0,JEA,Senior Management,4809,Special Guardianship,Children'S Services
Blackpool Council,1104023,REDACTED PERSONAL DATA,4295949,326538,03/08/2020,659.86,0,JEA,Senior Management,4809,Special Guardianship,Children'S Services
Blackpool Council,1104041,REDACTED PERSONAL DATA,4295950,326472,03/08/2020,659.86,0,JEA,Senior Management,4809,Special Guardianship,Children'S Services
Blackpool Council,1104276,REDACTED PERSONAL DATA,4295951,326515,03/08/2020,659.86,0,JEA,Senior Management,4811,Residence Orders,Children'S Services
Blackpool Council,1104276,REDACTED PERSONAL DATA,4295952,326714,03/08/2020,659.86,0,JEA,Senior Management,4811,Residence Orders,Children'S Services
Blackpool Council,1104276,REDACTED PERSONAL DATA,4295953,326715,03/08/2020,659.86,0,JEA,Senior Management,4811,Residence Orders,Children'S Services
Blackpool Council,1104610,REDACTED PERSONAL DATA,4295954,326741,03/08/2020,659.86,0,JEA,Senior Management,4809,Special Guardianship,Children'S Services
Blackpool Council,1104777,REDACTED PERSONAL DATA,4295955,326480,03/08/2020,752.86,0,JEA,Senior Management,4809,Special Guardianship,Children'S Services
Blackpool Council,1104780,REDACTED PERSONAL DATA,4295956,326750,03/08/2020,659.86,0,JEA,Senior Management,4809,Special Guardianship,Children'S Services
Blackpool Council,1105055,REDACTED PERSONAL DATA,4295957,326787,03/08/2020,659.86,0,JBR,Lac - Placements,4814,Adoption Allowances,Children'S Services
Blackpool Council,1105216,REDACTED PERSONAL DATA,4295958,326536,03/08/2020,659.86,0,JEA,Senior Management,4809,Special Guardianship,Children'S Services
Blackpool Council,1105271,REDACTED PERSONAL DATA,4295959,326749,03/08/2020,659.86,0,JEA,Senior Management,4809,Special Guardianship,Children'S Services
Blackpool Council,1105579,REDACTED PERSONAL DATA,4295960,326413,03/08/2020,876.86,0,JEA,Senior Management,4809,Special Guardianship,Children'S Services
Blackpool Council,1105579,REDACTED PERSONAL DATA,4295961,326743,03/08/2020,752.86,0,JEA,Senior Management,4809,Special Guardianship,Children'S Services
Blackpool Council,1105610,REDACTED PERSONAL DATA,4295962,326744,03/08/2020,659.86,0,JEA,Senior Management,4809,Special Guardianship,Children'S Services
Blackpool Council,1105772,REDACTED PERSONAL DATA,4295963,326671,03/08/2020,885.71,0,JBR,Lac - Placements,4814,Adoption Allowances,Children'S Services
Blackpool Council,1105818,REDACTED PERSONAL DATA,4295964,326710,03/08/2020,659.86,0,JBR,Lac - Placements,4814,Adoption Allowances,Children'S Services
Blackpool Council,1105830,REDACTED PERSONAL DATA,4295965,326489,03/08/2020,752.86,0,JEA,Senior Management,4809,Special Guardianship,Children'S Services
Blackpool Council,1105956,REDACTED PERSONAL DATA,4295966,326777,03/08/2020,752.86,0,JEA,Senior Management,4809,Special Guardianship,Children'S Services
Blackpool Council,1106444,REDACTED PERSONAL DATA,4295967,326540,03/08/2020,659.86,0,JEA,Senior Management,4809,Special Guardianship,Children'S Services
Blackpool Council,1106465,REDACTED PERSONAL DATA,4295968,326755,03/08/2020,659.86,0,JEA,Senior Management,4809,Special Guardianship,Children'S Services
Blackpool Council,1106466,REDACTED PERSONAL DATA,4295969,326486,03/08/2020,752.86,0,JEA,Senior Management,4809,Special Guardianship,Children'S Services
Blackpool Council,1106549,REDACTED PERSONAL DATA,4295970,326747,03/08/2020,659.86,0,JEA,Senior Management,4809,Special Guardianship,Children'S Services
Blackpool Council,1106549,REDACTED PERSONAL DATA,4295971,326748,03/08/2020,659.86,0,JEA,Senior Management,4809,Special Guardianship,Children'S Services
Blackpool Council,1106588,REDACTED PERSONAL DATA,4295972,326416,03/08/2020,677.86,0,JEA,Senior Management,4809,Special Guardianship,Children'S Services
Blackpool Council,1106714,REDACTED PERSONAL DATA,4295973,326424,03/08/2020,659.86,0,JEA,Senior Management,4809,Special Guardianship,Children'S Services
Blackpool Council,1106754,REDACTED PERSONAL DATA,4295974,326426,03/08/2020,659.86,0,JEA,Senior Management,4809,Special Guardianship,Children'S Services
Blackpool Council,1106755,REDACTED PERSONAL DATA,4295975,326484,03/08/2020,659.86,0,JEA,Senior Management,4809,Special Guardianship,Children'S Services
Blackpool Council,1106755,REDACTED PERSONAL DATA,4295976,326754,03/08/2020,659.86,0,JEA,Senior Management,4809,Special Guardianship,Children'S Services
Blackpool Council,1106756,REDACTED PERSONAL DATA,4295977,326573,03/08/2020,659.86,0,JEA,Senior Management,4809,Special Guardianship,Children'S Services
Blackpool Council,1107064,REDACTED PERSONAL DATA,4295978,326488,03/08/2020,659.86,0,JEA,Senior Management,4809,Special Guardianship,Children'S Services
Blackpool Council,1107232,REDACTED PERSONAL DATA,4295979,326491,03/08/2020,659.86,0,JEA,Senior Management,4809,Special Guardianship,Children'S Services
Blackpool Council,1107232,REDACTED PERSONAL DATA,4295980,326492,03/08/2020,659.86,0,JEA,Senior Management,4809,Special Guardianship,Children'S Services
Blackpool Council,1107327,REDACTED PERSONAL DATA,4295981,326490,03/08/2020,752.86,0,JEA,Senior Management,4809,Special Guardianship,Children'S Services
Blackpool Council,1107327,REDACTED PERSONAL DATA,4295982,326545,03/08/2020,659.86,0,JEA,Senior Management,4809,Special Guardianship,Children'S Services
Blackpool Council,1107463,REDACTED PERSONAL DATA,4295983,326771,03/08/2020,659.86,0,JEA,Senior Management,4809,Special Guardianship,Children'S Services
Blackpool Council,1107507,REDACTED PERSONAL DATA,4295984,326758,03/08/2020,659.86,0,JEA,Senior Management,4809,Special Guardianship,Children'S Services
Blackpool Council,1107631,REDACTED PERSONAL DATA,4295985,326505,03/08/2020,659.86,0,JEA,Senior Management,4809,Special Guardianship,Children'S Services
Blackpool Council,1107693,REDACTED PERSONAL DATA,4295986,326760,03/08/2020,876.86,0,JEA,Senior Management,4809,Special Guardianship,Children'S Services
Blackpool Council,1107776,REDACTED PERSONAL DATA,4295987,326506,03/08/2020,597.86,0,JEA,Senior Management,4809,Special Guardianship,Children'S Services
Blackpool Council,1107820,REDACTED PERSONAL DATA,4295988,326762,03/08/2020,752.86,0,JEA,Senior Management,4809,Special Guardianship,Children'S Services
Blackpool Council,1107830,REDACTED PERSONAL DATA,4295989,326493,03/08/2020,659.86,0,JEA,Senior Management,4809,Special Guardianship,Children'S Services
Blackpool Council,1107945,REDACTED PERSONAL DATA,4295990,326636,03/08/2020,597.86,0,JEA,Senior Management,4809,Special Guardianship,Children'S Services
Blackpool Council,1107945,REDACTED PERSONAL DATA,4295991,326565,03/08/2020,659.86,0,JEA,Senior Management,4809,Special Guardianship,Children'S Services
Blackpool Council,1108085,REDACTED PERSONAL DATA,4295992,326548,03/08/2020,876.86,0,JEA,Senior Management,4809,Special Guardianship,Children'S Services
Blackpool Council,1108127,REDACTED PERSONAL DATA,4295993,326503,03/08/2020,659.86,0,JEA,Senior Management,4809,Special Guardianship,Children'S Services
Blackpool Council,1108127,REDACTED PERSONAL DATA,4295994,326447,03/08/2020,659.86,0,JEA,Senior Management,4809,Special Guardianship,Children'S Services
Blackpool Council,1108216,REDACTED PERSONAL DATA,4295995,326761,03/08/2020,659.86,0,JEA,Senior Management,4809,Special Guardianship,Children'S Services
Blackpool Council,1108372,REDACTED PERSONAL DATA,4295996,326766,03/08/2020,659.86,0,JEA,Senior Management,4809,Special Guardianship,Children'S Services
Blackpool Council,1108372,REDACTED PERSONAL DATA,4295997,326555,03/08/2020,659.86,0,JEA,Senior Management,4809,Special Guardianship,Children'S Services
Blackpool Council,1108372,REDACTED PERSONAL DATA,4295998,326435,03/08/2020,659.86,0,JEA,Senior Management,4809,Special Guardianship,Children'S Services
Blackpool Council,1108383,REDACTED PERSONAL DATA,4295999,326567,03/08/2020,597.86,0,JEA,Senior Management,4809,Special Guardianship,Children'S Services
Blackpool Council,1108400,REDACTED PERSONAL DATA,4296000,326562,03/08/2020,659.86,0,JEA,Senior Management,4809,Special Guardianship,Children'S Services
Blackpool Council,1108495,REDACTED PERSONAL DATA,4296001,326514,03/08/2020,597.86,0,JBR,Lac - Placements,4814,Adoption Allowances,Children'S Services
Blackpool Council,1108534,REDACTED PERSONAL DATA,4296002,326485,03/08/2020,597.86,0,JEA,Senior Management,4809,Special Guardianship,Children'S Services
Blackpool Council,1108593,REDACTED PERSONAL DATA,4296003,326566,03/08/2020,752.86,0,JEA,Senior Management,4809,Special Guardianship,Children'S Services
Blackpool Council,1108795,REDACTED PERSONAL DATA,4296004,326661,03/08/2020,752.86,0,JEA,Senior Management,4809,Special Guardianship,Children'S Services
Blackpool Council,1108922,REDACTED PERSONAL DATA,4296006,326646,03/08/2020,1235.57,0,JEA,Senior Management,4809,Special Guardianship,Children'S Services
Blackpool Council,1108922,REDACTED PERSONAL DATA,4296007,326598,03/08/2020,1452.57,0,JEA,Senior Management,4809,Special Guardianship,Children'S Services
Blackpool Council,1108938,REDACTED PERSONAL DATA,4296008,326663,03/08/2020,659.86,0,JEA,Senior Management,4809,Special Guardianship,Children'S Services
Blackpool Council,1108938,REDACTED PERSONAL DATA,4296009,326662,03/08/2020,659.86,0,JEA,Senior Management,4809,Special Guardianship,Children'S Services
Blackpool Council,1109172,REDACTED PERSONAL DATA,4296010,326487,03/08/2020,876.86,0,JEA,Senior Management,4809,Special Guardianship,Children'S Services
Blackpool Council,1109172,REDACTED PERSONAL DATA,4296011,326558,03/08/2020,597.86,0,JEA,Senior Management,4809,Special Guardianship,Children'S Services
Blackpool Council,1109393,REDACTED PERSONAL DATA,4296012,326500,03/08/2020,659.86,0,JEA,Senior Management,4809,Special Guardianship,Children'S Services
Blackpool Council,1109552,REDACTED PERSONAL DATA,4296013,326683,03/08/2020,597.86,0,JEA,Senior Management,4809,Special Guardianship,Children'S Services
Blackpool Council,1109552,REDACTED PERSONAL DATA,4296014,326635,03/08/2020,659.86,0,JEA,Senior Management,4809,Special Guardianship,Children'S Services
Blackpool Council,1109751,REDACTED PERSONAL DATA,4296015,326773,03/08/2020,659.86,0,JEA,Senior Management,4809,Special Guardianship,Children'S Services
Blackpool Council,1109751,REDACTED PERSONAL DATA,4296016,326664,03/08/2020,659.86,0,JEA,Senior Management,4809,Special Guardianship,Children'S Services
Blackpool Council,1110206,REDACTED PERSONAL DATA,4296017,326713,03/08/2020,752.86,0,JBR,Lac - Placements,4814,Adoption Allowances,Children'S Services
Blackpool Council,1110334,REDACTED PERSONAL DATA,4296018,326768,03/08/2020,597.86,0,JEA,Senior Management,4809,Special Guardianship,Children'S Services
Blackpool Council,1110684,REDACTED PERSONAL DATA,4296019,326436,03/08/2020,659.86,0,JEA,Senior Management,4809,Special Guardianship,Children'S Services
Blackpool Council,1110718,REDACTED PERSONAL DATA,4296020,326443,03/08/2020,597.86,0,JEA,Senior Management,4809,Special Guardianship,Children'S Services
Blackpool Council,1110769,REDACTED PERSONAL DATA,4296021,326437,03/08/2020,597.86,0,JEA,Senior Management,4809,Special Guardianship,Children'S Services
Blackpool Council,1110785,REDACTED PERSONAL DATA,4296022,326769,03/08/2020,659.86,0,JEA,Senior Management,4809,Special Guardianship,Children'S Services
Blackpool Council,1110785,REDACTED PERSONAL DATA,4296023,326559,03/08/2020,659.86,0,JEA,Senior Management,4809,Special Guardianship,Children'S Services
Blackpool Council,1110785,REDACTED PERSONAL DATA,4296024,326441,03/08/2020,659.86,0,JEA,Senior Management,4809,Special Guardianship,Children'S Services
Blackpool Council,1110785,REDACTED PERSONAL DATA,4296025,326442,03/08/2020,659.86,0,JEA,Senior Management,4809,Special Guardianship,Children'S Services
Blackpool Council,1110958,REDACTED PERSONAL DATA,4296026,326753,03/08/2020,597.86,0,JEA,Senior Management,4809,Special Guardianship,Children'S Services
Blackpool Council,1111024,REDACTED PERSONAL DATA,4296027,326781,03/08/2020,659.86,0,JEA,Senior Management,4809,Special Guardianship,Children'S Services
Blackpool Council,1111044,REDACTED PERSONAL DATA,4296028,326698,03/08/2020,659.86,0,JBR,Lac - Placements,4814,Adoption Allowances,Children'S Services
Blackpool Council,1111044,REDACTED PERSONAL DATA,4296029,326602,03/08/2020,659.86,0,JBR,Lac - Placements,4814,Adoption Allowances,Children'S Services
Blackpool Council,1111111,REDACTED PERSONAL DATA,4296030,326501,03/08/2020,659.86,0,JEA,Senior Management,4809,Special Guardianship,Children'S Services
Blackpool Council,1111111,REDACTED PERSONAL DATA,4296031,326439,03/08/2020,659.86,0,JEA,Senior Management,4809,Special Guardianship,Children'S Services
Blackpool Council,1111111,REDACTED PERSONAL DATA,4296032,326438,03/08/2020,752.86,0,JEA,Senior Management,4809,Special Guardianship,Children'S Services
Blackpool Council,1111143,REDACTED PERSONAL DATA,4296033,326440,03/08/2020,597.86,0,JEA,Senior Management,4809,Special Guardianship,Children'S Services
Blackpool Council,1111194,REDACTED PERSONAL DATA,4296034,326584,03/08/2020,659.86,0,JEA,Senior Management,4809,Special Guardianship,Children'S Services
Blackpool Council,1111194,REDACTED PERSONAL DATA,4296035,326791,03/08/2020,659.86,0,JEA,Senior Management,4809,Special Guardianship,Children'S Services
Blackpool Council,1111443,REDACTED PERSONAL DATA,4296036,326483,03/08/2020,659.86,0,JEA,Senior Management,4809,Special Guardianship,Children'S Services
Blackpool Council,1111443,REDACTED PERSONAL DATA,4296037,326482,03/08/2020,752.86,0,JEA,Senior Management,4809,Special Guardianship,Children'S Services
Blackpool Council,1111656,REDACTED PERSONAL DATA,4296038,326627,03/08/2020,659.86,0,JEA,Senior Management,4809,Special Guardianship,Children'S Services
Blackpool Council,1111672,REDACTED PERSONAL DATA,4296039,326560,03/08/2020,597.86,0,JEA,Senior Management,4809,Special Guardianship,Children'S Services
Blackpool Council,1111679,REDACTED PERSONAL DATA,4296040,326809,03/08/2020,1594.15,0,JEA,Senior Management,4809,Special Guardianship,Children'S Services
Blackpool Council,1111679,REDACTED PERSONAL DATA,4296041,326597,03/08/2020,1619.75,0,JEA,Senior Management,4809,Special Guardianship,Children'S Services
Blackpool Council,1111683,REDACTED PERSONAL DATA,4296042,326502,03/08/2020,752.86,0,JEA,Senior Management,4809,Special Guardianship,Children'S Services
Blackpool Council,1111683,REDACTED PERSONAL DATA,4296043,326561,03/08/2020,659.86,0,JEA,Senior Management,4809,Special Guardianship,Children'S Services
Blackpool Council,1111683,REDACTED PERSONAL DATA,4296044,326415,03/08/2020,597.86,0,JEA,Senior Management,4809,Special Guardianship,Children'S Services
Blackpool Council,1111683,REDACTED PERSONAL DATA,4296045,326444,03/08/2020,659.86,0,JEA,Senior Management,4809,Special Guardianship,Children'S Services
Blackpool Council,1111913,REDACTED PERSONAL DATA,4296046,326420,03/08/2020,659.86,0,JEA,Senior Management,4809,Special Guardianship,Children'S Services
Blackpool Council,1112054,REDACTED PERSONAL DATA,4296047,326752,03/08/2020,659.86,0,JEA,Senior Management,4809,Special Guardianship,Children'S Services
Blackpool Council,1112103,REDACTED PERSONAL DATA,4296048,326419,03/08/2020,597.86,0,JEA,Senior Management,4809,Special Guardianship,Children'S Services
Blackpool Council,1112189,REDACTED PERSONAL DATA,4296049,326481,03/08/2020,597.86,0,JEA,Senior Management,4809,Special Guardianship,Children'S Services
Blackpool Council,1112214,REDACTED PERSONAL DATA,4296050,326433,03/08/2020,876.86,0,JEA,Senior Management,4809,Special Guardianship,Children'S Services
Blackpool Council,1112214,REDACTED PERSONAL DATA,4296051,326553,03/08/2020,876.86,0,JEA,Senior Management,4809,Special Guardianship,Children'S Services
Blackpool Council,1112431,REDACTED PERSONAL DATA,4296052,326494,03/08/2020,659.86,0,JEA,Senior Management,4809,Special Guardianship,Children'S Services
Blackpool Council,1112669,REDACTED PERSONAL DATA,4296053,326541,03/08/2020,597.86,0,JEA,Senior Management,4809,Special Guardianship,Children'S Services
Blackpool Council,1112793,REDACTED PERSONAL DATA,4296054,326693,03/08/2020,752.86,0,JEA,Senior Management,4809,Special Guardianship,Children'S Services
Blackpool Council,1112861,REDACTED PERSONAL DATA,4296055,326552,03/08/2020,597.86,0,JEA,Senior Management,4809,Special Guardianship,Children'S Services
Blackpool Council,1113186,REDACTED PERSONAL DATA,4296056,326550,03/08/2020,659.86,0,JEA,Senior Management,4809,Special Guardianship,Children'S Services
Blackpool Council,1113186,REDACTED PERSONAL DATA,4296057,326549,03/08/2020,752.86,0,JEA,Senior Management,4809,Special Guardianship,Children'S Services
Blackpool Council,1113233,REDACTED PERSONAL DATA,4296058,326418,03/08/2020,597.86,0,JEA,Senior Management,4809,Special Guardianship,Children'S Services
Blackpool Council,1113411,REDACTED PERSONAL DATA,4296059,326546,03/08/2020,597.86,0,JEA,Senior Management,4809,Special Guardianship,Children'S Services
Blackpool Council,1113426,REDACTED PERSONAL DATA,4296060,326716,03/08/2020,752.86,0,JEA,Senior Management,4811,Residence Orders,Children'S Services
Blackpool Council,1113444,REDACTED PERSONAL DATA,4296061,326757,03/08/2020,659.86,0,JEA,Senior Management,4809,Special Guardianship,Children'S Services
Blackpool Council,1113444,REDACTED PERSONAL DATA,4296062,326544,03/08/2020,597.86,0,JEA,Senior Management,4809,Special Guardianship,Children'S Services
Blackpool Council,1113462,REDACTED PERSONAL DATA,4296063,326504,03/08/2020,659.86,0,JEA,Senior Management,4809,Special Guardianship,Children'S Services
Blackpool Council,1113470,REDACTED PERSONAL DATA,4296064,326756,03/08/2020,659.86,0,JEA,Senior Management,4809,Special Guardianship,Children'S Services
Blackpool Council,1113470,REDACTED PERSONAL DATA,4296065,326425,03/08/2020,659.86,0,JEA,Senior Management,4809,Special Guardianship,Children'S Services
Blackpool Council,1113470,REDACTED PERSONAL DATA,4296066,326543,03/08/2020,597.86,0,JEA,Senior Management,4809,Special Guardianship,Children'S Services
Blackpool Council,1113478,REDACTED PERSONAL DATA,4296067,326583,03/08/2020,597.86,0,JEA,Senior Management,4809,Special Guardianship,Children'S Services
Blackpool Council,1113502,REDACTED PERSONAL DATA,4296068,326654,03/08/2020,584.57,0,JEA,Senior Management,4809,Special Guardianship,Children'S Services
Blackpool Council,1113670,REDACTED PERSONAL DATA,4296069,326551,03/08/2020,659.86,0,JEA,Senior Management,4809,Special Guardianship,Children'S Services
Blackpool Council,1113670,REDACTED PERSONAL DATA,4296070,326763,03/08/2020,659.86,0,JEA,Senior Management,4809,Special Guardianship,Children'S Services
Blackpool Council,1113831,REDACTED PERSONAL DATA,4296071,326421,03/08/2020,597.86,0,JEA,Senior Management,4809,Special Guardianship,Children'S Services
Blackpool Council,1113848,REDACTED PERSONAL DATA,4296072,326428,03/08/2020,752.86,0,JEA,Senior Management,4809,Special Guardianship,Children'S Services
Blackpool Council,1113848,REDACTED PERSONAL DATA,4296073,326429,03/08/2020,659.86,0,JEA,Senior Management,4809,Special Guardianship,Children'S Services
Blackpool Council,1113848,REDACTED PERSONAL DATA,4296074,326764,03/08/2020,597.86,0,JEA,Senior Management,4809,Special Guardianship,Children'S Services
